FILE,Service Area Categorisation,Service Division Categorisation,Responsible Unit,Unit Code,Expenses Type,Expenses Sub Type,Expense  Code,Detailed Expenses Type,Transaction No.,Amount,Invoice Date,Capital/Revenue,Supplier Name
2012-OCT,Central Services,Fully rechargeable Overheads,Local Involvement Network               ,A01039,Third Party Payments          ,Private Contractors           ,EH10,Contract Payments,1,"8,342.91",10/2/2012,R,MERTON VOLUNTARY SERV COUNCIL 
2012-OCT,Cultural Env Reg&Plan Services,Comm. Safety (Crime Reduction),Crime and Strategy Team                 ,A01100,Supplies & Services           ,Comms and Computing           ,DG04,Postage - General,2,"3,390.24",7/26/2012,R,TNT POST LONDON LTD           
2012-OCT,Cultural Env Reg&Plan Services,Comm. Safety (Crime Reduction),Crime and Strategy Team                 ,A01100,Third Party Payments          ,Private Contractors           ,EH02,Miscellaneous Hired Services,3,687.5,9/13/2012,R,REDACTED
2012-OCT,Cultural Env Reg&Plan Services,Comm. Safety (Crime Reduction),CCTV                                    ,A01200,Supplies & Services           ,Comms and Computing           ,DG15,Network Maintenance,4,"18,283.85",9/6/2012,R,BT REDCARE                    
2012-OCT,Adult Social Care,Other Adult Services,Access and Engagement                   ,A01302,Third Party Payments          ,Private Contractors           ,EH02,Miscellaneous Hired Services,5,"9,749.78",9/28/2012,R,ETHNIC MINORITY CENTRE        
2012-OCT,Adult Social Care,Other Adult Services,Access and Engagement                   ,A01302,Third Party Payments          ,Private Contractors           ,EH02,Miscellaneous Hired Services,6,"41,048.00",10/1/2012,R,CRI                           
2012-OCT,Adult Social Care,Other Adult Services,Access and Engagement                   ,A01302,Third Party Payments          ,Private Contractors           ,EH02,Miscellaneous Hired Services,7,"1,856.25",10/2/2012,R,COMM.DRUG SERV.FOR SOUTHLONDON
2012-OCT,Adult Social Care,Other Adult Services,Retention in Drug Treatmt Srvs          ,A01303,Third Party Payments          ,Private Contractors           ,EH02,Miscellaneous Hired Services,8,"6,000.00",9/15/2012,R,CIDARIS CONSULTING LIMITED    
2012-OCT,Adult Social Care,Other Adult Services,Retention in Drug Treatmt Srvs          ,A01303,Third Party Payments          ,Private Contractors           ,EH02,Miscellaneous Hired Services,9,-605.7,3/31/2011,R,CRANSTOUN DRUG SERVICES       
2012-OCT,Adult Social Care,Other Adult Services,Retention in Drug Treatmt Srvs          ,A01303,Third Party Payments          ,Private Contractors           ,EH02,Miscellaneous Hired Services,10,"6,900.00",10/15/2012,R,CIDARIS CONSULTING LIMITED    
2012-OCT,Adult Social Care,Other Adult Services,Retention in Drug Treatmt Srvs          ,A01303,Third Party Payments          ,Private Contractors           ,EH02,Miscellaneous Hired Services,11,"2,194.50",1/1/2012,R,CRANSTOUN DRUG SERVICES       
2012-OCT,Adult Social Care,Other Adult Services,Retention in Drug Treatmt Srvs          ,A01303,Third Party Payments          ,Private Contractors           ,EH02,Miscellaneous Hired Services,12,"1,661.50",10/2/2012,R,COMM.DRUG SERV.FOR SOUTHLONDON
2012-OCT,Adult Social Care,Other Adult Services,Retention in Drug Treatmt Srvs          ,A01303,Third Party Payments          ,Private Contractors           ,EH02,Miscellaneous Hired Services,13,"1,732.87",10/2/2012,R,COMM.DRUG SERV.FOR SOUTHLONDON
2012-OCT,Adult Social Care,Other Adult Services,Retention in Drug Treatmt Srvs          ,A01303,Third Party Payments          ,Private Contractors           ,EH02,Miscellaneous Hired Services,14,"2,934.69",10/2/2012,R,COMM.DRUG SERV.FOR SOUTHLONDON
2012-OCT,Adult Social Care,Other Adult Services,Retention in Drug Treatmt Srvs          ,A01303,Third Party Payments          ,Private Contractors           ,EH02,Miscellaneous Hired Services,15,"4,500.00",10/2/2012,R,COMM.DRUG SERV.FOR SOUTHLONDON
2012-OCT,Adult Social Care,Other Adult Services,Retention in Drug Treatmt Srvs          ,A01303,Third Party Payments          ,Private Contractors           ,EH02,Miscellaneous Hired Services,16,"2,870.88",10/2/2012,R,COMM.DRUG SERV.FOR SOUTHLONDON
2012-OCT,Adult Social Care,Other Adult Services,Retention in Drug Treatmt Srvs          ,A01303,Third Party Payments          ,Private Contractors           ,EH02,Miscellaneous Hired Services,17,"3,666.42",10/2/2012,R,COMM.DRUG SERV.FOR SOUTHLONDON
2012-OCT,Adult Social Care,Other Adult Services,Retention in Drug Treatmt Srvs          ,A01303,Third Party Payments          ,Private Contractors           ,EH02,Miscellaneous Hired Services,18,"1,550.27",10/2/2012,R,COMM.DRUG SERV.FOR SOUTHLONDON
2012-OCT,Adult Social Care,Other Adult Services,Retention in Drug Treatmt Srvs          ,A01303,Third Party Payments          ,Private Contractors           ,EH02,Miscellaneous Hired Services,19,"8,953.63",10/2/2012,R,COMM.DRUG SERV.FOR SOUTHLONDON
2012-OCT,Adult Social Care,Other Adult Services,Retention in Drug Treatmt Srvs          ,A01303,Third Party Payments          ,Private Contractors           ,EH02,Miscellaneous Hired Services,20,"58,112.25",10/2/2012,R,COMM.DRUG SERV.FOR SOUTHLONDON
2012-OCT,Central Services,Fully rechargeable Overheads,STATUTORY MARKETING & COMM          ,A02018,Supplies & Services           ,Services                      ,DF02,Misc Advertising/Publicity,21,831.6,8/4/2012,R,NEWSQUEST (LONDON)LTD         
2012-OCT,Central Services,Fully rechargeable Overheads,NON-STATUTORY MARKETING & COMM ,A02019,Supplies & Services           ,Prntng Stnry Gen Off Exp      ,DE22,Marketing,22,"11,712.66",7/27/2012,R,SIGMA CONSULTING SOLUTIONS LTD
2012-OCT,Central Services,Fully rechargeable Overheads,NON-STATUTORY MARKETING & COMM ,A02019,Supplies & Services           ,Prntng Stnry Gen Off Exp      ,DE22,Marketing,23,"1,300.00",8/31/2012,R,SIGMA CONSULTING SOLUTIONS LTD
2012-OCT,Central Services,Fully rechargeable Overheads,NON-STATUTORY MARKETING & COMM ,A02019,Supplies & Services           ,Services                      ,DF02,Misc Advertising/Publicity,24,585.6,9/22/2012,R,NEWSQUEST (LONDON)LTD         
2012-OCT,Central Services,Fully rechargeable Overheads,NON-STATUTORY MARKETING & COMM ,A02019,Supplies & Services           ,Services                      ,DF35,Graphic Design,25,"2,790.00",10/24/2012,R,THE BIG IDEA
2012-OCT,Central Services,Fully rechargeable Overheads,Democratic Services                     ,A02023,Supplies & Services           ,Clothing Unfrms Laundry       ,DC02,Clothing & Uniforms,26,520.83,9/25/2012,R,A.E. HALFHIDE & CO. LTD       
2012-OCT,Central Services,Fully rechargeable Overheads,Press and Public Relations.             ,A02026,Employees                     ,Direct Employee Expenses      ,AA17,Agency Staff & Casual Paymts,27,"1,130.00",9/24/2012,R,HAYS RECRUITING EXPERTS       
2012-OCT,Central Services,Fully rechargeable Overheads,Press and Public Relations.             ,A02026,Employees                     ,Direct Employee Expenses      ,AA17,Agency Staff & Casual Paymts,28,"1,130.00",10/1/2012,R,HAYS RECRUITING EXPERTS       
2012-OCT,Central Services,Fully rechargeable Overheads,Press and Public Relations.             ,A02026,Supplies & Services           ,Prntng Stnry Gen Off Exp      ,DE20,Council Magazine,29,"3,892.00",9/10/2012,R,LONDON LETTERBOX MARKETING    
2012-OCT,Central Services,Fully rechargeable Overheads,Press and Public Relations.             ,A02026,Supplies & Services           ,Prntng Stnry Gen Off Exp      ,DE20,Council Magazine,30,"2,919.20",6/26/2012,R,LONDON LETTERBOX MARKETING    
2012-OCT,Central Services,Fully rechargeable Overheads,Press and Public Relations.             ,A02026,Supplies & Services           ,Prntng Stnry Gen Off Exp      ,DE20,Council Magazine,31,"20,651.00",9/6/2012,R,ENGAGE GROUP LTD              
2012-OCT,Central Services,Fully rechargeable Overheads,Press and Public Relations.             ,A02026,Supplies & Services           ,Prntng Stnry Gen Off Exp      ,DE20,Council Magazine,32,"-1,680.00",10/10/2012,R,ENGAGE GROUP LTD              
2012-OCT,Central Services,Fully rechargeable Overheads,Press and Public Relations.             ,A02026,Supplies & Services           ,Grants and Subscriptions      ,DJ04,Subscriptions,33,600,9/28/2012,R,FLAME LIMITED                 
2012-OCT,CS -Oth Operating Inc & Expend,Trading A/c Surpluses/Deficits,Prtng Jobs - Ext Agncy                  ,A03041,Supplies & Services           ,Prntng Stnry Gen Off Exp      ,DE01,External Printing,34,726,9/24/2012,R,IMPRESS PRINT SERVICES LTD    
2012-OCT,CS -Oth Operating Inc & Expend,Trading A/c Surpluses/Deficits,Prtng Jobs - Ext Agncy                  ,A03041,Supplies & Services           ,Prntng Stnry Gen Off Exp      ,DE01,External Printing,35,527,9/28/2012,R,COMMERCIAL COLOUR PRESS       
2012-OCT,CS -Oth Operating Inc & Expend,Trading A/c Surpluses/Deficits,Prtng Jobs - Ext Agncy                  ,A03041,Supplies & Services           ,Prntng Stnry Gen Off Exp      ,DE01,External Printing,36,757,10/24/2012,R,IMPRESS PRINT SERVICES LTD    
2012-OCT,CS -Oth Operating Inc & Expend,Trading A/c Surpluses/Deficits,Prtng Jobs - Ext Agncy                  ,A03041,Supplies & Services           ,Prntng Stnry Gen Off Exp      ,DE01,External Printing,37,"2,150.00",10/23/2012,R,FINANCIAL DATA MANAGEMENT PLC 
2012-OCT,Central Services,Fully rechargeable Overheads,Merton Link                             ,A04070,Premises Related Expenditure  ,Cleaning and Domestic Supplies,BH03,Cleaning Services,38,"1,416.73",9/16/2012,R,DYNAMIQ CLEANING LIMITED      
2012-OCT,Central Services,Fully rechargeable Overheads,Merton Link                             ,A04070,Premises Related Expenditure  ,Cleaning and Domestic Supplies,BH03,Cleaning Services,39,"1,416.73",10/14/2012,R,DYNAMIQ CLEANING LIMITED      
2012-OCT,Central Services,Fully rechargeable Overheads,Merton Link                             ,A04070,Supplies & Services           ,Equip Furniture/Materials     ,DA01,Equipment - R & M,40,590.97,10/1/2012,R,ADT FIRE AND SECURITY PLC     
2012-OCT,Central Services,Gen Grants Bequest & Donations,VOLUNTARY SECTOR COORDINATION   ,A04082,Supplies & Services           ,Grants and Subscriptions      ,DJ04,Subscriptions,41,"76,712.75",9/24/2012,R,LONDON COUNCILS               
2012-OCT,Central Services,Fully rechargeable Overheads,COMMERICIAL SERVICES                    ,A04085,Employees                     ,Direct Employee Expenses      ,AA17,Agency Staff & Casual Paymts,42,678,10/18/2012,R,HAYS RECRUITING EXPERTS       
2012-OCT,Central Services,Fully rechargeable Overheads,Learning and Development                ,B06146,Employees                     ,Indirect Employee Expenses    ,AB56,Internal Training Costs,43,550,8/21/2012,R,OPTIMUM TECHNOLOGY TRANSFER   
2012-OCT,Central Services,Fully rechargeable Overheads,Learning and Development                ,B06146,Employees                     ,Indirect Employee Expenses    ,AB56,Internal Training Costs,44,"1,800.00",9/30/2012,R,CROFT MANAGEMENT CENTRE       
2012-OCT,Central Services,Fully rechargeable Overheads,Learning and Development                ,B06146,Employees                     ,Indirect Employee Expenses    ,AB57,External Training Costs,45,995,7/6/2012,R,AAA TRAINING CO. LTD.         
2012-OCT,Central Services,Fully rechargeable Overheads,Learning and Development                ,B06146,Employees                     ,Indirect Employee Expenses    ,AB57,External Training Costs,46,660,7/6/2012,R,AAA TRAINING CO. LTD.         
2012-OCT,Central Services,Fully rechargeable Overheads,Learning and Development                ,B06146,Employees                     ,Indirect Employee Expenses    ,AB57,External Training Costs,47,500,7/13/2012,R,GRANT RICHES COMM. CONSUL.    
2012-OCT,Central Services,Fully rechargeable Overheads,Learning and Development                ,B06146,Employees                     ,Indirect Employee Expenses    ,AB57,External Training Costs,48,500,10/1/2012,R,GRANT RICHES COMM. CONSUL.    
2012-OCT,Central Services,Fully rechargeable Overheads,Learning and Development                ,B06146,Supplies & Services           ,Grants and Subscriptions      ,DJ04,Subscriptions,49,"3,100.00",9/1/2012,R,EMPLOYER'S FORUM ON DISABILIT 
2012-OCT,Central Services,Fully rechargeable Overheads,Learning and Development                ,B06146,Third Party Payments          ,Private Contractors           ,EH10,Contract Payments,50,"2,134.47",7/20/2012,R,PPC WORLDWIDE                 
2012-OCT,CS -Oth Operating Inc & Expend,Trading A/c Surpluses/Deficits,CHAS Scheme                             ,B06150,Premises Related Expenditure  ,Rents                         ,BC03,Room/venue rental hire,51,"-1,950.00",10/16/2012,R,BSI                           
2012-OCT,CS -Oth Operating Inc & Expend,Trading A/c Surpluses/Deficits,CHAS Scheme                             ,B06150,Premises Related Expenditure  ,Rents                         ,BC03,Room/venue rental hire,52,"-1,950.00",10/16/2012,R,BSI                           
2012-OCT,CS -Oth Operating Inc & Expend,Trading A/c Surpluses/Deficits,CHAS Scheme                             ,B06150,Supplies & Services           ,Services                      ,DF88,Assessor Fees,53,"1,070.00",9/24/2012,R,REDACTED
2012-OCT,CS -Oth Operating Inc & Expend,Trading A/c Surpluses/Deficits,CHAS Scheme                             ,B06150,Supplies & Services           ,Services                      ,DF88,Assessor Fees,54,"2,220.00",9/27/2012,R,REDACTED
2012-OCT,CS -Oth Operating Inc & Expend,Trading A/c Surpluses/Deficits,CHAS Scheme                             ,B06150,Supplies & Services           ,Services                      ,DF88,Assessor Fees,55,"1,103.00",9/24/2012,R,REDACTED
2012-OCT,CS -Oth Operating Inc & Expend,Trading A/c Surpluses/Deficits,CHAS Scheme                             ,B06150,Supplies & Services           ,Services                      ,DF88,Assessor Fees,56,642,9/28/2012,R,REDACTED
2012-OCT,CS -Oth Operating Inc & Expend,Trading A/c Surpluses/Deficits,CHAS Scheme                             ,B06150,Supplies & Services           ,Services                      ,DF88,Assessor Fees,57,"1,244.00",9/27/2012,R,REDACTED
2012-OCT,CS -Oth Operating Inc & Expend,Trading A/c Surpluses/Deficits,CHAS Scheme                             ,B06150,Supplies & Services           ,Services                      ,DF88,Assessor Fees,58,"3,958.00",10/1/2012,R,ARC ASSOCIATES (UK)           
2012-OCT,CS -Oth Operating Inc & Expend,Trading A/c Surpluses/Deficits,CHAS Scheme                             ,B06150,Supplies & Services           ,Services                      ,DF88,Assessor Fees,59,"2,166.00",9/28/2012,R,ALIMOR SAFETY LTD             
2012-OCT,CS -Oth Operating Inc & Expend,Trading A/c Surpluses/Deficits,CHAS Scheme                             ,B06150,Supplies & Services           ,Services                      ,DF88,Assessor Fees,60,642,9/30/2012,R,REDACTED
2012-OCT,CS -Oth Operating Inc & Expend,Trading A/c Surpluses/Deficits,CHAS Scheme                             ,B06150,Supplies & Services           ,Services                      ,DF88,Assessor Fees,61,"2,387.00",9/30/2012,R,SOUTH EAST HEALTH & SAFETY LTD
2012-OCT,CS -Oth Operating Inc & Expend,Trading A/c Surpluses/Deficits,CHAS Scheme                             ,B06150,Supplies & Services           ,Services                      ,DF88,Assessor Fees,62,"1,914.00",9/30/2012,R,REDACTED
2012-OCT,CS -Oth Operating Inc & Expend,Trading A/c Surpluses/Deficits,CHAS Scheme                             ,B06150,Supplies & Services           ,Services                      ,DF88,Assessor Fees,63,"1,618.00",10/1/2012,R,MGW SAFETY SERVICES           
2012-OCT,CS -Oth Operating Inc & Expend,Trading A/c Surpluses/Deficits,CHAS Scheme                             ,B06150,Supplies & Services           ,Services                      ,DF88,Assessor Fees,64,602,9/30/2012,R,REDACTED
2012-OCT,CS -Oth Operating Inc & Expend,Trading A/c Surpluses/Deficits,CHAS Scheme                             ,B06150,Supplies & Services           ,Services                      ,DF88,Assessor Fees,65,563.85,8/31/2012,R,REDACTED
2012-OCT,CS -Oth Operating Inc & Expend,Trading A/c Surpluses/Deficits,CHAS Scheme                             ,B06150,Supplies & Services           ,Services                      ,DF88,Assessor Fees,66,682,9/30/2012,R,REDACTED
2012-OCT,CS -Oth Operating Inc & Expend,Trading A/c Surpluses/Deficits,CHAS Scheme                             ,B06150,Supplies & Services           ,Services                      ,DF88,Assessor Fees,67,"1,973.00",9/30/2012,R,REDACTED
2012-OCT,CS -Oth Operating Inc & Expend,Trading A/c Surpluses/Deficits,CHAS Scheme                             ,B06150,Supplies & Services           ,Services                      ,DF88,Assessor Fees,68,"1,338.00",9/30/2012,R,2ND NATURE SAFETY SOLUTIONS UK
2012-OCT,CS -Oth Operating Inc & Expend,Trading A/c Surpluses/Deficits,CHAS Scheme                             ,B06150,Supplies & Services           ,Services                      ,DF88,Assessor Fees,69,"2,013.00",9/25/2012,R,REDACTED
2012-OCT,CS -Oth Operating Inc & Expend,Trading A/c Surpluses/Deficits,CHAS Scheme                             ,B06150,Supplies & Services           ,Services                      ,DF88,Assessor Fees,70,515,9/30/2012,R,REDACTED
2012-OCT,CS -Oth Operating Inc & Expend,Trading A/c Surpluses/Deficits,CHAS Scheme                             ,B06150,Supplies & Services           ,Services                      ,DF88,Assessor Fees,71,"1,237.00",9/28/2012,R,WOODS CONSULTANCY SERVICES LTD
2012-OCT,CS -Oth Operating Inc & Expend,Trading A/c Surpluses/Deficits,CHAS Scheme                             ,B06150,Supplies & Services           ,Services                      ,DF88,Assessor Fees,72,769,10/1/2012,R,REDACTED
2012-OCT,CS -Oth Operating Inc & Expend,Trading A/c Surpluses/Deficits,CHAS Scheme                             ,B06150,Supplies & Services           ,Services                      ,DF88,Assessor Fees,73,983,10/7/2012,R,REDACTED
2012-OCT,CS -Oth Operating Inc & Expend,Trading A/c Surpluses/Deficits,CHAS Scheme                             ,B06150,Supplies & Services           ,Services                      ,DF88,Assessor Fees,74,"3,676.00",10/5/2012,R,REDACTED
2012-OCT,CS -Oth Operating Inc & Expend,Trading A/c Surpluses/Deficits,CHAS Scheme                             ,B06150,Supplies & Services           ,Services                      ,DF88,Assessor Fees,75,"2,122.00",10/3/2012,R,REDACTED
2012-OCT,CS -Oth Operating Inc & Expend,Trading A/c Surpluses/Deficits,CHAS Scheme                             ,B06150,Supplies & Services           ,Services                      ,DF88,Assessor Fees,76,823,9/25/2012,R,REDACTED
2012-OCT,CS -Oth Operating Inc & Expend,Trading A/c Surpluses/Deficits,CHAS Scheme                             ,B06150,Supplies & Services           ,Services                      ,DF88,Assessor Fees,77,642,10/1/2012,R,REDACTED
2012-OCT,CS -Oth Operating Inc & Expend,Trading A/c Surpluses/Deficits,CHAS Scheme                             ,B06150,Supplies & Services           ,Services                      ,DF88,Assessor Fees,78,649,10/6/2012,R,REDACTED
2012-OCT,CS -Oth Operating Inc & Expend,Trading A/c Surpluses/Deficits,CHAS Scheme                             ,B06150,Supplies & Services           ,Services                      ,DF88,Assessor Fees,79,"2,147.00",9/29/2012,R,REDACTED
2012-OCT,CS -Oth Operating Inc & Expend,Trading A/c Surpluses/Deficits,CHAS Scheme                             ,B06150,Supplies & Services           ,Services                      ,DF88,Assessor Fees,80,945.75,9/30/2012,R,REDACTED
2012-OCT,CS -Oth Operating Inc & Expend,Trading A/c Surpluses/Deficits,CHAS Scheme                             ,B06150,Supplies & Services           ,Services                      ,DF88,Assessor Fees,81,809,9/30/2012,R,REDACTED
2012-OCT,CS -Oth Operating Inc & Expend,Trading A/c Surpluses/Deficits,CHAS Scheme                             ,B06150,Supplies & Services           ,Services                      ,DF88,Assessor Fees,82,562,9/25/2012,R,REDACTED
2012-OCT,CS -Oth Operating Inc & Expend,Trading A/c Surpluses/Deficits,CHAS Scheme                             ,B06150,Supplies & Services           ,Services                      ,DF88,Assessor Fees,83,548,10/10/2012,R,REDACTED
2012-OCT,CS -Oth Operating Inc & Expend,Trading A/c Surpluses/Deficits,CHAS Scheme                             ,B06150,Supplies & Services           ,Services                      ,DF88,Assessor Fees,84,515,9/30/2012,R,REDACTED
2012-OCT,CS -Oth Operating Inc & Expend,Trading A/c Surpluses/Deficits,CHAS Scheme                             ,B06150,Supplies & Services           ,Services                      ,DF88,Assessor Fees,85,635,9/30/2012,R,REDACTED
2012-OCT,CS -Oth Operating Inc & Expend,Trading A/c Surpluses/Deficits,CHAS Scheme                             ,B06150,Supplies & Services           ,Services                      ,DF88,Assessor Fees,86,682,10/3/2012,R,REDACTED
2012-OCT,CS -Oth Operating Inc & Expend,Trading A/c Surpluses/Deficits,CHAS Scheme                             ,B06150,Supplies & Services           ,Services                      ,DF88,Assessor Fees,87,"2,477.00",9/28/2012,R,STALLARD KANE ASSOCIATES LTD  
2012-OCT,CS -Oth Operating Inc & Expend,Trading A/c Surpluses/Deficits,CHAS Scheme                             ,B06150,Supplies & Services           ,Services                      ,DF88,Assessor Fees,88,508,10/11/2012,R,REDACTED
2012-OCT,CS -Oth Operating Inc & Expend,Trading A/c Surpluses/Deficits,CHAS Scheme                             ,B06150,Supplies & Services           ,Services                      ,DF88,Assessor Fees,89,"1,531.00",10/4/2012,R,REDACTED
2012-OCT,CS -Oth Operating Inc & Expend,Trading A/c Surpluses/Deficits,CHAS Scheme                             ,B06150,Supplies & Services           ,Services                      ,DF88,Assessor Fees,90,"2,020.00",10/4/2012,R,HOLLYGLADE LTD T/A BEACONRISK 
2012-OCT,CS -Oth Operating Inc & Expend,Trading A/c Surpluses/Deficits,CHAS Scheme                             ,B06150,Supplies & Services           ,Services                      ,DF88,Assessor Fees,91,508,9/30/2012,R,REDACTED
2012-OCT,CS -Oth Operating Inc & Expend,Trading A/c Surpluses/Deficits,CHAS Scheme                             ,B06150,Supplies & Services           ,Services                      ,DF88,Assessor Fees,92,"1,357.00",10/8/2012,R,REDACTED
2012-OCT,CS -Oth Operating Inc & Expend,Trading A/c Surpluses/Deficits,CHAS Scheme                             ,B06150,Supplies & Services           ,Services                      ,DF88,Assessor Fees,93,816,7/31/2012,R,REDACTED
2012-OCT,CS -Oth Operating Inc & Expend,Trading A/c Surpluses/Deficits,CHAS Scheme                             ,B06150,Supplies & Services           ,Services                      ,DF88,Assessor Fees,94,722,8/22/2012,R,REDACTED
2012-OCT,CS -Oth Operating Inc & Expend,Trading A/c Surpluses/Deficits,CHAS Scheme                             ,B06150,Supplies & Services           ,Services                      ,DF88,Assessor Fees,95,"1,121.00",10/12/2012,R,REDACTED
2012-OCT,CS -Oth Operating Inc & Expend,Trading A/c Surpluses/Deficits,CHAS Scheme                             ,B06150,Supplies & Services           ,Services                      ,DF88,Assessor Fees,96,"1,712.00",10/15/2012,R,REDACTED
2012-OCT,CS -Oth Operating Inc & Expend,Trading A/c Surpluses/Deficits,CHAS Scheme                             ,B06150,Supplies & Services           ,Services                      ,DF88,Assessor Fees,97,"1,672.00",10/10/2012,R,REDACTED
2012-OCT,CS -Oth Operating Inc & Expend,Trading A/c Surpluses/Deficits,CHAS Scheme                             ,B06150,Supplies & Services           ,Services                      ,DF88,Assessor Fees,98,727.3,10/12/2012,R,REDACTED
2012-OCT,CS -Oth Operating Inc & Expend,Trading A/c Surpluses/Deficits,CHAS Scheme                             ,B06150,Supplies & Services           ,Services                      ,DF88,Assessor Fees,99,"4,105.00",10/1/2012,R,REDACTED
2012-OCT,CS -Oth Operating Inc & Expend,Trading A/c Surpluses/Deficits,CHAS Scheme                             ,B06150,Supplies & Services           ,Services                      ,DF88,Assessor Fees,100,595,10/14/2012,R,REDACTED
2012-OCT,CS -Oth Operating Inc & Expend,Trading A/c Surpluses/Deficits,CHAS Scheme                             ,B06150,Supplies & Services           ,Services                      ,DF88,Assessor Fees,101,"1,364.00",10/12/2012,R,REDACTED
2012-OCT,CS -Oth Operating Inc & Expend,Trading A/c Surpluses/Deficits,CHAS Scheme                             ,B06150,Supplies & Services           ,Services                      ,DF88,Assessor Fees,102,823,10/14/2012,R,REDACTED
2012-OCT,CS -Oth Operating Inc & Expend,Trading A/c Surpluses/Deficits,CHAS Scheme                             ,B06150,Supplies & Services           ,Services                      ,DF88,Assessor Fees,103,774,10/14/2012,R,REDACTED
2012-OCT,CS -Oth Operating Inc & Expend,Trading A/c Surpluses/Deficits,CHAS Scheme                             ,B06150,Supplies & Services           ,Services                      ,DF88,Assessor Fees,104,635,10/23/2012,R,REDACTED
2012-OCT,CS -Oth Operating Inc & Expend,Trading A/c Surpluses/Deficits,CHAS Scheme                             ,B06150,Supplies & Services           ,Services                      ,DF88,Assessor Fees,105,"1,331.00",10/15/2012,R,REDACTED
2012-OCT,CS -Oth Operating Inc & Expend,Trading A/c Surpluses/Deficits,CHAS Scheme                             ,B06150,Supplies & Services           ,Services                      ,DF88,Assessor Fees,106,"1,070.00",10/19/2012,R,TERN ASSOCIATES LTD           
2012-OCT,CS -Oth Operating Inc & Expend,Trading A/c Surpluses/Deficits,CHAS Scheme                             ,B06150,Supplies & Services           ,Services                      ,DF88,Assessor Fees,107,"2,148.00",9/30/2012,R,REDACTED
2012-OCT,Central Services,Fully rechargeable Overheads,Occupational Health                     ,B06152,Supplies & Services           ,Services                      ,DF14,Doctors and other fees,108,"1,428.25",9/28/2012,R,EDENRED (UK GROUP) LTD        
2012-OCT,,,CCTV (match funding)                    ,CE002EA,New Construction Conversion and Renovation,,B1,Design and Supervision - Consultants Fee,109,"2,087.28",5/3/2012,C,GOODWILL ASSOCIATES LIMITED   
2012-OCT,,,CCTV (match funding)                    ,CE002EA,New Construction Conversion and Renovation,,B1,Design and Supervision - Consultants Fee,110,"2,337.28",8/1/2012,C,GOODWILL ASSOCIATES LIMITED   
2012-OCT,,,CCTV (match funding)                    ,CE002EA,New Construction Conversion and Renovation,,B1,Design and Supervision - Consultants Fee,111,821.82,9/13/2012,C,GOODWILL ASSOCIATES LIMITED   
2012-OCT,,,CCTV (match funding)                    ,CE002EA,New Construction Conversion and Renovation,,B1,Design and Supervision - Consultants Fee,112,"2,500.00",8/1/2012,C,GOODWILL ASSOCIATES LIMITED   
2012-OCT,,,CCTV (match funding)                    ,CE002EA,New Construction Conversion and Renovation,,B1,Design and Supervision - Consultants Fee,113,"1,543.64",9/13/2012,C,GOODWILL ASSOCIATES LIMITED   
2012-OCT,,,CCTV (match funding)                    ,CE002EA,New Construction Conversion and Renovation,,B1,Design and Supervision - Consultants Fee,114,"1,393.64",10/2/2012,C,GOODWILL ASSOCIATES LIMITED   
2012-OCT,,,Disabled Facilities Grant DCLG          ,CE004RA,Other Capital Expenditure,,E1,Grants,115,"7,588.00",10/1/2012,C,REDACTED
2012-OCT,,,Disabled Facilities Grant DCLG          ,CE004RA,Other Capital Expenditure,,E1,Grants,116,"12,005.00",10/5/2012,C,ZAIMAJ CONSTRUCTION           
2012-OCT,,,Disabled Facilities Grant DCLG          ,CE004RA,Other Capital Expenditure,,E1,Grants,117,"1,347.50",10/9/2012,C,VISTA SCAPES                  
2012-OCT,,,Disabled Facilities Grant DCLG          ,CE004RA,Other Capital Expenditure,,E1,Grants,118,"9,889.50",10/10/2012,C,VISTA SCAPES                  
2012-OCT,,,Disabled Facilities Grant DCLG          ,CE004RA,Other Capital Expenditure,,E1,Grants,119,646.8,10/9/2012,C,REDACTED
2012-OCT,,,Disabled Facilities Grant DCLG          ,CE004RA,Other Capital Expenditure,,E1,Grants,120,"1,298.47",10/10/2012,C,CBS ADAPTATION                
2012-OCT,,,Disabled Facilities Grant DCLG          ,CE004RA,Other Capital Expenditure,,E1,Grants,121,824.95,10/10/2012,C,CBS ADAPTATION                
2012-OCT,,,Disabled Facilities Grant DCLG          ,CE004RA,Other Capital Expenditure,,E1,Grants,122,"5,206.00",10/10/2012,C,TBS ADAPTATIONS LTD           
2012-OCT,,,Disabled Facilities Grant DCLG          ,CE004RA,Other Capital Expenditure,,E1,Grants,123,"2,631.00",10/10/2012,C,STANNAH LIFTS SERVICE LTD     
2012-OCT,,,Disabled Facilities Grant DCLG          ,CE004RA,Other Capital Expenditure,,E1,Grants,124,703.42,10/10/2012,C,STAYING FIRST                 
2012-OCT,,,Disabled Facilities Grant DCLG          ,CE004RA,Other Capital Expenditure,,E1,Grants,125,"5,270.00",10/11/2012,C,FREEWAY LIFT SERVICES LTD     
2012-OCT,,,Disabled Facilities Grant DCLG          ,CE004RA,Other Capital Expenditure,,E1,Grants,126,"1,158.43",10/11/2012,C,STAYING FIRST                 
2012-OCT,,,Disabled Facilities Grant DCLG          ,CE004RA,Other Capital Expenditure,,E1,Grants,127,671.02,10/15/2012,C,ABLE 2 OCCUP.THERAPY SERV.LTD 
2012-OCT,,,Disabled Facilities Grant DCLG          ,CE004RA,Other Capital Expenditure,,E1,Grants,128,"6,800.00",10/16/2012,C,KINGKRAFT LTD                 
2012-OCT,,,Disabled Facilities Grant DCLG          ,CE004RA,Other Capital Expenditure,,E1,Grants,129,"7,365.00",10/19/2012,C,DAKIN CONSTRUCTION LTD        
2012-OCT,,,Disabled Facilities Grant DCLG          ,CE004RA,Other Capital Expenditure,,E1,Grants,130,"4,377.00",10/19/2012,C,TLC STAIRLIFTS                
2012-OCT,,,Disabled Facilities Grant DCLG          ,CE004RA,Other Capital Expenditure,,E1,Grants,131,"4,490.00",10/22/2012,C,ASCENDIT LIFTS LTD            
2012-OCT,,,Disabled Facilities Grant DCLG          ,CE004RA,Other Capital Expenditure,,E1,Grants,132,"8,160.50",10/24/2012,C,VISTA SCAPES                  
2012-OCT,,,Disabled Facilities Grant DCLG          ,CE004RA,Other Capital Expenditure,,E1,Grants,133,"6,595.00",10/24/2012,C,WEIR BUILDING SERVICES        
2012-OCT,,,Disabled Facilities Grant DCLG          ,CE004RA,Other Capital Expenditure,,E1,Grants,134,791.4,10/24/2012,C,REDACTED
2012-OCT,,,Disabled Facilities Grant DCLG          ,CE004RA,Other Capital Expenditure,,E1,Grants,135,"7,600.00",10/24/2012,C,VISTA SCAPES                  
2012-OCT,,,Disabled Facilities Grant DCLG          ,CE004RA,Other Capital Expenditure,,E1,Grants,136,"4,805.00",10/23/2012,C,ASCENDIT LIFTS LTD            
2012-OCT,,,Disabled Facilities Grant DCLG          ,CE004RA,Other Capital Expenditure,,E1,Grants,137,"1,178.90",10/23/2012,C,CBS ADAPTATION                
2012-OCT,,,Small Repairs Grant                     ,CE005RA,Other Capital Expenditure,,E1,Grants,138,713,10/16/2012,C,PATMAN ELECTRICAL CONTRACTORS 
2012-OCT,,,Small Repairs Grant                     ,CE005RA,Other Capital Expenditure,,E1,Grants,139,"1,120.00",10/16/2012,C,MMANN LOFT CONVERSIONS        
2012-OCT,,,B487 Landscape Ravensbury Park          ,CE009CA,New Construction Conversion and Renovation,,B4,Site Works - Contractor,140,737,9/27/2012,C,TAYLOR BUILDING COMPANY LTD   
2012-OCT,,,B487 Landscape Ravensbury Park          ,CE009CA,New Construction Conversion and Renovation,,B4,Site Works - Contractor,141,950,10/17/2012,C,REDDINGTON & SONS             
2012-OCT,,,Parks Investment                        ,CE013SA,New Construction Conversion and Renovation,,B4,Site Works - Contractor,142,"3,406.00",9/27/2012,C,TAYLOR BUILDING COMPANY LTD   
2012-OCT,,,Parks Investment                        ,CE013SA,New Construction Conversion and Renovation,,B4,Site Works - Contractor,143,"3,312.68",9/14/2012,C,BAYLIS LANDSCAPE CONTRACTORS  
2012-OCT,,,Parks Investment                        ,CE013SA,New Construction Conversion and Renovation,,B4,Site Works - Contractor,144,"20,511.14",9/3/2012,C,BLAKEDOWN SPORT & PLAY LTD    
2012-OCT,,,Parks Investment                        ,CE013SA,New Construction Conversion and Renovation,,B4,Site Works - Contractor,145,"3,900.00",10/5/2012,C,REDACTED
2012-OCT,,,Parks Investment                        ,CE013SA,New Construction Conversion and Renovation,,B4,Site Works - Contractor,146,"6,250.00",9/27/2012,C,TAYLOR BUILDING COMPANY LTD   
2012-OCT,,,Parks Investment                        ,CE013SA,New Construction Conversion and Renovation,,B4,Site Works - Contractor,147,"3,533.00",10/18/2012,C,ABACUS PLAYGROUNDS LTD        
2012-OCT,,,Highways bridges & structures           ,CE025FA,New Construction Conversion and Renovation,,B4,Site Works - Contractor,148,"32,500.00",4/30/2012,C,FM CONWAY LTD                 
2012-OCT,,,Highways bridges & structures           ,CE025FA,New Construction Conversion and Renovation,,B4,Site Works - Contractor,149,"87,985.11",8/30/2012,C,FM CONWAY LTD                 
2012-OCT,,,Borough Roads Maintenance               ,CE026FA,New Construction Conversion and Renovation,,B4,Site Works - Contractor,150,"8,594.16",9/28/2012,C,FM CONWAY LTD                 
2012-OCT,,,Borough Roads Maintenance               ,CE026FA,New Construction Conversion and Renovation,,B4,Site Works - Contractor,151,"28,380.09",9/28/2012,C,FM CONWAY LTD                 
2012-OCT,,,Borough Roads Maintenance               ,CE026FA,New Construction Conversion and Renovation,,B4,Site Works - Contractor,152,"9,209.71",9/28/2012,C,FM CONWAY LTD                 
2012-OCT,,,Borough Roads Maintenance               ,CE026FA,New Construction Conversion and Renovation,,B4,Site Works - Contractor,153,"58,132.96",9/28/2012,C,FM CONWAY LTD                 
2012-OCT,,,Borough Roads Maintenance               ,CE026FA,New Construction Conversion and Renovation,,B4,Site Works - Contractor,154,"9,293.33",9/28/2012,C,FM CONWAY LTD                 
2012-OCT,,,Borough Roads Maintenance               ,CE026FA,New Construction Conversion and Renovation,,B4,Site Works - Contractor,155,"22,000.00",9/28/2012,C,FM CONWAY LTD                 
2012-OCT,,,Borough Roads Maintenance               ,CE026FA,New Construction Conversion and Renovation,,B4,Site Works - Contractor,156,"10,897.43",9/28/2012,C,FM CONWAY LTD                 
2012-OCT,,,Borough Roads Maintenance               ,CE026FA,New Construction Conversion and Renovation,,B4,Site Works - Contractor,157,"32,942.16",9/28/2012,C,FM CONWAY LTD                 
2012-OCT,,,Borough Roads Maintenance               ,CE026FA,New Construction Conversion and Renovation,,B4,Site Works - Contractor,158,"135,734.67",10/9/2012,C,FM CONWAY LTD                 
2012-OCT,,,Maintain AntiSkid and Coloured          ,CE027FA,New Construction Conversion and Renovation,,B4,Site Works - Contractor,159,979.66,10/9/2012,C,FM CONWAY LTD                 
2012-OCT,,,Maintain AntiSkid and Coloured          ,CE027FA,New Construction Conversion and Renovation,,B4,Site Works - Contractor,160,"10,000.00",10/9/2012,C,FM CONWAY LTD                 
2012-OCT,,,Maintain AntiSkid and Coloured          ,CE027FA,New Construction Conversion and Renovation,,B4,Site Works - Contractor,161,"15,533.82",10/10/2012,C,FM CONWAY LTD                 
2012-OCT,,,Repairs to Footways                     ,CE029FA,New Construction Conversion and Renovation,,B4,Site Works - Contractor,162,"9,144.10",9/28/2012,C,FM CONWAY LTD                 
2012-OCT,,,Repairs to Footways                     ,CE029FA,New Construction Conversion and Renovation,,B4,Site Works - Contractor,163,"45,000.00",10/9/2012,C,FM CONWAY LTD                 
2012-OCT,,,Repairs to Footways                     ,CE029FA,New Construction Conversion and Renovation,,B4,Site Works - Contractor,164,"42,000.00",10/9/2012,C,FM CONWAY LTD                 
2012-OCT,,,Repairs to Footways                     ,CE029FA,New Construction Conversion and Renovation,,B4,Site Works - Contractor,165,"30,000.00",10/10/2012,C,FM CONWAY LTD                 
2012-OCT,,,Leisure Centre Plant & Machine          ,CE038MA,New Construction Conversion and Renovation,,B4,Site Works - Contractor,166,809.9,9/28/2012,C,MAY GURNEY LTD T/A CARTLEDGE  
2012-OCT,,,Town Centre Investment                  ,CE061FB,New Construction Conversion and Renovation,,B1,Design and Supervision - Consultants Fee,167,"1,000.00",10/16/2012,C,NETWORK RAIL INFRASTRUCTURE LT
2012-OCT,,,Street scene enhancements               ,CE066FE,New Construction Conversion and Renovation,,B1,Design and Supervision - Consultants Fee,168,"2,090.00",9/28/2012,C,MARCUS BEALE ARCHITECTS       
2012-OCT,,,Street scene enhancements               ,CE066FE,New Construction Conversion and Renovation,,B4,Site Works - Contractor,169,"3,996.00",8/31/2012,C,FIRST CHOICE FACILITIES PLC   
2012-OCT,,,Alley Gating Scheme - Fly Tip           ,CE087FA,Other Capital Expenditure,,E1,Grants,170,"1,479.60",10/22/2012,C,LYNDHURST SEVENTEEN           
2012-OCT,,,Accesibility Programme                  ,CE104FD,New Construction Conversion and Renovation,,B1,Design and Supervision - Consultants Fee,171,877.29,9/28/2012,C,HYDER CONSULTING (UK) LTD     
2012-OCT,,,School & Road Safety Campaigns          ,CE104RC,Other Capital Expenditure,,E4,TFL Other,172,"1,875.00",9/25/2012,C,BIKEWIZE MOTORCYCLE TRAINING  
2012-OCT,,,School & Road Safety Campaigns          ,CE104RC,Other Capital Expenditure,,E4,TFL Other,173,"1,493.00",10/4/2012,C,REDACTED
2012-OCT,,,School & Road Safety Campaigns          ,CE104RC,Other Capital Expenditure,,E4,TFL Other,174,625,9/28/2012,C,BLAKES DRIVER TRAINING        
2012-OCT,,,School & Road Safety Campaigns          ,CE104RC,Other Capital Expenditure,,E4,TFL Other,175,567,10/11/2012,C,BLAKES DRIVER TRAINING        
2012-OCT,,,School & Road Safety Campaigns          ,CE104RC,Other Capital Expenditure,,E4,TFL Other,176,"1,265.00",9/13/2012,C,EMC ADVERTISING GIFTS         
2012-OCT,,,Bikeability cycle training Pro          ,CE104RG,Other Capital Expenditure,,E4,TFL Other,177,585,9/26/2012,C,ROYAL BOROUGH OF KINGSTON UPON
2012-OCT,,,Morden Rd-Ravensbury-London Rd          ,CE105FE,New Construction Conversion and Renovation,,B4,Site Works - Contractor,178,"5,798.59",9/28/2012,C,FM CONWAY LTD                 
2012-OCT,,,Morden Rd-Ravensbury-London Rd          ,CE105FE,New Construction Conversion and Renovation,,B4,Site Works - Contractor,179,"3,000.00",9/28/2012,C,FM CONWAY LTD                 
2012-OCT,,,Wim TC Accessibility & Streets          ,CE106FA,New Construction Conversion and Renovation,,B3,Design and Supervision - Other Expenses,180,"1,400.00",4/19/2012,C,NETWORK RAIL INFRASTRUCTURE LT
2012-OCT,,,Wim TC Accessibility & Streets          ,CE106FA,New Construction Conversion and Renovation,,B4,Site Works - Contractor,181,"4,975.00",8/31/2012,C,FM CONWAY LTD                 
2012-OCT,,,Wim TC Accessibility & Streets          ,CE106FA,New Construction Conversion and Renovation,,B5,Site Works - Suppliers,182,"2,635.20",6/30/2012,C,GLENDALE COUNTRYSIDE LTD      
2012-OCT,,,Universal Cold Busters                  ,CE120RA,Other Capital Expenditure,,E1,Grants,183,"3,841.95",10/1/2012,C,CLIMATE ENERGY SOLUTIONS LTD  
2012-OCT,,,Universal Cold Busters                  ,CE120RA,Other Capital Expenditure,,E1,Grants,184,598.2,10/1/2012,C,CLIMATE ENERGY LTD            
2012-OCT,,,Universal Cold Busters                  ,CE120RA,Other Capital Expenditure,,E1,Grants,185,"3,231.90",10/23/2012,C,ROSEWOOD BUILD'N & MAINTENANCE
2012-OCT,,,Universal Cold Busters                  ,CE120RA,Other Capital Expenditure,,E1,Grants,186,528.48,10/23/2012,C,CLIMATE ENERGY LTD            
2012-OCT,,,Empty Homes Grant                       ,CE122RA,Other Capital Expenditure,,E1,Grants,187,"1,755.60",10/10/2012,C,T BROWN LTD                   
2012-OCT,,,Empty Homes Grant                       ,CE122RA,Other Capital Expenditure,,E1,Grants,188,"3,000.00",10/22/2012,C,REDACTED
2012-OCT,,,Empty Homes Grant                       ,CE122RA,Other Capital Expenditure,,E1,Grants,189,"4,417.46",10/22/2012,C,REDACTED
2012-OCT,,,Borough Support - Training              ,CE123RA,Other Capital Expenditure,,E4,TFL Other,190,"2,400.00",9/27/2012,C,LONDON SOUTH BANK UNIVERSITY  
2012-OCT,,,Borough Support - Training              ,CE123RA,Other Capital Expenditure,,E4,TFL Other,191,540,10/22/2012,C,TRL LIMITED                   
2012-OCT,,,Civic Centre refurbishment              ,CF001AB,New Construction Conversion and Renovation,,B4,Site Works - Contractor,192,"6,703.01",10/10/2012,C,DATA TECHNIQUES               
2012-OCT,,,IT Equip Room-Air Conditioning          ,CF004EB,New Construction Conversion and Renovation,,B4,Site Works - Contractor,193,"3,099.00",9/7/2012,C,ARCHITECTURAL METAL FIXING SER
2012-OCT,,,IT Equip Room-Air Conditioning          ,CF004EB,New Construction Conversion and Renovation,,B4,Site Works - Contractor,194,"5,087.00",9/7/2012,C,ARCHITECTURAL METAL FIXING SER
2012-OCT,,,IT Equip Room-Air Conditioning          ,CF004EB,New Construction Conversion and Renovation,,B4,Site Works - Contractor,195,"44,420.00",10/4/2012,C,COOL-THERM (UK)               
2012-OCT,,,Upgrade Boiler to Combined              ,CF018CA,New Construction Conversion and Renovation,,B4,Site Works - Contractor,196,539.58,9/4/2012,C,SALTASH ENTERPRISES LTD       
2012-OCT,,,Upgrade Boiler to Combined              ,CF018CA,New Construction Conversion and Renovation,,B4,Site Works - Contractor,197,500,9/4/2012,C,SALTASH ENTERPRISES LTD       
2012-OCT,,,St Ann's - Targeted Capital             ,CS001DA,New Construction Conversion and Renovation,,B4,Site Works - Contractor,198,"64,639.06",10/11/2012,C,R DURTNELL & SONS LTD         
2012-OCT,,,St Ann's - Targeted Capital             ,CS001DA,New Construction Conversion and Renovation,,B4,Site Works - Contractor,199,"109,189.70",9/25/2012,C,GEE CONSTRUCTION LTD          
2012-OCT,,,St Ann's - Targeted Capital             ,CS001DA,New Construction Conversion and Renovation,,B6,Site Works - Other Costs,200,"1,370.00",9/30/2012,C,EDE'S (U.K.) LTD              
2012-OCT,,,St Ann's - Targeted Capital             ,CS001DA,New Construction Conversion and Renovation,,B6,Site Works - Other Costs,201,900,9/30/2012,C,JULIUS RUTHERFOORD & CO LTD   
2012-OCT,,,St Ann's - Targeted Capital             ,CS001DA,Vehicles Plant Equipment and Machinery,,D3,Equipment,202,-630,11/22/2010,C,HILL-ROM LTD                  
2012-OCT,,,Brightwell                              ,CS004AA,New Construction Conversion and Renovation,,B4,Site Works - Contractor,203,"10,906.40",9/27/2012,C,HILL-ROM LTD                  
2012-OCT,,,Brightwell                              ,CS004AA,New Construction Conversion and Renovation,,B4,Site Works - Contractor,204,901.3,9/27/2012,C,HILL-ROM LTD                  
2012-OCT,,,Aragon expansion                        ,CS008AA,New Construction Conversion and Renovation,,B1,Design and Supervision - Consultants Fee,205,"2,450.00",8/31/2012,C,EC HARRIS LLP                 
2012-OCT,,,Aragon expansion                        ,CS008AA,New Construction Conversion and Renovation,,B1,Design and Supervision - Consultants Fee,206,"2,414.94",9/28/2012,C,EC HARRIS LLP                 
2012-OCT,,,Aragon expansion                        ,CS008AA,New Construction Conversion and Renovation,,B1,Design and Supervision - Consultants Fee,207,"2,673.18",9/28/2012,C,EC HARRIS LLP                 
2012-OCT,,,Aragon expansion                        ,CS008AA,New Construction Conversion and Renovation,,B4,Site Works - Contractor,208,"197,282.73",9/24/2012,C,THOMAS SINDEN CONSTRUCTION LTD
2012-OCT,,,Aragon expansion                        ,CS008AA,New Construction Conversion and Renovation,,B4,Site Works - Contractor,209,"102,042.68",10/19/2012,C,THOMAS SINDEN CONSTRUCTION LTD
2012-OCT,,,Aragon - Boiler Replacement             ,CS008AD,New Construction Conversion and Renovation,,B4,Site Works - Contractor,210,"30,000.00",9/24/2012,C,THOMAS SINDEN CONSTRUCTION LTD
2012-OCT,,,St Mary's expansion                     ,CS008RA,New Construction Conversion and Renovation,,B1,Design and Supervision - Consultants Fee,211,"4,681.27",10/24/2012,C,ATKINS LIMITED                
2012-OCT,,,Pupil Growth - Unallocated              ,CS008SA,New Construction Conversion and Renovation,,B1,Design and Supervision - Consultants Fee,212,"5,415.50",9/17/2012,C,ATKINS LIMITED                
2012-OCT,,,Pupil Growth - Unallocated              ,CS008SA,New Construction Conversion and Renovation,,B2,Design and Supervision - Site Surveys,213,"1,432.50",7/9/2012,C,JMP CONSULTANTS LTD           
2012-OCT,,,Pupil Growth - Unallocated              ,CS008SA,New Construction Conversion and Renovation,,B2,Design and Supervision - Site Surveys,214,"1,027.50",7/9/2012,C,JMP CONSULTANTS LTD           
2012-OCT,,,Pupil Growth - Unallocated              ,CS008SA,New Construction Conversion and Renovation,,B6,Site Works - Other Costs,215,"1,326.00",9/18/2012,C,LSG (EUROPE) LTD              
2012-OCT,,,Pupil Growth - Unallocated              ,CS008SA,New Construction Conversion and Renovation,,B6,Site Works - Other Costs,216,595,9/30/2012,C,EDE'S (U.K.) LTD              
2012-OCT,,,Pupil Growth - Unallocated              ,CS008SA,Vehicles Plant Equipment and Machinery,,D3,Equipment,217,"4,990.00",10/4/2012,C,MM-ICT LIMITED                
2012-OCT,,,All Saints/ South Wim YCC exp           ,CS008SB,New Construction Conversion and Renovation,,B4,Site Works - Contractor,218,"3,524.00",10/22/2012,C,GEE CONSTRUCTION LTD          
2012-OCT,,,All Saints/ South Wim YCC exp           ,CS008SB,New Construction Conversion and Renovation,,B6,Site Works - Other Costs,219,500,9/30/2012,C,JULIUS RUTHERFOORD & CO LTD   
2012-OCT,,,Benedict expansion                      ,CS009AA,New Construction Conversion and Renovation,,B5,Site Works - Suppliers,220,"2,500.00",9/25/2012,C,IZZYTEA LTD                   
2012-OCT,,,Temp classroom for 5 schools            ,CS009EA,New Construction Conversion and Renovation,,B1,Design and Supervision - Consultants Fee,221,"2,568.00",9/17/2012,C,ATKINS LIMITED                
2012-OCT,,,Hollymount Permanent Expansion          ,CS011AA,Vehicles Plant Equipment and Machinery,,D3,Equipment,222,"1,707.75",9/21/2012,C,SCHOOL BUSINESS SERVICES LTD  
2012-OCT,,,Joseph Hood Permanent Expansn           ,CS012AA,New Construction Conversion and Renovation,,B1,Design and Supervision - Consultants Fee,223,"19,094.00",10/9/2012,C,HAVERSTOCK ASSOCIATES LLP     
2012-OCT,,,Joseph Hood Permanent Expansn           ,CS012AA,New Construction Conversion and Renovation,,B4,Site Works - Contractor,224,"120,000.00",10/12/2012,C,GEE CONSTRUCTION LTD          
2012-OCT,,,Joseph Hood Permanent Expansn           ,CS012AA,New Construction Conversion and Renovation,,B5,Site Works - Suppliers,225,500,9/25/2012,C,IZZYTEA LTD                   
2012-OCT,,,Joseph Hood Permanent Expansn           ,CS012AA,New Construction Conversion and Renovation,,B5,Site Works - Suppliers,226,"1,000.00",9/25/2012,C,IZZYTEA LTD                   
2012-OCT,,,Joseph Hood Permanent Expansn           ,CS012AA,New Construction Conversion and Renovation,,B6,Site Works - Other Costs,227,700,9/30/2012,C,JULIUS RUTHERFOORD & CO LTD   
2012-OCT,,,Garden PCP                              ,CS013AA,New Construction Conversion and Renovation,,B4,Site Works - Contractor,228,"261,373.11",9/27/2012,C,R DURTNELL & SONS LTD         
2012-OCT,,,Garden PCP                              ,CS013AA,New Construction Conversion and Renovation,,B4,Site Works - Contractor,229,"161,387.25",10/19/2012,C,R DURTNELL & SONS LTD         
2012-OCT,,,Garden PCP                              ,CS013AA,New Construction Conversion and Renovation,,B6,Site Works - Other Costs,230,"1,400.00",9/30/2012,C,JULIUS RUTHERFOORD & CO LTD   
2012-OCT,,,Links - Security&Lighting&Heat          ,CS014AB,New Construction Conversion and Renovation,,B4,Site Works - Contractor,231,800,10/8/2012,C,R DURTNELL & SONS LTD         
2012-OCT,,,Links - Security&Lighting&Heat          ,CS014AB,New Construction Conversion and Renovation,,B4,Site Works - Contractor,232,"38,572.00",10/8/2012,C,R DURTNELL & SONS LTD         
2012-OCT,,,William Morris PCP                      ,CS016AA,New Construction Conversion and Renovation,,B4,Site Works - Contractor,233,"111,592.73",10/24/2012,C,MANSELL CONSTRUCTION SERVICES 
2012-OCT,,,Bond - Imprvmnts to corridors           ,CS017AB,New Construction Conversion and Renovation,,B4,Site Works - Contractor,234,"1,536.64",9/18/2012,C,CITY SQ SOLUTIONS LTD         
2012-OCT,,,Gorringe Park expansion                 ,CS018AB,New Construction Conversion and Renovation,,B1,Design and Supervision - Consultants Fee,235,"15,363.00",9/19/2012,C,HAVERSTOCK ASSOCIATES LLP     
2012-OCT,,,Gorringe Park expansion                 ,CS018AB,New Construction Conversion and Renovation,,B1,Design and Supervision - Consultants Fee,236,"15,000.00",10/1/2012,C,THE HOCA PRACTISE             
2012-OCT,,,Gorringe Park expansion                 ,CS018AB,New Construction Conversion and Renovation,,B4,Site Works - Contractor,237,"138,000.00",10/12/2012,C,GEE CONSTRUCTION LTD          
2012-OCT,,,Gorringe Park expansion                 ,CS018AB,New Construction Conversion and Renovation,,B6,Site Works - Other Costs,238,900,9/30/2012,C,JULIUS RUTHERFOORD & CO LTD   
2012-OCT,,,Hillcross - Fire alarm & roof           ,CS020AE,New Construction Conversion and Renovation,,B1,Design and Supervision - Consultants Fee,239,"3,825.05",9/28/2012,C,EC HARRIS LLP                 
2012-OCT,,,Pelham - Window Replacement             ,CS023AD,New Construction Conversion and Renovation,,B1,Design and Supervision - Consultants Fee,240,"3,075.79",9/28/2012,C,EC HARRIS LLP                 
2012-OCT,,,Stanford-Imprvement to toilets          ,CS024AC,New Construction Conversion and Renovation,,B4,Site Works - Contractor,241,"26,766.00",10/2/2012,C,R DURTNELL & SONS LTD         
2012-OCT,,,Cricket Grn Exp-Chapel Orchard          ,CS026AC,New Construction Conversion and Renovation,,B1,Design and Supervision - Consultants Fee,242,"3,484.88",7/9/2012,C,EC HARRIS LLP                 
2012-OCT,,,Abbotsbury-playgrnd Improvemts          ,CS028AB,New Construction Conversion and Renovation,,B4,Site Works - Contractor,243,"29,246.71",10/2/2012,C,R DURTNELL & SONS LTD         
2012-OCT,,,Dundonald expansion                     ,CS031AC,New Construction Conversion and Renovation,,B1,Design and Supervision - Consultants Fee,244,"2,269.00",10/10/2012,C,HAVERSTOCK ASSOCIATES LLP     
2012-OCT,,,Dundonald expansion                     ,CS031AC,New Construction Conversion and Renovation,,B4,Site Works - Contractor,245,"9,312.75",10/12/2012,C,EXTRASPACE (NI) LTD           
2012-OCT,,,St Ann's Primary Phase                  ,CS032AA,New Construction Conversion and Renovation,,B1,Design and Supervision - Consultants Fee,246,"21,231.71",9/28/2012,C,EC HARRIS LLP                 
2012-OCT,,,St Anns - Primary                       ,CS032AB,New Construction Conversion and Renovation,,B4,Site Works - Contractor,247,680.34,10/1/2012,C,PORTAKABIN LIMITED            
2012-OCT,,,Wimbledon Chase DCSF grant              ,CS033AA,New Construction Conversion and Renovation,,B2,Design and Supervision - Site Surveys,248,"2,000.00",9/28/2012,C,CONISBEE                      
2012-OCT,,,Poplar Permanent Expansion              ,CS034AB,New Construction Conversion and Renovation,,B1,Design and Supervision - Consultants Fee,249,"11,187.00",10/10/2012,C,HAVERSTOCK ASSOCIATES LLP     
2012-OCT,,,Rutlish                                 ,CS035AA,New Construction Conversion and Renovation,,B4,Site Works - Contractor,250,"20,390.00",9/25/2012,C,EXTRASPACE (NI) LTD           
2012-OCT,,,Liberty Primary School                  ,CS036AA,New Construction Conversion and Renovation,,B1,Design and Supervision - Consultants Fee,251,"1,928.57",9/28/2012,C,EC HARRIS LLP                 
2012-OCT,,,Liberty Primary School                  ,CS036AA,New Construction Conversion and Renovation,,B4,Site Works - Contractor,252,"31,265.70",9/21/2012,C,MOY CONSTRUCTION CO LTD       
2012-OCT,,,Liberty Primary School                  ,CS036AA,New Construction Conversion and Renovation,,B5,Site Works - Suppliers,253,674.94,10/1/2012,C,BLUE CUBE CONNECTIONS LTD     
2012-OCT,,,Liberty expansion                       ,CS036AB,New Construction Conversion and Renovation,,B4,Site Works - Contractor,254,"245,840.70",9/24/2012,C,R DURTNELL & SONS LTD         
2012-OCT,,,Liberty expansion                       ,CS036AB,New Construction Conversion and Renovation,,B5,Site Works - Suppliers,255,"1,500.00",9/25/2012,C,IZZYTEA LTD                   
2012-OCT,,,Liberty expansion                       ,CS036AB,New Construction Conversion and Renovation,,B5,Site Works - Suppliers,256,500,9/25/2012,C,IZZYTEA LTD                   
2012-OCT,,,Adventure Playground                    ,CS038AB,New Construction Conversion and Renovation,,B1,Design and Supervision - Consultants Fee,257,"5,046.22",9/4/2012,C,CURL LA TOURELLE ARCHITECTS   
2012-OCT,,,Adventure Playground                    ,CS038AB,New Construction Conversion and Renovation,,B4,Site Works - Contractor,258,"1,335.80",3/7/2012,C,THEORIES LANDSCAPES           
2012-OCT,,,Devolved Formula Capital                ,CS041SA,New Construction Conversion and Renovation,,B4,Site Works - Contractor,259,"51,865.66",9/25/2012,C,EXTRASPACE (NI) LTD           
2012-OCT,,,Holy Trinity Expansion                  ,CS044RA,New Construction Conversion and Renovation,,B1,Design and Supervision - Consultants Fee,260,"2,561.94",9/25/2012,C,CURL LA TOURELLE ARCHITECTS   
2012-OCT,,,Holy Trinity Expansion                  ,CS044RA,New Construction Conversion and Renovation,,B1,Design and Supervision - Consultants Fee,261,"5,123.89",10/4/2012,C,CURL LA TOURELLE ARCHITECTS   
2012-OCT,,,Holy Trinity Expansion                  ,CS044RA,New Construction Conversion and Renovation,,B1,Design and Supervision - Consultants Fee,262,"5,123.89",10/23/2012,C,CURL LA TOURELLE ARCHITECTS   
2012-OCT,,,Singlegate expansion                    ,CS049AA,Acquisition of Land and Existing Buildings,,A1,Purchase,263,"2,587,500.00",8/22/2012,C,CRESCENT LAW                  
2012-OCT,,,Singlegate expansion                    ,CS049AA,New Construction Conversion and Renovation,,B4,Site Works - Contractor,264,"37,013.00",9/28/2012,C,MANSELL CONSTRUCTION SERVICES 
2012-OCT,,,Singlegate expansion                    ,CS049AA,New Construction Conversion and Renovation,,B4,Site Works - Contractor,265,"27,987.00",9/28/2012,C,MANSELL CONSTRUCTION SERVICES 
2012-OCT,,,Wimbledon Park expansion                ,CS050AA,New Construction Conversion and Renovation,,B1,Design and Supervision - Consultants Fee,266,"2,400.00",9/29/2012,C,SYNERGY CPC LLP               
2012-OCT,,,Wimbledon Park expansion                ,CS050AA,New Construction Conversion and Renovation,,B2,Design and Supervision - Site Surveys,267,850,9/30/2012,C,MIDDLEMARCH ENVIRONMENTAL LTD 
2012-OCT,,,Wimbledon Park expansion                ,CS050AA,New Construction Conversion and Renovation,,B4,Site Works - Contractor,268,"334,144.10",10/1/2012,C,GEE CONSTRUCTION LTD          
2012-OCT,,,Wimbledon Park expansion                ,CS050AA,New Construction Conversion and Renovation,,B6,Site Works - Other Costs,269,800,9/30/2012,C,JULIUS RUTHERFOORD & CO LTD   
2012-OCT,,,Schools Access Initiative Inc           ,CS050SA,New Construction Conversion and Renovation,,B4,Site Works - Contractor,270,"7,371.25",9/21/2012,C,MOY CONSTRUCTION CO LTD       
2012-OCT,,,Merton Pk- Entrance adaptation          ,CS052AB,New Construction Conversion and Renovation,,B4,Site Works - Contractor,271,"6,673.00",10/2/2012,C,R DURTNELL & SONS LTD         
2012-OCT,,,The Sherwood - Roof repairs             ,CS053AB,New Construction Conversion and Renovation,,B4,Site Works - Contractor,272,"37,250.00",10/2/2012,C,R DURTNELL & SONS LTD         
2012-OCT,,,Priory School bulge class               ,CS086RB,New Construction Conversion and Renovation,,B4,Site Works - Contractor,273,"2,201.82",10/12/2012,C,EXTRASPACE (NI) LTD           
2012-OCT,,,IT Equipment                            ,CT006EA,Vehicles Plant Equipment and Machinery,,D3,Equipment,274,583.2,9/19/2012,C,SPECIALIST COMPUTER CENT. PLC 
2012-OCT,,,IT Equipment                            ,CT006EA,Vehicles Plant Equipment and Machinery,,D3,Equipment,275,"2,288.50",9/27/2012,C,SPECIALIST COMPUTER CENT. PLC 
2012-OCT,,,IT Equipment                            ,CT006EA,Vehicles Plant Equipment and Machinery,,D3,Equipment,276,"1,675.00",9/13/2012,C,SPECIALIST COMPUTER CENT. PLC 
2012-OCT,,,IT Equipment                            ,CT006EA,Other Capital Expenditure,,E3,Miscellaneous Capital Expenditure,277,"1,050.00",8/28/2012,C,PROCESSFLOWS UK LTD           
2012-OCT,,,IT Strategy - unallocated               ,CT007EW,Vehicles Plant Equipment and Machinery,,D3,Equipment,278,"26,460.00",10/23/2012,C,INCOM TELECOMMUNICATIONS      
2012-OCT,,,IT Strategy - unallocated               ,CT007EW,Other Capital Expenditure,,E3,Miscellaneous Capital Expenditure,279,"1,380.00",9/30/2012,C,NETWORK SOLUTIONS INC         
2012-OCT,,,IT Strategy - unallocated               ,CT007EW,Other Capital Expenditure,,E3,Miscellaneous Capital Expenditure,280,540,9/30/2012,C,NETWORK SOLUTIONS INC         
2012-OCT,,,IT Strategy - unallocated               ,CT007EW,Other Capital Expenditure,,E3,Miscellaneous Capital Expenditure,281,"1,260.00",9/30/2012,C,NETWORK SOLUTIONS INC         
2012-OCT,,,Stability Networks                      ,CT012ED,Vehicles Plant Equipment and Machinery,,D3,Equipment,282,"2,500.00",8/31/2012,C,FORDWAY LTD                   
2012-OCT,,,Stability Networks                      ,CT012ED,Vehicles Plant Equipment and Machinery,,D3,Equipment,283,"2,000.00",10/22/2012,C,FORDWAY LTD                   
2012-OCT,,,Stability Networks                      ,CT012ED,Other Capital Expenditure,,E3,Miscellaneous Capital Expenditure,284,"1,900.00",9/20/2012,C,CISILION LTD                  
2012-OCT,,,Replacement parking system              ,CT012EF,Vehicles Plant Equipment and Machinery,,D5,Software,285,894.8,10/4/2012,C,IMPERIAL CIVIL ENFORC.SOLUT.  
2012-OCT,,,Replacement parking system              ,CT012EF,Vehicles Plant Equipment and Machinery,,D5,Software,286,874.8,10/4/2012,C,IMPERIAL CIVIL ENFORC.SOLUT.  
2012-OCT,,,Proactis to Carefirst link              ,CT012EJ,Vehicles Plant Equipment and Machinery,,D5,Software,287,"1,600.00",9/16/2012,C,UNISERVE CONSULTING LIMITED   
2012-OCT,,,Proactis to Carefirst link              ,CT012EJ,Vehicles Plant Equipment and Machinery,,D5,Software,288,"4,400.00",12/20/2012,C,UNISERVE CONSULTING LIMITED   
2012-OCT,Central Services,Local Tax Collection,Local Taxation Services                 ,E02100,Supplies & Services           ,Clothing Unfrms Laundry       ,DC02,Clothing & Uniforms,289,518,9/26/2012,R,KELTIC CLOTHING LTD           
2012-OCT,Central Services,Local Tax Collection,Local Taxation Services                 ,E02100,Supplies & Services           ,Clothing Unfrms Laundry       ,DC02,Clothing & Uniforms,290,777,9/26/2012,R,KELTIC CLOTHING LTD           
2012-OCT,Central Services,Local Tax Collection,Local Taxation Services                 ,E02100,Supplies & Services           ,Services                      ,DF09,Miscellaneous Fees,291,"13,290.00",5/22/2012,R,WILLOW BID LTD                
2012-OCT,Central Services,Local Tax Collection,Local Taxation Services                 ,E02100,Supplies & Services           ,Comms and Computing           ,DG09,Computer Purchases - Misc,292,"3,475.00",10/16/2012,R,MAG:NET SOLUTIONS             
2012-OCT,Central Services,Local Tax Collection,Local Taxation Bailiffs                 ,E02101,Supplies & Services           ,Services                      ,DF18,Bailiffs' fees,293,595,10/16/2012,R,GREASBY'S AUCTION ROOMS       
2012-OCT,Central Services,Local Tax Collection,Local Taxation Bailiffs                 ,E02101,Supplies & Services           ,Services                      ,DF18,Bailiffs' fees,294,521.25,10/24/2012,R,GREASBY'S AUCTION ROOMS       
2012-OCT,Housing Services,Housing Benefit Administration,Benefits Administration                 ,E02120,Supplies & Services           ,Comms and Computing           ,DG09,Computer Purchases - Misc,295,"1,084.61",8/20/2012,R,CIVICA UK LIMITED             
2012-OCT,Central Services,Fully rechargeable Overheads,Payroll                                 ,E02140,Supplies & Services           ,Comms and Computing           ,DG02,Software Licences,296,715,9/28/2012,R,TMP WORLDWIDE LTD             
2012-OCT,Central Services,Fully rechargeable Overheads,Payroll                                 ,E02140,Supplies & Services           ,Comms and Computing           ,DG02,Software Licences,297,600,9/28/2012,R,TMP WORLDWIDE LTD             
2012-OCT,Central Services,Fully rechargeable Overheads,Payroll                                 ,E02140,Supplies & Services           ,Comms and Computing           ,DG02,Software Licences,298,715,10/25/2012,R,TMP WORLDWIDE LTD             
2012-OCT,Central Services,Fully rechargeable Overheads,Payroll                                 ,E02140,Third Party Payments          ,Private Contractors           ,EH10,Contract Payments,299,"78,546.97",10/1/2012,R,LONDON BOROUGH OF SUTTON      
2012-OCT,Central Services,Fully rechargeable Overheads,Civic Centre                            ,E02222,Premises Related Expenditure  ,RepairsAlterations&MtceOfBldgs,BA01,DDM - General Building,300,698,9/18/2012,R,FLAGPOLE EXPRESS              
2012-OCT,Central Services,Fully rechargeable Overheads,Civic Centre                            ,E02222,Premises Related Expenditure  ,RepairsAlterations&MtceOfBldgs,BA29,Build Maint Mgt Fees,301,"1,923.60",10/16/2012,R,UNIQUE OFFICE SOLUTIONS LTD   
2012-OCT,Central Services,Fully rechargeable Overheads,Civic Centre                            ,E02222,Premises Related Expenditure  ,RepairsAlterations&MtceOfBldgs,BA29,Build Maint Mgt Fees,302,961.8,10/16/2012,R,UNIQUE OFFICE SOLUTIONS LTD   
2012-OCT,Central Services,Fully rechargeable Overheads,Civic Centre                            ,E02222,Premises Related Expenditure  ,RepairsAlterations&MtceOfBldgs,BA29,Build Maint Mgt Fees,303,570.04,10/12/2012,R,JAYS CASH & CARRY GLASS       
2012-OCT,Central Services,Fully rechargeable Overheads,Civic Centre                            ,E02222,Premises Related Expenditure  ,RepairsAlterations&MtceOfBldgs,BA29,Build Maint Mgt Fees,304,699.36,10/16/2012,R,UNIQUE OFFICE SOLUTIONS LTD   
2012-OCT,Central Services,Fully rechargeable Overheads,Civic Centre                            ,E02222,Premises Related Expenditure  ,RepairsAlterations&MtceOfBldgs,BA29,Build Maint Mgt Fees,305,"1,075.89",10/16/2012,R,UNIQUE OFFICE SOLUTIONS LTD   
2012-OCT,Central Services,Fully rechargeable Overheads,Civic Centre                            ,E02222,Premises Related Expenditure  ,RepairsAlterations&MtceOfBldgs,BA29,Build Maint Mgt Fees,306,837.43,10/16/2012,R,UNIQUE OFFICE SOLUTIONS LTD   
2012-OCT,Central Services,Fully rechargeable Overheads,Civic Centre                            ,E02222,Premises Related Expenditure  ,RepairsAlterations&MtceOfBldgs,BA29,Build Maint Mgt Fees,307,700,10/18/2012,R,UNIQUE OFFICE SOLUTIONS LTD   
2012-OCT,Central Services,Fully rechargeable Overheads,Civic Centre                            ,E02222,Premises Related Expenditure  ,RepairsAlterations&MtceOfBldgs,BA29,Build Maint Mgt Fees,308,813.92,10/23/2012,R,NETWORK BLINDS LIMITED        
2012-OCT,Central Services,Fully rechargeable Overheads,Civic Centre                            ,E02222,Premises Related Expenditure  ,RepairsAlterations&MtceOfBldgs,BA29,Build Maint Mgt Fees,309,"4,280.00",10/24/2012,R,KH FLOORING LTD               
2012-OCT,Central Services,Fully rechargeable Overheads,Civic Centre                            ,E02222,Premises Related Expenditure  ,Cleaning and Domestic Supplies,BH01,Cleaning Materials,310,510.6,9/26/2012,R,GREENHAM TRADING LTD          
2012-OCT,Central Services,Fully rechargeable Overheads,Civic Centre                            ,E02222,Premises Related Expenditure  ,Cleaning and Domestic Supplies,BH01,Cleaning Materials,311,510.6,9/6/2012,R,GREENHAM                      
2012-OCT,Central Services,Fully rechargeable Overheads,Civic Centre                            ,E02222,Premises Related Expenditure  ,Cleaning and Domestic Supplies,BH01,Cleaning Materials,312,510.6,10/17/2012,R,GREENHAM                      
2012-OCT,Central Services,Fully rechargeable Overheads,Civic Centre                            ,E02222,Premises Related Expenditure  ,Cleaning and Domestic Supplies,BH02,Window Cleaning,313,552.19,9/16/2012,R,DYNAMIQ CLEANING LIMITED      
2012-OCT,Central Services,Fully rechargeable Overheads,Civic Centre                            ,E02222,Premises Related Expenditure  ,Cleaning and Domestic Supplies,BH02,Window Cleaning,314,552.19,10/14/2012,R,DYNAMIQ CLEANING LIMITED      
2012-OCT,Central Services,Fully rechargeable Overheads,Civic Centre                            ,E02222,Premises Related Expenditure  ,Cleaning and Domestic Supplies,BH03,Cleaning Services,315,"3,089.34",9/16/2012,R,DYNAMIQ CLEANING LIMITED      
2012-OCT,Central Services,Fully rechargeable Overheads,Civic Centre                            ,E02222,Premises Related Expenditure  ,Cleaning and Domestic Supplies,BH03,Cleaning Services,316,"1,461.29",9/16/2012,R,DYNAMIQ CLEANING LIMITED      
2012-OCT,Central Services,Fully rechargeable Overheads,Civic Centre                            ,E02222,Premises Related Expenditure  ,Cleaning and Domestic Supplies,BH03,Cleaning Services,317,"1,451.44",9/16/2012,R,DYNAMIQ CLEANING LIMITED      
2012-OCT,Central Services,Fully rechargeable Overheads,Civic Centre                            ,E02222,Premises Related Expenditure  ,Cleaning and Domestic Supplies,BH03,Cleaning Services,318,"9,019.98",9/16/2012,R,DYNAMIQ CLEANING LIMITED      
2012-OCT,Central Services,Fully rechargeable Overheads,Civic Centre                            ,E02222,Premises Related Expenditure  ,Cleaning and Domestic Supplies,BH03,Cleaning Services,319,"3,089.34",10/14/2012,R,DYNAMIQ CLEANING LIMITED      
2012-OCT,Central Services,Fully rechargeable Overheads,Civic Centre                            ,E02222,Premises Related Expenditure  ,Cleaning and Domestic Supplies,BH03,Cleaning Services,320,"1,451.44",10/14/2012,R,DYNAMIQ CLEANING LIMITED      
2012-OCT,Central Services,Fully rechargeable Overheads,Civic Centre                            ,E02222,Premises Related Expenditure  ,Cleaning and Domestic Supplies,BH03,Cleaning Services,321,"9,019.98",10/14/2012,R,DYNAMIQ CLEANING LIMITED      
2012-OCT,Central Services,Fully rechargeable Overheads,Civic Centre                            ,E02222,Premises Related Expenditure  ,Cleaning and Domestic Supplies,BH03,Cleaning Services,322,"1,461.29",10/14/2012,R,DYNAMIQ CLEANING LIMITED      
2012-OCT,Central Services,Fully rechargeable Overheads,Civic Centre                            ,E02222,Supplies & Services           ,Equip Furniture/Materials     ,DA09,Equip-Purchases,323,"2,079.00",10/12/2012,R,UNIQUE OFFICE SOLUTIONS LTD   
2012-OCT,Central Services,Fully rechargeable Overheads,Civic Centre                            ,E02222,Supplies & Services           ,Equip Furniture/Materials     ,DA09,Equip-Purchases,324,"2,205.20",10/12/2012,R,UNIQUE OFFICE SOLUTIONS LTD   
2012-OCT,Central Services,Fully rechargeable Overheads,Gifford House                           ,E02223,Premises Related Expenditure  ,Cleaning and Domestic Supplies,BH03,Cleaning Services,325,841.16,9/16/2012,R,DYNAMIQ CLEANING LIMITED      
2012-OCT,Central Services,Fully rechargeable Overheads,Gifford House                           ,E02223,Premises Related Expenditure  ,Cleaning and Domestic Supplies,BH03,Cleaning Services,326,841.16,10/14/2012,R,DYNAMIQ CLEANING LIMITED      
2012-OCT,Central Services,Fully rechargeable Overheads,Morden Park House                       ,E02229,Premises Related Expenditure  ,Cleaning and Domestic Supplies,BH03,Cleaning Services,327,"1,579.28",9/16/2012,R,DYNAMIQ CLEANING LIMITED      
2012-OCT,Central Services,Fully rechargeable Overheads,Morden Park House                       ,E02229,Premises Related Expenditure  ,Cleaning and Domestic Supplies,BH03,Cleaning Services,328,"1,579.28",10/14/2012,R,DYNAMIQ CLEANING LIMITED      
2012-OCT,Central Services,Fully rechargeable Overheads,Facilities                              ,E02231,Premises Related Expenditure  ,RepairsAlterations&MtceOfBldgs,BA02,Energy Conservation,329,"1,045.00",9/25/2012,R,SYSTEMS LINK                  
2012-OCT,Central Services,Fully rechargeable Overheads,Facilities                              ,E02231,Premises Related Expenditure  ,RepairsAlterations&MtceOfBldgs,BA89,Fire Safety Risk Assessment,330,"1,080.00",8/31/2012,R,EUROPEAN ASBESTOS SERVICES    
2012-OCT,Central Services,Fully rechargeable Overheads,Facilities                              ,E02231,Premises Related Expenditure  ,RepairsAlterations&MtceOfBldgs,BA89,Fire Safety Risk Assessment,331,"1,080.00",9/18/2012,R,EUROPEAN ASBESTOS SERVICES    
2012-OCT,Central Services,Fully rechargeable Overheads,Facilities                              ,E02231,Third Party Payments          ,Private Contractors           ,EH02,Miscellaneous Hired Services,332,500,7/31/2012,R,HYDRO-X WATER TREATMENT LTD   
2012-OCT,Central Services,Fully rechargeable Overheads,Corporate Services Buildings            ,E02240,Premises Related Expenditure  ,RepairsAlterations&MtceOfBldgs,BA01,DDM - General Building,333,"1,250.00",9/28/2012,R,BUXTON ASSOCS (CONS) ENG.LTD  
2012-OCT,Central Services,Fully rechargeable Overheads,Corporate Services Buildings            ,E02240,Premises Related Expenditure  ,RepairsAlterations&MtceOfBldgs,BA01,DDM - General Building,334,600,7/10/2012,R,JAYS CASH & CARRY GLASS       
2012-OCT,Central Services,Fully rechargeable Overheads,Corporate Services Buildings            ,E02240,Premises Related Expenditure  ,RepairsAlterations&MtceOfBldgs,BA01,DDM - General Building,335,850,9/30/2012,R,TUBULAR TECHNIQUES 3D LTD     
2012-OCT,Central Services,Fully rechargeable Overheads,Corporate Services Buildings            ,E02240,Premises Related Expenditure  ,RepairsAlterations&MtceOfBldgs,BA03,DDM - Mechanical,336,"4,098.21",9/25/2012,R,COFELY LIMITED                
2012-OCT,Central Services,Fully rechargeable Overheads,Corporate Services Buildings            ,E02240,Premises Related Expenditure  ,RepairsAlterations&MtceOfBldgs,BA05,DDM - Electrical,337,"4,902.34",10/1/2012,R,ADT FIRE & SECURITY PLC       
2012-OCT,Central Services,Fully rechargeable Overheads,Corporate Services Buildings            ,E02240,Premises Related Expenditure  ,RepairsAlterations&MtceOfBldgs,BA05,DDM - Electrical,338,510.16,10/1/2012,R,ADT FIRE AND SECURITY PLC     
2012-OCT,Central Services,Fully rechargeable Overheads,Corporate Services Buildings            ,E02240,Premises Related Expenditure  ,RepairsAlterations&MtceOfBldgs,BA06,Repairs & Maintenance General,339,625,9/28/2012,R,RITEC DECORATORS LIMITED      
2012-OCT,Central Services,Fully rechargeable Overheads,Corporate Services Buildings            ,E02240,Premises Related Expenditure  ,RepairsAlterations&MtceOfBldgs,BA06,Repairs & Maintenance General,340,725,9/28/2012,R,RITEC DECORATORS LIMITED      
2012-OCT,Central Services,Fully rechargeable Overheads,Corporate Services Buildings            ,E02240,Premises Related Expenditure  ,RepairsAlterations&MtceOfBldgs,BA06,Repairs & Maintenance General,341,510,9/28/2012,R,RITEC DECORATORS LIMITED      
2012-OCT,Central Services,Fully rechargeable Overheads,Corporate Services Buildings            ,E02240,Premises Related Expenditure  ,RepairsAlterations&MtceOfBldgs,BA29,Build Maint Mgt Fees,342,515,8/31/2012,R,FIRETECNICS SYSTEMS           
2012-OCT,Central Services,Fully rechargeable Overheads,Corporate Services Buildings            ,E02240,Premises Related Expenditure  ,Energy Costs                  ,BB02,Electricity,343,"18,754.04",9/12/2012,R,KENT COUNTY COUNCIL           
2012-OCT,Central Services,Fully rechargeable Overheads,Corporate Services Buildings            ,E02240,Premises Related Expenditure  ,Energy Costs                  ,BB02,Electricity,344,"12,654.15",10/9/2012,R,KENT COUNTY COUNCIL           
2012-OCT,Central Services,Fully rechargeable Overheads,Corporate Services Buildings            ,E02240,Premises Related Expenditure  ,Energy Costs                  ,BB03,Gas (incl. Butane),345,"1,783.53",9/24/2012,R,KENT COUNTY COUNCIL           
2012-OCT,Central Services,Fully rechargeable Overheads,Corporate Services Buildings            ,E02240,Premises Related Expenditure  ,Water Services                ,BE01,Use of Water (Metered),346,946.35,9/28/2012,R,SUTTON AND EAST SURREY WATER  
2012-OCT,Cultural Env Reg&Plan Services,Open Spaces,E & R Buildings                         ,E02344,Premises Related Expenditure  ,RepairsAlterations&MtceOfBldgs,BA03,DDM - Mechanical,347,569.45,9/25/2012,R,COFELY LIMITED                
2012-OCT,Adult Social Care,Adult u65 Phys/Sensory Impair,C & H Buildings                         ,E02345,Premises Related Expenditure  ,RepairsAlterations&MtceOfBldgs,BA01,DDM - General Building,348,848.24,9/18/2012,R,COFELY LIMITED                
2012-OCT,Adult Social Care,Adult u65 Phys/Sensory Impair,C & H Buildings                         ,E02345,Premises Related Expenditure  ,RepairsAlterations&MtceOfBldgs,BA03,DDM - Mechanical,349,694.4,9/25/2012,R,COFELY LIMITED                
2012-OCT,Cultural Env Reg&Plan Services,Open Spaces,Leisure Buildings                       ,E02350,Premises Related Expenditure  ,RepairsAlterations&MtceOfBldgs,BA03,DDM - Mechanical,350,668.48,9/25/2012,R,COFELY LIMITED                
2012-OCT,Central Services,Fully rechargeable Overheads,Director of Corporate Services          ,E04060,Employees                     ,Indirect Employee Expenses    ,AB57,External Training Costs,351,"1,882.00",9/6/2012,R,NESCOT                        
2012-OCT,Central Services,Fully rechargeable Overheads,Director of Corporate Services          ,E04060,Employees                     ,Indirect Employee Expenses    ,AB57,External Training Costs,352,"2,005.00",8/24/2012,R,CIPFA                         
2012-OCT,Central Services,Fully rechargeable Overheads,Director of Corporate Services          ,E04060,Supplies & Services           ,Services                      ,DF11,Counsel's fees,353,"1,117.00",9/20/2012,R,REDACTED
2012-OCT,Central Services,Fully rechargeable Overheads,Director of Corporate Services          ,E04060,Supplies & Services           ,Services                      ,DF11,Counsel's fees,354,500,9/14/2012,R,REDACTED
2012-OCT,Central Services,Fully rechargeable Overheads,AD RESOURCES                            ,E04061,Supplies & Services           ,Services                      ,DF03,Consultants,355,"1,400.00",9/16/2012,R,UNISERVE CONSULTING LIMITED   
2012-OCT,Central Services,Fully rechargeable Overheads,AD RESOURCES                            ,E04061,Supplies & Services           ,Services                      ,DF03,Consultants,356,"2,400.00",9/16/2012,R,UNISERVE CONSULTING LIMITED   
2012-OCT,Central Services,Fully rechargeable Overheads,AD RESOURCES                            ,E04061,Supplies & Services           ,Services                      ,DF03,Consultants,357,"2,600.00",10/20/2012,R,UNISERVE CONSULTING LIMITED   
2012-OCT,Central Services,Fully rechargeable Overheads,AD RESOURCES                            ,E04061,Supplies & Services           ,Grants and Subscriptions      ,DJ04,Subscriptions,358,"3,600.00",9/11/2012,R,CIPFA BUSINESS LTD            
2012-OCT,Central Services,Democ' Representation & Mgt,Corporately Funded Items                ,E04065,Supplies & Services           ,Services                      ,DF96,LBM Legal Services                      ,359,677.29,9/18/2012,R,LOCAL GOVERNMENT ASSOCIATION  
2012-OCT,Central Services,Fully rechargeable Overheads,Internal Audit&Service Review           ,E05101,Supplies & Services           ,Services                      ,DF58,Audit Fee,360,"4,500.00",9/18/2012,R,RSM TENON                     
2012-OCT,Housing Services,Housing Benefit Administration,Benefits Investigation Section          ,E05103,Employees                     ,Indirect Employee Expenses    ,AB57,External Training Costs,361,"1,200.00",10/11/2012,R,CIPFA                         
2012-OCT,Central Services,Fully rechargeable Overheads,Corporate Accountancy                   ,E06209,Supplies & Services           ,Prntng Stnry Gen Off Exp      ,DE02,General Publications,362,544,10/9/2012,R,CIPFA                         
2012-OCT,Central Services,Fully rechargeable Overheads,Corporate Accountancy                   ,E06209,Supplies & Services           ,Prntng Stnry Gen Off Exp      ,DE02,General Publications,363,994.25,10/8/2012,R,CIPFA                         
2012-OCT,Central Services,Fully rechargeable Overheads,Corporate Accountancy                   ,E06209,Supplies & Services           ,Services                      ,DF03,Consultants,364,"1,130.15",9/21/2012,R,PRICEWATERHOUSE COOPERS       
2012-OCT,Central Services,Fully rechargeable Overheads,Corporate Accountancy                   ,E06209,Supplies & Services           ,Services                      ,DF03,Consultants,365,"14,169.32",9/25/2012,R,PRICEWATERHOUSE COOPERS       
2012-OCT,Central Services,Fully rechargeable Overheads,Corporate Accountancy                   ,E06209,Supplies & Services           ,Services                      ,DF58,Audit Fee,366,"26,950.00",10/5/2012,R,AUDIT COMMISSION              
2012-OCT,Central Services,Fully rechargeable Overheads,Treasury & Insurance                    ,E06222,Employees                     ,Direct Employee Expenses      ,AA17,Agency Staff & Casual Paymts,367,"2,250.00",9/16/2012,R,RANDSTAD FIN & PROF LTD.      
2012-OCT,Central Services,Fully rechargeable Overheads,Treasury & Insurance                    ,E06222,Employees                     ,Direct Employee Expenses      ,AA17,Agency Staff & Casual Paymts,368,"7,050.00",10/1/2012,R,RANDSTAD FIN & PROF LTD.      
2012-OCT,Central Services,Fully rechargeable Overheads,Treasury & Insurance                    ,E06222,Employees                     ,Direct Employee Expenses      ,AA17,Agency Staff & Casual Paymts,369,880,10/1/2012,R,RANDSTAD FIN & PROF LTD.      
2012-OCT,Central Services,Fully rechargeable Overheads,Treasury & Insurance                    ,E06222,Employees                     ,Direct Employee Expenses      ,AA17,Agency Staff & Casual Paymts,370,"2,200.00",10/15/2012,R,RANDSTAD FIN & PROF LTD.      
2012-OCT,Central Services,Fully rechargeable Overheads,Treasury & Insurance                    ,E06222,Employees                     ,Direct Employee Expenses      ,AA17,Agency Staff & Casual Paymts,371,"2,350.00",10/15/2012,R,RANDSTAD FIN & PROF LTD.      
2012-OCT,Central Services,Fully rechargeable Overheads,Treasury & Insurance                    ,E06222,Employees                     ,Direct Employee Expenses      ,AA17,Agency Staff & Casual Paymts,372,"2,350.00",10/23/2012,R,RANDSTAD FIN & PROF LTD.      
2012-OCT,Central Services,Fully rechargeable Overheads,Parking Cash Collect'n Contrct          ,E06225,Third Party Payments          ,Private Contractors           ,EH02,Miscellaneous Hired Services,373,"10,706.35",9/28/2012,R,BANKING AUTOMATION LTD        
2012-OCT,Central Services,Fully rechargeable Overheads,Establishments' Cash Collect'n          ,E06226,Third Party Payments          ,Private Contractors           ,EH02,Miscellaneous Hired Services,374,711.58,9/28/2012,R,LOOMIS UK LTD                 
2012-OCT,Central Services,Fully rechargeable Overheads,Establishments' Cash Collect'n          ,E06226,Third Party Payments          ,Private Contractors           ,EH02,Miscellaneous Hired Services,375,592.15,9/28/2012,R,LOOMIS UK LTD                 
2012-OCT,Central Services,Fully rechargeable Overheads,Establishments' Cash Collect'n          ,E06226,Third Party Payments          ,Private Contractors           ,EH02,Miscellaneous Hired Services,376,"3,054.63",9/17/2012,R,LOOMIS UK LTD                 
2012-OCT,Central Services,Fully rechargeable Overheads,Establishments' Cash Collect'n          ,E06226,Third Party Payments          ,Private Contractors           ,EH02,Miscellaneous Hired Services,377,"3,176.87",10/15/2012,R,LOOMIS UK LTD                 
2012-OCT,Central Services,Fully rechargeable Overheads,Service Accountancy                     ,E06227,Employees                     ,Direct Employee Expenses      ,AA17,Agency Staff & Casual Paymts,378,"1,500.00",10/1/2012,R,RANDSTAD FIN & PROF LTD.      
2012-OCT,Central Services,Fully rechargeable Overheads,Service Accountancy                     ,E06227,Employees                     ,Direct Employee Expenses      ,AA17,Agency Staff & Casual Paymts,379,"3,680.00",10/15/2012,R,RANDSTAD FIN & PROF LTD.      
2012-OCT,Central Services,Fully rechargeable Overheads,Service Accountancy                     ,E06227,Employees                     ,Direct Employee Expenses      ,AA17,Agency Staff & Casual Paymts,380,"2,250.00",10/15/2012,R,RANDSTAD FIN & PROF LTD.      
2012-OCT,Central Services,Fully rechargeable Overheads,Service Accountancy                     ,E06227,Employees                     ,Direct Employee Expenses      ,AA17,Agency Staff & Casual Paymts,381,"1,500.00",10/23/2012,R,RANDSTAD FIN & PROF LTD.      
2012-OCT,Central Services,Fully rechargeable Overheads,Service Accountancy                     ,E06227,Employees                     ,Direct Employee Expenses      ,AA17,Agency Staff & Casual Paymts,382,"3,680.00",9/10/2012,R,RANDSTAD FIN & PROF LTD.      
2012-OCT,Central Services,Fully rechargeable Overheads,Service Accountancy                     ,E06227,Employees                     ,Indirect Employee Expenses    ,AB57,External Training Costs,383,"2,011.66",8/20/2012,R,BPP PROFESSIONAL EDUCATION LTD
2012-OCT,Central Services,Fully rechargeable Overheads,AD CORPORATE GOVERNANCE               ,E10279,Supplies & Services           ,Prntng Stnry Gen Off Exp      ,DE03,Stationery,384,"3,676.50",8/31/2012,R,FINANCIAL DATA MANAGEMENT PLC 
2012-OCT,Central Services,Fully rechargeable Overheads,AD CORPORATE GOVERNANCE               ,E10279,Supplies & Services           ,Grants and Subscriptions      ,DJ04,Subscriptions,385,500,10/15/2012,R,INFORMATION COMMISSIONER      
2012-OCT,Central Services,Fully rechargeable Overheads,Legal Services                          ,E10282,Supplies & Services           ,Services                      ,DF11,Counsel's fees,386,"5,712.50",9/4/2012,R,REDACTED
2012-OCT,Central Services,Fully rechargeable Overheads,Legal Services                          ,E10282,Supplies & Services           ,Services                      ,DF28,Court Fees,387,"2,225.00",9/13/2012,R,REDACTED
2012-OCT,Central Services,Fully rechargeable Overheads,Legal Services                          ,E10282,Supplies & Services           ,Services                      ,DF28,Court Fees,388,"2,600.00",10/18/2012,R,REDACTED
2012-OCT,Central Services,Elections,Electoral Registration                  ,E10285,Supplies & Services           ,Comms and Computing           ,DG04,Postage - General,389,"3,325.70",9/17/2012,R,ROYAL MAIL GROUP LTD          
2012-OCT,Central Services,Elections,Electoral Registration                  ,E10285,Supplies & Services           ,Comms and Computing           ,DG04,Postage - General,390,"1,187.38",10/1/2012,R,ROYAL MAIL GROUP LTD          
2012-OCT,Central Services,Fully rechargeable Overheads,Shared Legal Service                    ,E10288,Supplies & Services           ,Services                      ,DF09,Miscellaneous Fees,391,510.78,9/30/2012,R,WINCANTON RECORDS MANAGEMENT  
2012-OCT,Central Services,Fully rechargeable Overheads,Shared Legal Service                    ,E10288,Supplies & Services           ,Services                      ,DF11,Counsel's fees,392,500,8/22/2012,R,REDACTED
2012-OCT,Central Services,Fully rechargeable Overheads,Shared Legal Service                    ,E10288,Supplies & Services           ,Services                      ,DF11,Counsel's fees,393,"4,550.00",8/23/2012,R,REDACTED
2012-OCT,Central Services,Fully rechargeable Overheads,Shared Legal Service                    ,E10288,Supplies & Services           ,Comms and Computing           ,DG07,Computer Software,394,"2,500.00",8/30/2012,R,DX NETWORK SERVICES           
2012-OCT,Central Services,Fully rechargeable Overheads,Shared Legal Service                    ,E10288,Supplies & Services           ,Comms and Computing           ,DG07,Computer Software,395,"9,500.00",8/30/2012,R,DX NETWORK SERVICES           
2012-OCT,Central Services,Fully rechargeable Overheads,Richmond Legal                          ,E10289,Supplies & Services           ,Services                      ,DF11,Counsel's fees,396,"1,467.40",8/1/2012,R,REDACTED
2012-OCT,Central Services,Fully rechargeable Overheads,Richmond Legal                          ,E10289,Supplies & Services           ,Services                      ,DF11,Counsel's fees,397,"2,400.00",8/2/2012,R,REDACTED
2012-OCT,Central Services,Fully rechargeable Overheads,Richmond Legal                          ,E10289,Supplies & Services           ,Services                      ,DF11,Counsel's fees,398,880,8/20/2012,R,REDACTED
2012-OCT,Central Services,Fully rechargeable Overheads,Richmond Legal                          ,E10289,Supplies & Services           ,Services                      ,DF11,Counsel's fees,399,520,7/20/2012,R,REDACTED
2012-OCT,Central Services,Fully rechargeable Overheads,Richmond Legal                          ,E10289,Supplies & Services           ,Services                      ,DF11,Counsel's fees,400,881.5,8/20/2012,R,REDACTED
2012-OCT,Central Services,Fully rechargeable Overheads,Richmond Legal                          ,E10289,Supplies & Services           ,Services                      ,DF11,Counsel's fees,401,"3,150.00",9/24/2012,R,REDACTED
2012-OCT,Central Services,Fully rechargeable Overheads,Richmond Legal                          ,E10289,Supplies & Services           ,Services                      ,DF11,Counsel's fees,402,"9,316.90",9/11/2012,R,REDACTED
2012-OCT,Central Services,Fully rechargeable Overheads,Richmond Legal                          ,E10289,Supplies & Services           ,Services                      ,DF11,Counsel's fees,403,"9,382.00",8/15/2012,R,REDACTED
2012-OCT,Central Services,Fully rechargeable Overheads,Richmond Legal                          ,E10289,Supplies & Services           ,Services                      ,DF11,Counsel's fees,404,"1,875.00",7/31/2012,R,REDACTED
2012-OCT,Central Services,Fully rechargeable Overheads,Richmond Legal                          ,E10289,Supplies & Services           ,Services                      ,DF11,Counsel's fees,405,"3,985.00",6/19/2012,R,REDACTED
2012-OCT,Central Services,Fully rechargeable Overheads,Richmond Legal                          ,E10289,Supplies & Services           ,Services                      ,DF11,Counsel's fees,406,"3,425.00",10/5/2012,R,REDACTED
2012-OCT,Central Services,Fully rechargeable Overheads,Richmond Legal                          ,E10289,Supplies & Services           ,Services                      ,DF11,Counsel's fees,407,"2,525.00",7/30/2012,R,REDACTED
2012-OCT,Central Services,Fully rechargeable Overheads,Richmond Legal                          ,E10289,Supplies & Services           ,Services                      ,DF11,Counsel's fees,408,"1,225.00",8/6/2012,R,REDACTED
2012-OCT,Central Services,Fully rechargeable Overheads,Richmond Legal                          ,E10289,Supplies & Services           ,Services                      ,DF11,Counsel's fees,409,787.5,10/5/2012,R,REDACTED
2012-OCT,Central Services,Fully rechargeable Overheads,Richmond Legal                          ,E10289,Supplies & Services           ,Services                      ,DF11,Counsel's fees,410,"3,650.00",5/18/2012,R,REDACTED
2012-OCT,Central Services,Fully rechargeable Overheads,Richmond Legal                          ,E10289,Supplies & Services           ,Services                      ,DF11,Counsel's fees,411,"1,500.00",10/15/2012,R,REDACTED
2012-OCT,Central Services,Fully rechargeable Overheads,Richmond Legal                          ,E10289,Supplies & Services           ,Services                      ,DF11,Counsel's fees,412,"1,572.50",10/4/2012,R,REDACTED
2012-OCT,Central Services,Fully rechargeable Overheads,Richmond Legal                          ,E10289,Supplies & Services           ,Services                      ,DF11,Counsel's fees,413,"1,750.00",10/9/2012,R,REDACTED
2012-OCT,Central Services,Fully rechargeable Overheads,Richmond Legal                          ,E10289,Supplies & Services           ,Services                      ,DF11,Counsel's fees,414,"5,520.00",10/4/2012,R,REDACTED
2012-OCT,Central Services,Fully rechargeable Overheads,Richmond Legal                          ,E10289,Supplies & Services           ,Services                      ,DF11,Counsel's fees,415,600,9/4/2012,R,REDACTED
2012-OCT,Central Services,Fully rechargeable Overheads,Richmond Legal                          ,E10289,Supplies & Services           ,Services                      ,DF11,Counsel's fees,416,"2,255.32",10/3/2012,R,REDACTED
2012-OCT,Central Services,Fully rechargeable Overheads,Richmond Legal                          ,E10289,Supplies & Services           ,Services                      ,DF14,Doctors and other fees,417,"1,679.50",6/7/2012,R,REDACTED
2012-OCT,Central Services,Fully rechargeable Overheads,Richmond Legal                          ,E10289,Supplies & Services           ,Services                      ,DF95,Services from Provider,418,520,7/31/2012,R,SHARPE PRITCHARD SOLICITORS   
2012-OCT,Central Services,Fully rechargeable Overheads,Richmond Legal                          ,E10289,Supplies & Services           ,Services                      ,DF95,Services from Provider,419,"1,781.00",8/31/2012,R,SHARPE PRITCHARD SOLICITORS   
2012-OCT,Central Services,Fully rechargeable Overheads,AD Business Improvement                 ,E14358,Employees                     ,Direct Employee Expenses      ,AA17,Agency Staff & Casual Paymts,420,"1,808.00",9/13/2012,R,HAYS RECRUITING EXPERTS       
2012-OCT,Central Services,Fully rechargeable Overheads,AD Business Improvement                 ,E14358,Employees                     ,Direct Employee Expenses      ,AA17,Agency Staff & Casual Paymts,421,500,9/28/2012,R,JW MANAGEMENT                 
2012-OCT,Central Services,Fully rechargeable Overheads,AD Business Improvement                 ,E14358,Employees                     ,Direct Employee Expenses      ,AA17,Agency Staff & Casual Paymts,422,"6,250.00",9/28/2012,R,JW MANAGEMENT                 
2012-OCT,Central Services,Fully rechargeable Overheads,AD Business Improvement                 ,E14358,Employees                     ,Direct Employee Expenses      ,AA17,Agency Staff & Casual Paymts,423,"2,260.00",9/28/2012,R,HAYS RECRUITING EXPERTS       
2012-OCT,Central Services,Fully rechargeable Overheads,AD Business Improvement                 ,E14358,Employees                     ,Direct Employee Expenses      ,AA17,Agency Staff & Casual Paymts,424,"2,260.00",10/8/2012,R,HAYS RECRUITING EXPERTS       
2012-OCT,Central Services,Fully rechargeable Overheads,AD Business Improvement                 ,E14358,Employees                     ,Direct Employee Expenses      ,AA17,Agency Staff & Casual Paymts,425,"2,260.00",10/12/2012,R,HAYS RECRUITING EXPERTS       
2012-OCT,Central Services,Fully rechargeable Overheads,BI IT Projects                          ,E14360,Supplies & Services           ,Services                      ,DF03,Consultants,426,"3,000.00",9/12/2012,R,CASHFRIDAY                    
2012-OCT,Central Services,Fully rechargeable Overheads,BI IT Projects                          ,E14360,Supplies & Services           ,Services                      ,DF03,Consultants,427,650,10/1/2012,R,REDACTED
2012-OCT,Central Services,Fully rechargeable Overheads,AD I&T                                  ,E14363,Employees                     ,Indirect Employee Expenses    ,AB56,Internal Training Costs,428,"1,295.00",9/28/2012,R,SCALABLE COMMUNICATIONS PLC   
2012-OCT,Central Services,Fully rechargeable Overheads,AD I&T                                  ,E14363,Supplies & Services           ,Prntng Stnry Gen Off Exp      ,DE03,Stationery,429,"1,100.00",6/28/2012,R,OVENDEN PAPERS LTD            
2012-OCT,Central Services,Fully rechargeable Overheads,AD I&T                                  ,E14363,Supplies & Services           ,Prntng Stnry Gen Off Exp      ,DE03,Stationery,430,550,6/28/2012,R,OVENDEN PAPERS LTD            
2012-OCT,Central Services,Fully rechargeable Overheads,AD I&T                                  ,E14363,Supplies & Services           ,Prntng Stnry Gen Off Exp      ,DE03,Stationery,431,660,6/28/2012,R,OVENDEN PAPERS LTD            
2012-OCT,Central Services,Fully rechargeable Overheads,AD I&T                                  ,E14363,Supplies & Services           ,Prntng Stnry Gen Off Exp      ,DE03,Stationery,432,660,6/28/2012,R,OVENDEN PAPERS LTD            
2012-OCT,Central Services,Fully rechargeable Overheads,Systems & Projects                      ,E14366,Supplies & Services           ,Services                      ,DF03,Consultants,433,750,9/26/2012,R,CASHFRIDAY                    
2012-OCT,Central Services,Fully rechargeable Overheads,Systems & Projects                      ,E14366,Supplies & Services           ,Services                      ,DF03,Consultants,434,"1,250.00",10/3/2012,R,CASHFRIDAY                    
2012-OCT,Central Services,Fully rechargeable Overheads,Systems & Projects                      ,E14366,Supplies & Services           ,Services                      ,DF03,Consultants,435,"1,000.00",10/10/2012,R,CASHFRIDAY                    
2012-OCT,Central Services,Fully rechargeable Overheads,Operations & Telecomms                  ,E14367,Supplies & Services           ,Comms and Computing           ,DG15,Network Maintenance,436,"3,433.50",9/13/2012,R,DATA INTEGRATION LTD          
2012-OCT,Central Services,Fully rechargeable Overheads,Operations & Telecomms                  ,E14367,Supplies & Services           ,Comms and Computing           ,DG53,EDI Comms,437,"1,000.00",7/13/2012,R,TIMEWATCH PLC                 
2012-OCT,Central Services,Fully rechargeable Overheads,Operations & Telecomms                  ,E14367,Supplies & Services           ,Comms and Computing           ,DG54,Corporate Telephones,438,"9,817.60",10/4/2012,R,T MOBILE (UK)                 
2012-OCT,Central Services,Fully rechargeable Overheads,Operations & Telecomms                  ,E14367,Supplies & Services           ,Comms and Computing           ,DG54,Corporate Telephones,439,"2,893.17",10/2/2012,R,COLT TELECOMMUNICATIONS       
2012-OCT,Central Services,Fully rechargeable Overheads,Operations & Telecomms                  ,E14367,Supplies & Services           ,Comms and Computing           ,DG54,Corporate Telephones,440,"1,035.00",9/29/2012,R,O2 (UK) LIMITED               
2012-OCT,Central Services,Fully rechargeable Overheads,Operations & Telecomms                  ,E14367,Supplies & Services           ,Comms and Computing           ,DG54,Corporate Telephones,441,750,9/24/2012,R,VIRGIN MEDIA PAYMENTS LTD     
2012-OCT,Central Services,Fully rechargeable Overheads,Distributed Services                    ,E14368,Supplies & Services           ,Comms and Computing           ,DG63,Software Licences - Data,442,537,3/29/2012,R,HOMETRACK DATA SYSTEMS LTD    
2012-OCT,Central Services,Fully rechargeable Overheads,Distributed Services                    ,E14368,Supplies & Services           ,Comms and Computing           ,DG63,Software Licences - Data,443,"5,130.00",10/19/2012,R,VERISEC LIMITED               
2012-OCT,Central Services,Fully rechargeable Overheads,Distributed Services                    ,E14368,Supplies & Services           ,Comms and Computing           ,DG65,Application Licences,444,650.77,8/20/2012,R,CIVICA UK LIMITED             
2012-OCT,Central Services,Fully rechargeable Overheads,Distributed Services                    ,E14368,Supplies & Services           ,Comms and Computing           ,DG65,Application Licences,445,"1,000.00",10/1/2012,R,SOCITM LTD                    
2012-OCT,Central Services,Fully rechargeable Overheads,Distributed Services                    ,E14368,Supplies & Services           ,Comms and Computing           ,DG65,Application Licences,446,"1,050.00",10/1/2012,R,SOCITM LTD                    
2012-OCT,Central Services,Fully rechargeable Overheads,Distributed Services                    ,E14368,Supplies & Services           ,Comms and Computing           ,DG65,Application Licences,447,"2,949.69",10/8/2012,R,SITE IMPROVE LTD              
2012-OCT,Central Services,Fully rechargeable Overheads,Facilities Magt Cptal Works             ,E14370,Premises Related Expenditure  ,RepairsAlterations&MtceOfBldgs,BA01,DDM - General Building,448,"1,876.00",9/20/2012,R,TREND CONTROL SYSTEMS         
2012-OCT,Cultural Env Reg&Plan Services,SMSS (Env),ES Support & Development                ,G00070,Supplies & Services           ,Equip Furniture/Materials     ,DA01,Equipment - R & M,449,"1,440.00",10/1/2012,R,SPEECHWRITE SUPPORT LTD       
2012-OCT,Cultural Env Reg&Plan Services,SMSS (Env),ES Support & Development                ,G00070,Supplies & Services           ,Expenses                      ,DH02,Conferences,450,"1,130.00",9/26/2012,R,TAVCOM LIMITED                
2012-OCT,Cultural Env Reg&Plan Services,SMSS (Env),ES Support & Development                ,G00070,Supplies & Services           ,Expenses                      ,DH02,Conferences,451,960,10/5/2012,R,MAYBO                         
2012-OCT,Cultural Env Reg&Plan Services,SMSS (Env),ES Support & Development                ,G00070,Supplies & Services           ,Expenses                      ,DH02,Conferences,452,960,10/10/2012,R,MAYBO                         
2012-OCT,Cultural Env Reg&Plan Services,SMSS (Env),ES Support & Development                ,G00070,Supplies & Services           ,Expenses                      ,DH02,Conferences,453,"2,010.00",9/30/2012,R,UNIVERSITY OF WESTMINSTER     
2012-OCT,Cultural Env Reg&Plan Services,SMSS (Env),ES Support & Development                ,G00070,Supplies & Services           ,Expenses                      ,DH02,Conferences,454,565,10/2/2012,R,THE KNOWLEDGE ACADEMY LIMITED 
2012-OCT,Cultural Env Reg&Plan Services,SMSS (Env),ES Support & Development                ,G00070,Supplies & Services           ,Expenses                      ,DH02,Conferences,455,"1,760.00",10/17/2012,R,LAND BASED TRAINING           
2012-OCT,Cultural Env Reg&Plan Services,SMSS (Env),ES Support & Development                ,G00070,Supplies & Services           ,Expenses                      ,DH02,Conferences,456,960,10/17/2012,R,MAYBO                         
2012-OCT,Cultural Env Reg&Plan Services,SMSS (Env),ES Support & Development                ,G00070,Supplies & Services           ,Expenses                      ,DH02,Conferences,457,600,10/24/2012,R,LONDON BOROUGH OF CAMDEN      
2012-OCT,Cultural Env Reg&Plan Services,SMSS (Env),ES Support & Development                ,G00070,Supplies & Services           ,Expenses                      ,DH02,Conferences,458,"3,320.00",9/30/2012,R,UNIVERSITY OF WESTMINSTER     
2012-OCT,Highways & Transport Services,Structural Maintenance,C'way & F'way Mtce                      ,G00121,Employees                     ,Direct Employee Expenses      ,AA17,Agency Staff & Casual Paymts,459,"12,324.00",9/17/2012,R,RIDGEWAY CONSULTING LTD.      
2012-OCT,Highways & Transport Services,Structural Maintenance,C'way & F'way Mtce                      ,G00121,Employees                     ,Direct Employee Expenses      ,AA17,Agency Staff & Casual Paymts,460,"1,794.00",10/23/2012,R,RIDGEWAY CONSULTING LTD.      
2012-OCT,Highways & Transport Services,Structural Maintenance,C'way & F'way Mtce                      ,G00121,Supplies & Services           ,Grants and Subscriptions      ,DJ04,Subscriptions,461,850,9/27/2012,R,CIPFA                         
2012-OCT,Highways & Transport Services,Structural Maintenance,Surf Water Drainage                     ,G00123,Third Party Payments          ,Private Contractors           ,EH56,Carriageway/Fway Maint,462,"4,323.04",9/28/2012,R,FM CONWAY LTD                 
2012-OCT,Highways & Transport Services,Structural Maintenance,Surf Water Drainage                     ,G00123,Third Party Payments          ,Private Contractors           ,EH56,Carriageway/Fway Maint,463,"1,069.27",10/9/2012,R,FM CONWAY LTD                 
2012-OCT,Highways & Transport Services,Env Safety&Routine Maintenance,Walk Sheets                             ,G00127,Third Party Payments          ,Private Contractors           ,EH56,Carriageway/Fway Maint,464,"27,162.94",9/28/2012,R,FM CONWAY LTD                 
2012-OCT,Highways & Transport Services,Env Safety&Routine Maintenance,Walk Sheets                             ,G00127,Third Party Payments          ,Private Contractors           ,EH56,Carriageway/Fway Maint,465,"46,492.05",9/28/2012,R,FM CONWAY LTD                 
2012-OCT,Highways & Transport Services,Env Safety&Routine Maintenance,Walk Sheets                             ,G00127,Third Party Payments          ,Private Contractors           ,EH56,Carriageway/Fway Maint,466,"11,245.69",10/9/2012,R,FM CONWAY LTD                 
2012-OCT,Highways & Transport Services,Env Safety&Routine Maintenance,Walk Sheets                             ,G00127,Third Party Payments          ,Private Contractors           ,EH56,Carriageway/Fway Maint,467,"10,980.91",10/10/2012,R,FM CONWAY LTD                 
2012-OCT,Highways & Transport Services,Env Safety&Routine Maintenance,Walk Sheets                             ,G00127,Third Party Payments          ,Private Contractors           ,EH56,Carriageway/Fway Maint,468,821.73,10/29/2012,R,FM CONWAY LTD                 
2012-OCT,Highways & Transport Services,Structural Maintenance,"Br., H'ways & Struct                    ",G00128,Third Party Payments          ,Private Contractors           ,EH56,Carriageway/Fway Maint,469,"-1,014.65",2/24/2012,R,NETWORK RAIL INFRASTRUCTURE LT
2012-OCT,Highways & Transport Services,Env Safety&Routine Maintenance,Traffic Signs.                          ,G00160,Third Party Payments          ,Private Contractors           ,EH01,Miscellaneous Contrct Services,470,"4,041.98",9/28/2012,R,FM CONWAY LTD                 
2012-OCT,Highways & Transport Services,Env Safety&Routine Maintenance,Traffic Signs.                          ,G00160,Third Party Payments          ,Private Contractors           ,EH01,Miscellaneous Contrct Services,471,801.27,9/28/2012,R,MAY GURNEY LTD T/A CARTLEDGE  
2012-OCT,Highways & Transport Services,Env Safety&Routine Maintenance,Traffic Signs.                          ,G00160,Third Party Payments          ,Private Contractors           ,EH01,Miscellaneous Contrct Services,472,767.37,10/10/2012,R,FM CONWAY LTD                 
2012-OCT,Highways & Transport Services,Env Safety&Routine Maintenance,Traffic Signs.                          ,G00160,Third Party Payments          ,Private Contractors           ,EH01,Miscellaneous Contrct Services,473,812.21,10/24/2012,R,MAY GURNEY LTD T/A CARTLEDGE  
2012-OCT,Highways & Transport Services,Env Safety&Routine Maintenance,Traffic Signs.                          ,G00160,Third Party Payments          ,Private Contractors           ,EH02,Miscellaneous Hired Services,474,"3,642.98",9/28/2012,R,FM CONWAY LTD                 
2012-OCT,Highways & Transport Services,Env Safety&Routine Maintenance,Traffic Signs.                          ,G00160,Third Party Payments          ,Private Contractors           ,EH02,Miscellaneous Hired Services,475,906.08,10/9/2012,R,FM CONWAY LTD                 
2012-OCT,Highways & Transport Services,Env Safety&Routine Maintenance,Traffic Signs.                          ,G00160,Third Party Payments          ,Private Contractors           ,EH02,Miscellaneous Hired Services,476,802.75,10/9/2012,R,FM CONWAY LTD                 
2012-OCT,Highways & Transport Services,Env Safety&Routine Maintenance,Traffic Signs.                          ,G00160,Third Party Payments          ,Private Contractors           ,EH02,Miscellaneous Hired Services,477,"2,871.47",10/10/2012,R,FM CONWAY LTD                 
2012-OCT,Highways & Transport Services,Env Safety&Routine Maintenance,Traffic Signs.                          ,G00160,Third Party Payments          ,Private Contractors           ,EH02,Miscellaneous Hired Services,478,"5,213.51",10/29/2012,R,FM CONWAY LTD                 
2012-OCT,Highways & Transport Services,Tr'sport Plg / Policy / Str'gy,CPZ implementation & Consultat          ,G00211,Supplies & Services           ,Services                      ,DF02,Misc Advertising/Publicity,479,"1,235.66",9/28/2012,R,TMP WORLDWIDE LTD             
2012-OCT,Highways & Transport Services,Tr'sport Plg / Policy / Str'gy,CPZ implementation & Consultat          ,G00211,Supplies & Services           ,Services                      ,DF02,Misc Advertising/Publicity,480,"1,174.86",9/29/2012,R,NEWSQUEST (LONDON)LTD         
2012-OCT,Highways & Transport Services,Tr'sport Plg / Policy / Str'gy,CPZ implementation & Consultat          ,G00211,Third Party Payments          ,Private Contractors           ,EH56,Carriageway/Fway Maint,481,"2,892.96",9/28/2012,R,FM CONWAY LTD                 
2012-OCT,Highways & Transport Services,Tr'sport Plg / Policy / Str'gy,CPZ implementation & Consultat          ,G00211,Third Party Payments          ,Private Contractors           ,EH56,Carriageway/Fway Maint,482,"2,648.44",10/9/2012,R,FM CONWAY LTD                 
2012-OCT,Highways & Transport Services,Tr'sport Plg / Policy / Str'gy,CPZ implementation & Consultat          ,G00211,Third Party Payments          ,Private Contractors           ,EH56,Carriageway/Fway Maint,483,"1,494.77",10/9/2012,R,FM CONWAY LTD                 
2012-OCT,Highways & Transport Services,Tr'sport Plg / Policy / Str'gy,CPZ implementation & Consultat          ,G00211,Third Party Payments          ,Private Contractors           ,EH56,Carriageway/Fway Maint,484,"30,480.00",10/12/2012,R,PARKEON LTD                   
2012-OCT,Highways & Transport Services,Tr'sport Plg / Policy / Str'gy,CPZ implementation & Consultat          ,G00211,Third Party Payments          ,Private Contractors           ,EH56,Carriageway/Fway Maint,485,"7,844.32",10/29/2012,R,FM CONWAY LTD                 
2012-OCT,Highways & Transport Services,Street Lights(Inc Energy Cost),Street Lighting .                       ,G00260,Third Party Payments          ,Private Contractors           ,EH01,Miscellaneous Contrct Services,486,"13,947.98",9/28/2012,R,MAY GURNEY LTD T/A CARTLEDGE  
2012-OCT,Highways & Transport Services,Street Lights(Inc Energy Cost),Street Lighting .                       ,G00260,Third Party Payments          ,Private Contractors           ,EH01,Miscellaneous Contrct Services,487,877.12,9/28/2012,R,MAY GURNEY LTD T/A CARTLEDGE  
2012-OCT,Highways & Transport Services,Street Lights(Inc Energy Cost),Street Lighting .                       ,G00260,Third Party Payments          ,Private Contractors           ,EH01,Miscellaneous Contrct Services,488,"3,419.17",9/28/2012,R,MAY GURNEY LTD T/A CARTLEDGE  
2012-OCT,Highways & Transport Services,Street Lights(Inc Energy Cost),Street Lighting .                       ,G00260,Third Party Payments          ,Private Contractors           ,EH01,Miscellaneous Contrct Services,489,"4,266.35",10/24/2012,R,MAY GURNEY LTD T/A CARTLEDGE  
2012-OCT,Highways & Transport Services,Parking Services,St. Georges Car Park WEST M/S           ,G00302,Premises Related Expenditure  ,Energy Costs                  ,BB02,Electricity,490,"1,298.23",9/25/2012,R,KENT COUNTY COUNCIL           
2012-OCT,Highways & Transport Services,Parking Services,St. Georges Car Park WEST M/S           ,G00302,Premises Related Expenditure  ,Energy Costs                  ,BB02,Electricity,491,"1,216.43",10/2/2012,R,KENT COUNTY COUNCIL           
2012-OCT,Highways & Transport Services,Parking Services,"St. Mks Rd, Multi Sty                   ",G00308,Premises Related Expenditure  ,Rents                         ,BC01,Miscellaneous Rents,492,"4,006.73",7/30/2012,R,FISHER PROPERTY CONSULTANTS   
2012-OCT,Highways & Transport Services,Parking Services,On Street Parking.                      ,G00311,Premises Related Expenditure  ,RepairsAlterations&MtceOfBldgs,BA06,Repairs & Maintenance General,493,"1,934.19",9/17/2012,R,TEASDALE GROUP LTD            
2012-OCT,Highways & Transport Services,Parking Services,Civil Enforcement Officers              ,G00330,Premises Related Expenditure  ,Rents                         ,BC01,Miscellaneous Rents,494,"4,377.50",9/12/2012,R,WOODCOCK BROTHERS (WIMBLEDON) 
2012-OCT,Highways & Transport Services,Parking Services,Operational Running Costs               ,G00331,Supplies & Services           ,Equip Furniture/Materials     ,DA09,Equip-Purchases,495,"9,350.00",10/12/2012,R,PARKEON LTD                   
2012-OCT,Highways & Transport Services,Parking Services,Operational Running Costs               ,G00331,Supplies & Services           ,Prntng Stnry Gen Off Exp      ,DE01,External Printing,496,"1,695.00",10/1/2012,R,LIBERTY SERVICES              
2012-OCT,Highways & Transport Services,Parking Services,Operational Running Costs               ,G00331,Supplies & Services           ,Prntng Stnry Gen Off Exp      ,DE01,External Printing,497,"2,631.60",10/4/2012,R,NAGELS UK LTD                 
2012-OCT,Highways & Transport Services,Parking Services,Operational Running Costs               ,G00331,Supplies & Services           ,Services                      ,DF11,Counsel's fees,498,"2,875.50",9/17/2012,R,REDACTED
2012-OCT,Highways & Transport Services,Parking Services,Operational Running Costs               ,G00331,Third Party Payments          ,Other Agencies                ,EJ58,Parking Cttee for London,499,"10,000.00",10/22/2012,R,HMCTS                         
2012-OCT,Highways & Transport Services,Parking Services,Operational Running Costs               ,G00331,Third Party Payments          ,Other Agencies                ,EJ58,Parking Cttee for London,500,"21,634.37",10/16/2012,R,LONDON COUNCILS               
2012-OCT,Highways & Transport Services,Env Safety&Routine Maintenance,Flood Risk Management                   ,G00350,Supplies & Services           ,Services                      ,DF03,Consultants,501,"13,459.20",10/8/2012,R,URS INFRASTRUCTURE & ENV UK LT
2012-OCT,Highways & Transport Services,Env Safety&Routine Maintenance,Flood Risk Management                   ,G00350,Third Party Payments          ,Private Contractors           ,EH56,Carriageway/Fway Maint,502,609.08,9/28/2012,R,FM CONWAY LTD                 
2012-OCT,Highways & Transport Services,Structural Maintenance,Footpath Crossings.                     ,G00390,Third Party Payments          ,Private Contractors           ,EH56,Carriageway/Fway Maint,503,"7,981.71",9/28/2012,R,FM CONWAY LTD                 
2012-OCT,Highways & Transport Services,Structural Maintenance,Footpath Crossings.                     ,G00390,Third Party Payments          ,Private Contractors           ,EH56,Carriageway/Fway Maint,504,"5,271.17",9/28/2012,R,FM CONWAY LTD                 
2012-OCT,Highways & Transport Services,Structural Maintenance,Footpath Crossings.                     ,G00390,Third Party Payments          ,Private Contractors           ,EH56,Carriageway/Fway Maint,505,"3,095.63",10/9/2012,R,FM CONWAY LTD                 
2012-OCT,Highways & Transport Services,Structural Maintenance,Footpath Crossings.                     ,G00390,Third Party Payments          ,Private Contractors           ,EH56,Carriageway/Fway Maint,506,"6,041.04",10/29/2012,R,FM CONWAY LTD                 
2012-OCT,Cultural Env Reg&Plan Services,Street Cleaning - Not highways,Street Cleansing (Inc. Gully)           ,G00492,Premises Related Expenditure  ,Rents                         ,BC01,Miscellaneous Rents,507,923.56,9/26/2012,R,MERTON PRIORY HOMES (RENT)    
2012-OCT,Cultural Env Reg&Plan Services,Street Cleaning - Not highways,Street Cleansing (Inc. Gully)           ,G00492,Supplies & Services           ,Equip Furniture/Materials     ,DA01,Equipment - R & M,508,707,8/31/2012,R,N A BROWN LTD                 
2012-OCT,Cultural Env Reg&Plan Services,Street Cleaning - Not highways,Street Cleansing (Inc. Gully)           ,G00492,Supplies & Services           ,Equip Furniture/Materials     ,DA01,Equipment - R & M,509,"1,231.90",9/28/2012,R,N A BROWN LTD                 
2012-OCT,Cultural Env Reg&Plan Services,Street Cleaning - Not highways,Street Cleansing (Inc. Gully)           ,G00492,Supplies & Services           ,Equip Furniture/Materials     ,DA08,Tools-Purchase,510,"1,375.60",9/20/2012,R,BELL BRUSH                    
2012-OCT,Cultural Env Reg&Plan Services,Street Cleaning - Not highways,Street Cleansing (Inc. Gully)           ,G00492,Supplies & Services           ,Equip Furniture/Materials     ,DA08,Tools-Purchase,511,"1,028.02",9/28/2012,R,BELL BRUSH                    
2012-OCT,Cultural Env Reg&Plan Services,Street Cleaning - Not highways,Street Cleansing (Inc. Gully)           ,G00492,Supplies & Services           ,Equip Furniture/Materials     ,DA08,Tools-Purchase,512,804.3,10/12/2012,R,BELL BRUSH                    
2012-OCT,Cultural Env Reg&Plan Services,Street Cleaning - Not highways,Street Cleansing (Inc. Gully)           ,G00492,Supplies & Services           ,Equip Furniture/Materials     ,DA31,Waste Sacks & Bags,513,"3,175.20",9/18/2012,R,POLARIS PLASTICS LTD          
2012-OCT,Cultural Env Reg&Plan Services,Street Cleaning - Not highways,Street Cleansing (Inc. Gully)           ,G00492,Supplies & Services           ,Equip Furniture/Materials     ,DA32,Wheeled Bins,514,540,9/27/2012,R,UK CONTAINER MAINTENANCE LTD  
2012-OCT,Cultural Env Reg&Plan Services,Street Cleaning - Not highways,Street Cleansing (Inc. Gully)           ,G00492,Supplies & Services           ,Clothing Unfrms Laundry       ,DC02,Clothing & Uniforms,515,500,9/27/2012,R,SAFETY MANAGEMENT             
2012-OCT,Cultural Env Reg&Plan Services,Waste Disposal,Waste Disposal .                        ,G00550,Third Party Payments          ,Private Contractors           ,EH66,Clinical Waste Disposal,516,777.72,9/30/2012,R,S.GRUNDON (WASTE) LTD.        
2012-OCT,Cultural Env Reg&Plan Services,Waste Disposal,Waste Disposal .                        ,G00550,Third Party Payments          ,Private Contractors           ,EH96,Gen Waste - Alt.  Contractor  ,517,"2,100.66",9/30/2012,R,CORY ENVIRONMENTAL LIMITED    
2012-OCT,Cultural Env Reg&Plan Services,Waste Disposal,Waste Disposal .                        ,G00550,Third Party Payments          ,Private Contractors           ,EH97,Detritus - Alt. Contractor,518,674,10/2/2012,R,NEOLAY LTD                    
2012-OCT,Cultural Env Reg&Plan Services,Waste Disposal,Garth Road Site                         ,G00580,Premises Related Expenditure  ,Energy Costs                  ,BB02,Electricity,519,"2,081.17",8/4/2012,R,EDF ENERGY 1 LIMITED          
2012-OCT,Cultural Env Reg&Plan Services,Waste Disposal,Garth Road Site                         ,G00580,Supplies & Services           ,Equip Furniture/Materials     ,DA01,Equipment - R & M,520,660,8/19/2012,R,R.J.H.WELDING                 
2012-OCT,Cultural Env Reg&Plan Services,Waste Disposal,Garth Road Site                         ,G00580,Supplies & Services           ,Equip Furniture/Materials     ,DA04,Materials,521,"4,188.69",9/30/2012,R,S.GRUNDON (WASTE) LTD.        
2012-OCT,Highways & Transport Services,Structural Maintenance,Grass Cut/Tr Mtce                       ,G00600,Premises Related Expenditure  ,Ground Maintenance Costs      ,BL03,Maintenance of Grounds,522,"13,490.38",9/26/2012,R,VEOLIA ES (UK) LIMITED        
2012-OCT,Cultural Env Reg&Plan Services,Environmental Health,Dog Control.                            ,G00620,Third Party Payments          ,Private Contractors           ,EH02,Miscellaneous Hired Services,523,"1,925.00",8/31/2012,R,WOODLANDS ANIMAL CARE LTD     
2012-OCT,Cultural Env Reg&Plan Services,Environmental Health,Dog Control.                            ,G00620,Third Party Payments          ,Private Contractors           ,EH02,Miscellaneous Hired Services,524,877.1,10/16/2012,R,RIVERSIDE ANIMAL SERVICES     
2012-OCT,Cultural Env Reg&Plan Services,Environmental Health,Dog Control.                            ,G00620,Third Party Payments          ,Private Contractors           ,EH02,Miscellaneous Hired Services,525,508.9,10/16/2012,R,RIVERSIDE ANIMAL SERVICES     
2012-OCT,Cultural Env Reg&Plan Services,Environmental Health,Dog Control.                            ,G00620,Third Party Payments          ,Private Contractors           ,EH02,Miscellaneous Hired Services,526,"3,850.00",9/30/2012,R,WOODLANDS ANIMAL CARE LTD     
2012-OCT,Cultural Env Reg&Plan Services,Waste Collection,Recycling Activities                    ,G00640,Supplies & Services           ,Equip Furniture/Materials     ,DA04,Materials,527,"7,227.79",10/4/2012,R,SPHERE PROFFESSIONAL          
2012-OCT,Cultural Env Reg&Plan Services,Waste Collection,Recycling Activities                    ,G00640,Supplies & Services           ,Equip Furniture/Materials     ,DA09,Equip-Purchases,528,965.6,10/9/2012,R,P J HARVEY & CO LTD           
2012-OCT,Cultural Env Reg&Plan Services,Waste Collection,Recycling Activities                    ,G00640,Supplies & Services           ,Equip Furniture/Materials     ,DA31,Waste Sacks & Bags,529,792,9/18/2012,R,POLARIS PLASTICS LTD          
2012-OCT,Cultural Env Reg&Plan Services,Waste Collection,Recycling Activities                    ,G00640,Supplies & Services           ,Equip Furniture/Materials     ,DA31,Waste Sacks & Bags,530,"1,704.00",9/18/2012,R,POLARIS PLASTICS LTD          
2012-OCT,Cultural Env Reg&Plan Services,Waste Collection,Recycling Activities                    ,G00640,Third Party Payments          ,Private Contractors           ,EH61,Green Waste Disposal,531,"15,201.04",9/30/2012,R,VIRIDOR WASTE KENT LTD        
2012-OCT,Cultural Env Reg&Plan Services,Waste Collection,Recycling Activities                    ,G00640,Third Party Payments          ,Private Contractors           ,EH90,Disposal of Waste from CA Site,532,"53,653.96",7/31/2012,R,KINGSTON CORPORATION          
2012-OCT,Cultural Env Reg&Plan Services,Waste Collection,Recycling Collection                    ,G00645,Supplies & Services           ,Equip Furniture/Materials     ,DA32,Wheeled Bins,533,540,9/27/2012,R,UK CONTAINER MAINTENANCE LTD  
2012-OCT,Cultural Env Reg&Plan Services,Waste Collection,Recycling Collection                    ,G00645,Supplies & Services           ,Clothing Unfrms Laundry       ,DC02,Clothing & Uniforms,534,500,9/27/2012,R,SAFETY MANAGEMENT             
2012-OCT,Cultural Env Reg&Plan Services,Waste Collection,Refuse Collection (Operations)          ,G00661,Transport Related Expenditure ,Direct Transport Costs        ,CA52,Reps Vehicles Ins Claims,535,750,9/3/2012,R,S.E.T.S SERVICES              
2012-OCT,Cultural Env Reg&Plan Services,Waste Collection,Refuse Collection (Operations)          ,G00661,Transport Related Expenditure ,Direct Transport Costs        ,CA52,Reps Vehicles Ins Claims,536,625,9/3/2012,R,S.E.T.S SERVICES              
2012-OCT,Cultural Env Reg&Plan Services,Waste Collection,Refuse Collection (Operations)          ,G00661,Transport Related Expenditure ,Direct Transport Costs        ,CA52,Reps Vehicles Ins Claims,537,750,10/15/2012,R,S.E.T.S SERVICES              
2012-OCT,Cultural Env Reg&Plan Services,Waste Collection,Refuse Collection (Operations)          ,G00661,Transport Related Expenditure ,Direct Transport Costs        ,CA52,Reps Vehicles Ins Claims,538,750,10/15/2012,R,S.E.T.S SERVICES              
2012-OCT,Cultural Env Reg&Plan Services,Waste Collection,Refuse Collection (Operations)          ,G00661,Supplies & Services           ,Equip Furniture/Materials     ,DA04,Materials,539,512,9/24/2012,R,WESTWAYS VENDING LTD          
2012-OCT,Cultural Env Reg&Plan Services,Waste Collection,Refuse Collection (Operations)          ,G00661,Supplies & Services           ,Equip Furniture/Materials     ,DA32,Wheeled Bins,540,540,9/27/2012,R,UK CONTAINER MAINTENANCE LTD  
2012-OCT,Cultural Env Reg&Plan Services,Waste Collection,Refuse Collection (Operations)          ,G00661,Supplies & Services           ,Equip Furniture/Materials     ,DA32,Wheeled Bins,541,543.75,10/8/2012,R,SPIDER UK LTD                 
2012-OCT,Cultural Env Reg&Plan Services,Waste Collection,Refuse Collection (Operations)          ,G00661,Supplies & Services           ,Equip Furniture/Materials     ,DA32,Wheeled Bins,542,"1,850.00",10/5/2012,R,SPIDER UK LTD                 
2012-OCT,Cultural Env Reg&Plan Services,Waste Collection,Commercial Waste                        ,G00663,Supplies & Services           ,Equip Furniture/Materials     ,DA09,Equip-Purchases,543,942,10/29/2012,R,GRANGEWOOD PLASTIC PACKAGING  
2012-OCT,Cultural Env Reg&Plan Services,Waste Collection,Commercial Waste Collection             ,G00665,Supplies & Services           ,Equip Furniture/Materials     ,DA32,Wheeled Bins,544,540,9/27/2012,R,UK CONTAINER MAINTENANCE LTD  
2012-OCT,Cultural Env Reg&Plan Services,Street Cleaning - Not highways,Waste Enforcement                       ,G00680,Supplies & Services           ,Services                      ,DF11,Counsel's fees,545,"7,220.00",10/2/2012,R,REDACTED
2012-OCT,Cultural Env Reg&Plan Services,Environmental Health,Health & Safety                         ,G00697,Third Party Payments          ,Private Contractors           ,EH10,Contract Payments,546,"2,010.00",9/28/2012,R,PUBLIC ANALYST SCIENTIFIC SER.
2012-OCT,Cultural Env Reg&Plan Services,Cemetery Cremation & Mortuary,Mortuary                                ,G00700,Third Party Payments          ,Other Local Authorities       ,EB01,Payments to OLAs,547,"5,351.00",10/18/2012,R,ST GEORGES HEALTHCARE TRUST   
2012-OCT,Cultural Env Reg&Plan Services,Cemetery Cremation & Mortuary,Mortuary                                ,G00700,Third Party Payments          ,Other Local Authorities       ,EB01,Payments to OLAs,548,"12,294.00",10/18/2012,R,ST GEORGES HEALTHCARE TRUST   
2012-OCT,Cultural Env Reg&Plan Services,Environmental Health,Pest Control                            ,G00724,Supplies & Services           ,Equip Furniture/Materials     ,DA09,Equip-Purchases,549,908,9/18/2012,R,HILTI(GREAT BRITAIN) LTD      
2012-OCT,Cultural Env Reg&Plan Services,Environmental Health,Pest Control                            ,G00724,Supplies & Services           ,Equip Furniture/Materials     ,DA09,Equip-Purchases,550,873.09,8/30/2012,R,KILLGERM CHEMICALS LIMITED    
2012-OCT,Cultural Env Reg&Plan Services,Environmental Health,Housing/Env                             ,G00730,Employees                     ,Direct Employee Expenses      ,AA17,Agency Staff & Casual Paymts,551,909.65,9/19/2012,R,REDACTED
2012-OCT,Cultural Env Reg&Plan Services,Environmental Health,Housing/Env                             ,G00730,Employees                     ,Direct Employee Expenses      ,AA17,Agency Staff & Casual Paymts,552,579.6,10/10/2012,R,REDACTED
2012-OCT,Cultural Env Reg&Plan Services,Environmental Health,Housing/Env                             ,G00730,Employees                     ,Direct Employee Expenses      ,AA17,Agency Staff & Casual Paymts,553,644,8/22/2012,R,REDACTED
2012-OCT,Cultural Env Reg&Plan Services,Environmental Health,Housing/Env                             ,G00730,Employees                     ,Direct Employee Expenses      ,AA17,Agency Staff & Casual Paymts,554,788.9,10/3/2012,R,REDACTED
2012-OCT,Cultural Env Reg&Plan Services,Environmental Health,Housing/Env                             ,G00730,Employees                     ,Direct Employee Expenses      ,AA17,Agency Staff & Casual Paymts,555,877.45,10/17/2012,R,REDACTED
2012-OCT,Cultural Env Reg&Plan Services,Environmental Health,AIR QUALITY GRANT (DEFRA) MB            ,G00732,Third Party Payments          ,Private Contractors           ,EH02,Miscellaneous Hired Services,556,770,8/24/2012,R,AECOM LTD                     
2012-OCT,Cultural Env Reg&Plan Services,SMSS (Env),Waste Management                        ,G00900,Supplies & Services           ,Expenses                      ,DH50,Special Projects,557,725,10/23/2012,R,BOVERTON NURSERIES LTD        
2012-OCT,Central Services,Gen Grants Bequest & Donations,Vestry Hall                             ,G40314,Employees                     ,Direct Employee Expenses      ,AA17,Agency Staff & Casual Paymts,558,"4,486.95",10/10/2012,R,PCL SECURITY LTD              
2012-OCT,Central Services,Gen Grants Bequest & Donations,Vestry Hall                             ,G40314,Premises Related Expenditure  ,Water Services                ,BE01,Use of Water (Metered),559,526.88,9/26/2012,R,THAMES WATER UTILITIES LTD    
2012-OCT,Central Services,Gen Grants Bequest & Donations,Vestry Hall                             ,G40314,Supplies & Services           ,Grants and Subscriptions      ,DJ01,Grants,560,"6,170.00",10/1/2012,R,COLLIERS WOOD COMMUNITY ASSOC 
2012-OCT,Central Services,Gen Grants Bequest & Donations,Vestry Hall                             ,G40314,Supplies & Services           ,Grants and Subscriptions      ,DJ01,Grants,561,"1,975.00",10/1/2012,R,THE WANDLE INDUSTRIAL MUSEUM  
2012-OCT,Central Services,Gen Grants Bequest & Donations,Vestry Hall                             ,G40314,Supplies & Services           ,Grants and Subscriptions      ,DJ01,Grants,562,"18,640.00",10/1/2012,R,NORTH EAST MITCHAM COMM ASSOC 
2012-OCT,Central Services,Gen Grants Bequest & Donations,Vestry Hall                             ,G40314,Supplies & Services           ,Grants and Subscriptions      ,DJ01,Grants,563,"19,320.00",10/1/2012,R,SOUTH MITCHAM COMMUNITY ASS   
2012-OCT,Central Services,Gen Grants Bequest & Donations,Vestry Hall                             ,G40314,Supplies & Services           ,Grants and Subscriptions      ,DJ01,Grants,564,"2,735.00",10/1/2012,R,SOUTH WIMBLEDON COMMUNITY ASSO
2012-OCT,Central Services,Gen Grants Bequest & Donations,Vestry Hall                             ,G40314,Supplies & Services           ,Grants and Subscriptions      ,DJ01,Grants,565,"27,050.00",10/1/2012,R,ST MARKS FAMILY CENTRE        
2012-OCT,Central Services,Gen Grants Bequest & Donations,Vestry Hall                             ,G40314,Third Party Payments          ,Private Contractors           ,EH02,Miscellaneous Hired Services,566,"1,408.47",9/16/2012,R,DYNAMIQ CLEANING LIMITED      
2012-OCT,Central Services,Gen Grants Bequest & Donations,Vestry Hall                             ,G40314,Third Party Payments          ,Private Contractors           ,EH02,Miscellaneous Hired Services,567,"1,408.47",10/14/2012,R,DYNAMIQ CLEANING LIMITED      
2012-OCT,Cultural Env Reg&Plan Services,Building Control,Building Control                        ,H01100,Customer and client receipts  ,Fees                          ,RB52,Building Regs Fees S,568,707.58,10/15/2012,R,REDACTED
2012-OCT,Cultural Env Reg&Plan Services,Development Control,Development Control                     ,H01130,Supplies & Services           ,Services                      ,DF11,Counsel's fees,569,"1,000.00",9/11/2012,R,REDACTED
2012-OCT,Cultural Env Reg&Plan Services,Planning Policy,REGENERATION & INVESTMENT              ,H01174,Supplies & Services           ,Grants and Subscriptions      ,DJ01,Grants,570,600,10/3/2012,R,CORLEONE RESTAURANT           
2012-OCT,Cultural Env Reg&Plan Services,Planning Policy,REGENERATION & INVESTMENT              ,H01174,Supplies & Services           ,Grants and Subscriptions      ,DJ01,Grants,571,600,10/3/2012,R,REDACTED
2012-OCT,Cultural Env Reg&Plan Services,Planning Policy,REGENERATION & INVESTMENT              ,H01174,Supplies & Services           ,Grants and Subscriptions      ,DJ01,Grants,572,600,10/19/2012,R,CAFFE D'ORO LTD               
2012-OCT,Cultural Env Reg&Plan Services,Planning Policy,REGENERATION & INVESTMENT              ,H01174,Supplies & Services           ,Grants and Subscriptions      ,DJ01,Grants,573,900,10/19/2012,R,REDACTED
2012-OCT,Cultural Env Reg&Plan Services,Planning Policy,REGENERATION & INVESTMENT              ,H01174,Supplies & Services           ,Grants and Subscriptions      ,DJ01,Grants,574,900,10/22/2012,R,REDACTED
2012-OCT,Cultural Env Reg&Plan Services,Planning Policy,REGENERATION & INVESTMENT              ,H01174,Third Party Payments          ,Private Contractors           ,EH10,Contract Payments,575,"8,500.00",9/30/2012,R,MERTON CHAMBER OF COMMERCE    
2012-OCT,Cultural Env Reg&Plan Services,Planning Policy,HPDG - FUTUREMERTON                     ,H01183,Supplies & Services           ,Services                      ,DF03,Consultants,576,"8,640.00",10/22/2012,R,PETER BEARD LANDROOM LIMITED  
2012-OCT,Cultural Env Reg&Plan Services,Planning Policy,HPDG - FUTUREMERTON                     ,H01183,Supplies & Services           ,Services                      ,DF03,Consultants,577,"1,500.00",10/17/2012,R,SWBA                          
2012-OCT,CS -Oth Operating Inc & Expend,INVESTMENT PROPERTIES,MILES RD GENERATOR                      ,H01203,Supplies & Services           ,Services                      ,DF09,Miscellaneous Fees,578,932.97,8/19/2012,R,CROWN SECURITY SYSTEMS LTD    
2012-OCT,Cultural Env Reg&Plan Services,Economic Development,BUSINESS SUPPORT                        ,H01210,Supplies & Services           ,Services                      ,DF03,Consultants,579,"9,049.77",9/25/2012,R,LONDON SUSTAINABILITY EXCHANGE
2012-OCT,CS -Oth Operating Inc & Expend,Trading A/c Surpluses/Deficits,Transport-Contract Hire                 ,J01374,Transport Related Expenditure ,Direct Transport Costs        ,CA01,Petrol Derv & Oil,580,"3,924.07",9/25/2012,R,B P OIL UK LIMITED            
2012-OCT,CS -Oth Operating Inc & Expend,Trading A/c Surpluses/Deficits,Transport-Contract Hire                 ,J01374,Transport Related Expenditure ,Direct Transport Costs        ,CA01,Petrol Derv & Oil,581,590.18,9/25/2012,R,B P OIL UK LIMITED            
2012-OCT,CS -Oth Operating Inc & Expend,Trading A/c Surpluses/Deficits,Transport-Contract Hire                 ,J01374,Transport Related Expenditure ,Direct Transport Costs        ,CA01,Petrol Derv & Oil,582,"35,787.15",9/24/2012,R,EMO OILS LTD                  
2012-OCT,CS -Oth Operating Inc & Expend,Trading A/c Surpluses/Deficits,Transport-Contract Hire                 ,J01374,Transport Related Expenditure ,Direct Transport Costs        ,CA01,Petrol Derv & Oil,583,"24,059.70",10/8/2012,R,EMO OILS LTD                  
2012-OCT,CS -Oth Operating Inc & Expend,Trading A/c Surpluses/Deficits,Transport-Contract Hire                 ,J01374,Transport Related Expenditure ,Direct Transport Costs        ,CA52,Reps Vehicles Ins Claims,584,500,9/28/2012,R,FLEETSPEED COACHWORKS LTD.    
2012-OCT,CS -Oth Operating Inc & Expend,Trading A/c Surpluses/Deficits,Transport-Contract Hire                 ,J01374,Transport Related Expenditure ,Contract Hire and Op Leasing  ,CC53,Plant Hire for MRCS,585,700,9/16/2012,R,PHOENIX VEHICLE HIRE LTD      
2012-OCT,CS -Oth Operating Inc & Expend,Trading A/c Surpluses/Deficits,Transport-Contract Hire                 ,J01374,Transport Related Expenditure ,Contract Hire and Op Leasing  ,CC53,Plant Hire for MRCS,586,700,9/23/2012,R,PHOENIX VEHICLE HIRE LTD      
2012-OCT,CS -Oth Operating Inc & Expend,Trading A/c Surpluses/Deficits,Transport-Contract Hire                 ,J01374,Transport Related Expenditure ,Contract Hire and Op Leasing  ,CC53,Plant Hire for MRCS,587,"2,000.00",9/28/2012,R,NOBLET MUNICIPAL SERVICES LTD 
2012-OCT,CS -Oth Operating Inc & Expend,Trading A/c Surpluses/Deficits,Transport-Contract Hire                 ,J01374,Transport Related Expenditure ,Contract Hire and Op Leasing  ,CC53,Plant Hire for MRCS,588,740,9/30/2012,R,SHB HIRE LTD                  
2012-OCT,CS -Oth Operating Inc & Expend,Trading A/c Surpluses/Deficits,Transport-Contract Hire                 ,J01374,Transport Related Expenditure ,Contract Hire and Op Leasing  ,CC53,Plant Hire for MRCS,589,740,9/30/2012,R,SHB HIRE LTD                  
2012-OCT,CS -Oth Operating Inc & Expend,Trading A/c Surpluses/Deficits,Transport-Contract Hire                 ,J01374,Transport Related Expenditure ,Contract Hire and Op Leasing  ,CC53,Plant Hire for MRCS,590,740,9/30/2012,R,SHB HIRE LTD                  
2012-OCT,CS -Oth Operating Inc & Expend,Trading A/c Surpluses/Deficits,Transport-Contract Hire                 ,J01374,Transport Related Expenditure ,Contract Hire and Op Leasing  ,CC53,Plant Hire for MRCS,591,"1,140.00",10/3/2012,R,GVS HIRE LTD                  
2012-OCT,CS -Oth Operating Inc & Expend,Trading A/c Surpluses/Deficits,Transport-Contract Hire                 ,J01374,Transport Related Expenditure ,Contract Hire and Op Leasing  ,CC53,Plant Hire for MRCS,592,700,9/30/2012,R,PHOENIX VEHICLE HIRE LTD      
2012-OCT,CS -Oth Operating Inc & Expend,Trading A/c Surpluses/Deficits,Transport-Contract Hire                 ,J01374,Transport Related Expenditure ,Contract Hire and Op Leasing  ,CC53,Plant Hire for MRCS,593,700,10/7/2012,R,PHOENIX VEHICLE HIRE LTD      
2012-OCT,CS -Oth Operating Inc & Expend,Trading A/c Surpluses/Deficits,Transport-Contract Hire                 ,J01374,Transport Related Expenditure ,Contract Hire and Op Leasing  ,CC53,Plant Hire for MRCS,594,875,9/30/2012,R,GULLIVER'S TRUCK HIRE LTD.    
2012-OCT,CS -Oth Operating Inc & Expend,Trading A/c Surpluses/Deficits,Transport-Contract Hire                 ,J01374,Transport Related Expenditure ,Contract Hire and Op Leasing  ,CC53,Plant Hire for MRCS,595,875,10/8/2012,R,GULLIVER'S TRUCK HIRE LTD.    
2012-OCT,CS -Oth Operating Inc & Expend,Trading A/c Surpluses/Deficits,Transport-Contract Hire                 ,J01374,Transport Related Expenditure ,Contract Hire and Op Leasing  ,CC53,Plant Hire for MRCS,596,875,10/15/2012,R,GULLIVER'S TRUCK HIRE LTD.    
2012-OCT,CS -Oth Operating Inc & Expend,Trading A/c Surpluses/Deficits,Transport-Contract Hire                 ,J01374,Transport Related Expenditure ,Contract Hire and Op Leasing  ,CC53,Plant Hire for MRCS,597,726,7/27/2012,R,GVS HIRE LTD                  
2012-OCT,CS -Oth Operating Inc & Expend,Trading A/c Surpluses/Deficits,Transport-Contract Hire                 ,J01374,Transport Related Expenditure ,Contract Hire and Op Leasing  ,CC53,Plant Hire for MRCS,598,562.5,7/27/2012,R,GVS HIRE LTD                  
2012-OCT,CS -Oth Operating Inc & Expend,Trading A/c Surpluses/Deficits,Transport-Contract Hire                 ,J01374,Transport Related Expenditure ,Contract Hire and Op Leasing  ,CC53,Plant Hire for MRCS,599,"1,205.00",7/27/2012,R,GVS HIRE LTD                  
2012-OCT,CS -Oth Operating Inc & Expend,Trading A/c Surpluses/Deficits,Transport-Contract Hire                 ,J01374,Transport Related Expenditure ,Contract Hire and Op Leasing  ,CC53,Plant Hire for MRCS,600,726,7/27/2012,R,GVS HIRE LTD                  
2012-OCT,CS -Oth Operating Inc & Expend,Trading A/c Surpluses/Deficits,Transport-Contract Hire                 ,J01374,Transport Related Expenditure ,Contract Hire and Op Leasing  ,CC53,Plant Hire for MRCS,601,725,7/27/2012,R,GVS HIRE LTD                  
2012-OCT,CS -Oth Operating Inc & Expend,Trading A/c Surpluses/Deficits,Transport-Contract Hire                 ,J01374,Transport Related Expenditure ,Contract Hire and Op Leasing  ,CC53,Plant Hire for MRCS,602,726,7/27/2012,R,GVS HIRE LTD                  
2012-OCT,CS -Oth Operating Inc & Expend,Trading A/c Surpluses/Deficits,Transport-Contract Hire                 ,J01374,Transport Related Expenditure ,Contract Hire and Op Leasing  ,CC53,Plant Hire for MRCS,603,700,10/21/2012,R,PHOENIX VEHICLE HIRE LTD      
2012-OCT,CS -Oth Operating Inc & Expend,Trading A/c Surpluses/Deficits,Transport-Contract Hire                 ,J01374,Transport Related Expenditure ,Contract Hire and Op Leasing  ,CC53,Plant Hire for MRCS,604,700,10/14/2012,R,PHOENIX VEHICLE HIRE LTD      
2012-OCT,CS -Oth Operating Inc & Expend,Trading A/c Surpluses/Deficits,Transport-Contract Hire                 ,J01374,Transport Related Expenditure ,Contract Hire and Op Leasing  ,CC57,Plant Hire for Housing,605,667,8/22/2012,R,KENT COUNTY COUNCIL           
2012-OCT,CS -Oth Operating Inc & Expend,Trading A/c Surpluses/Deficits,Transport-Contract Hire                 ,J01374,Transport Related Expenditure ,Contract Hire and Op Leasing  ,CC57,Plant Hire for Housing,606,940,9/30/2012,R,REDACTED
2012-OCT,CS -Oth Operating Inc & Expend,Trading A/c Surpluses/Deficits,Transport-Contract Hire                 ,J01374,Transport Related Expenditure ,Contract Hire and Op Leasing  ,CC57,Plant Hire for Housing,607,667,9/30/2012,R,KENT COUNTY COUNCIL           
2012-OCT,CS -Oth Operating Inc & Expend,Trading A/c Surpluses/Deficits,Transport-Contract Hire                 ,J01374,Transport Related Expenditure ,Contract Hire and Op Leasing  ,CC58,Plant Hire - Ad Hoc,608,660,10/3/2012,R,GVS HIRE LTD                  
2012-OCT,CS -Oth Operating Inc & Expend,Trading A/c Surpluses/Deficits,Transport-Contract Hire                 ,J01374,Transport Related Expenditure ,Contract Hire and Op Leasing  ,CC58,Plant Hire - Ad Hoc,609,660,10/3/2012,R,GVS HIRE LTD                  
2012-OCT,CS -Oth Operating Inc & Expend,Trading A/c Surpluses/Deficits,Transport-Contract Hire                 ,J01374,Transport Related Expenditure ,Contract Hire and Op Leasing  ,CC58,Plant Hire - Ad Hoc,610,726,7/27/2012,R,GVS HIRE LTD                  
2012-OCT,CS -Oth Operating Inc & Expend,Trading A/c Surpluses/Deficits,Transport-Contract Hire                 ,J01374,Transport Related Expenditure ,Contract Hire and Op Leasing  ,CC58,Plant Hire - Ad Hoc,611,726,7/27/2012,R,GVS HIRE LTD                  
2012-OCT,CS -Oth Operating Inc & Expend,Trading A/c Surpluses/Deficits,Transport-Contract Hire                 ,J01374,Transport Related Expenditure ,Contract Hire and Op Leasing  ,CC59,Plant Hire - Non-Rechargeable ,612,"1,458.62",10/4/2012,R,DAWSON RENTALS BUS AND COACH  
2012-OCT,CS -Oth Operating Inc & Expend,Trading A/c Surpluses/Deficits,Transport-Contract Hire                 ,J01374,Transport Related Expenditure ,Contract Hire and Op Leasing  ,CC59,Plant Hire - Non-Rechargeable ,613,"1,458.62",10/4/2012,R,DAWSON RENTALS BUS AND COACH  
2012-OCT,CS -Oth Operating Inc & Expend,Trading A/c Surpluses/Deficits,Transport-Contract Hire                 ,J01374,Transport Related Expenditure ,Contract Hire and Op Leasing  ,CC59,Plant Hire - Non-Rechargeable ,614,"7,536.00",9/28/2012,R,KENT COUNTY COUNCIL           
2012-OCT,CS -Oth Operating Inc & Expend,Trading A/c Surpluses/Deficits,Transport-Contract Hire                 ,J01374,Transport Related Expenditure ,Contract Hire and Op Leasing  ,CC59,Plant Hire - Non-Rechargeable ,615,"7,787.20",9/12/2012,R,KENT COUNTY COUNCIL           
2012-OCT,CS -Oth Operating Inc & Expend,Trading A/c Surpluses/Deficits,Transport-Contract Hire                 ,J01374,Transport Related Expenditure ,Contract Hire and Op Leasing  ,CC59,Plant Hire - Non-Rechargeable ,616,"2,238.32",9/30/2012,R,REDACTED
2012-OCT,CS -Oth Operating Inc & Expend,Trading A/c Surpluses/Deficits,Transport-Contract Hire                 ,J01374,Transport Related Expenditure ,Contract Hire and Op Leasing  ,CC64,Mini Cab Hire for Education,617,"12,815.60",9/30/2012,R,KINGSTON ACCESSIBILITY TRAN LT
2012-OCT,CS -Oth Operating Inc & Expend,Trading A/c Surpluses/Deficits,Transport-Contract Hire                 ,J01374,Transport Related Expenditure ,Contract Hire and Op Leasing  ,CC64,Mini Cab Hire for Education,618,"1,344.00",9/30/2012,R,BARCLAYS ASSET & SALES FINANCE
2012-OCT,CS -Oth Operating Inc & Expend,Trading A/c Surpluses/Deficits,Transport-Contract Hire                 ,J01374,Transport Related Expenditure ,Contract Hire and Op Leasing  ,CC64,Mini Cab Hire for Education,619,"1,224.00",9/28/2012,R,BRUNSWICK CARS LTD            
2012-OCT,CS -Oth Operating Inc & Expend,Trading A/c Surpluses/Deficits,Transport-Contract Hire                 ,J01374,Transport Related Expenditure ,Contract Hire and Op Leasing  ,CC64,Mini Cab Hire for Education,620,680,9/30/2012,R,GALPINS SERVICE               
2012-OCT,CS -Oth Operating Inc & Expend,Trading A/c Surpluses/Deficits,Transport-Contract Hire                 ,J01374,Transport Related Expenditure ,Contract Hire and Op Leasing  ,CC64,Mini Cab Hire for Education,621,688.33,9/30/2012,R,GALPINS SERVICE               
2012-OCT,CS -Oth Operating Inc & Expend,Trading A/c Surpluses/Deficits,Transport-Contract Hire                 ,J01374,Transport Related Expenditure ,Contract Hire and Op Leasing  ,CC64,Mini Cab Hire for Education,622,"1,665.00",9/30/2012,R,KENDALL CARS                  
2012-OCT,CS -Oth Operating Inc & Expend,Trading A/c Surpluses/Deficits,Transport-Contract Hire                 ,J01374,Transport Related Expenditure ,Contract Hire and Op Leasing  ,CC64,Mini Cab Hire for Education,623,"12,495.95",10/7/2012,R,KINGSTON ACCESSIBILITY TRAN LT
2012-OCT,CS -Oth Operating Inc & Expend,Trading A/c Surpluses/Deficits,Transport-Contract Hire                 ,J01374,Transport Related Expenditure ,Contract Hire and Op Leasing  ,CC64,Mini Cab Hire for Education,624,680,9/30/2012,R,NVCAR HIRE LTD                
2012-OCT,CS -Oth Operating Inc & Expend,Trading A/c Surpluses/Deficits,Transport-Contract Hire                 ,J01374,Transport Related Expenditure ,Contract Hire and Op Leasing  ,CC64,Mini Cab Hire for Education,625,680,9/30/2012,R,NVCAR HIRE LTD                
2012-OCT,CS -Oth Operating Inc & Expend,Trading A/c Surpluses/Deficits,Transport-Contract Hire                 ,J01374,Transport Related Expenditure ,Contract Hire and Op Leasing  ,CC64,Mini Cab Hire for Education,626,"1,330.00",9/30/2012,R,NVCAR HIRE LTD                
2012-OCT,CS -Oth Operating Inc & Expend,Trading A/c Surpluses/Deficits,Transport-Contract Hire                 ,J01374,Transport Related Expenditure ,Contract Hire and Op Leasing  ,CC64,Mini Cab Hire for Education,627,798,9/30/2012,R,NVCAR HIRE LTD                
2012-OCT,CS -Oth Operating Inc & Expend,Trading A/c Surpluses/Deficits,Transport-Contract Hire                 ,J01374,Transport Related Expenditure ,Contract Hire and Op Leasing  ,CC64,Mini Cab Hire for Education,628,"1,020.00",9/30/2012,R,CHEAM STATION CARS            
2012-OCT,CS -Oth Operating Inc & Expend,Trading A/c Surpluses/Deficits,Transport-Contract Hire                 ,J01374,Transport Related Expenditure ,Contract Hire and Op Leasing  ,CC64,Mini Cab Hire for Education,629,"2,346.00",9/30/2012,R,NVCAR HIRE LTD                
2012-OCT,CS -Oth Operating Inc & Expend,Trading A/c Surpluses/Deficits,Transport-Contract Hire                 ,J01374,Transport Related Expenditure ,Contract Hire and Op Leasing  ,CC64,Mini Cab Hire for Education,630,"1,296.00",9/30/2012,R,NVCAR HIRE LTD                
2012-OCT,CS -Oth Operating Inc & Expend,Trading A/c Surpluses/Deficits,Transport-Contract Hire                 ,J01374,Transport Related Expenditure ,Contract Hire and Op Leasing  ,CC64,Mini Cab Hire for Education,631,"1,819.00",9/30/2012,R,NVCAR HIRE LTD                
2012-OCT,CS -Oth Operating Inc & Expend,Trading A/c Surpluses/Deficits,Transport-Contract Hire                 ,J01374,Transport Related Expenditure ,Contract Hire and Op Leasing  ,CC64,Mini Cab Hire for Education,632,912,9/30/2012,R,NVCAR HIRE LTD                
2012-OCT,CS -Oth Operating Inc & Expend,Trading A/c Surpluses/Deficits,Transport-Contract Hire                 ,J01374,Transport Related Expenditure ,Contract Hire and Op Leasing  ,CC64,Mini Cab Hire for Education,633,"1,512.00",9/30/2012,R,NVCAR HIRE LTD                
2012-OCT,CS -Oth Operating Inc & Expend,Trading A/c Surpluses/Deficits,Transport-Contract Hire                 ,J01374,Transport Related Expenditure ,Contract Hire and Op Leasing  ,CC64,Mini Cab Hire for Education,634,504,9/30/2012,R,A STAR TRANSPORT LIMITED      
2012-OCT,CS -Oth Operating Inc & Expend,Trading A/c Surpluses/Deficits,Transport-Contract Hire                 ,J01374,Transport Related Expenditure ,Contract Hire and Op Leasing  ,CC64,Mini Cab Hire for Education,635,"3,528.00",9/30/2012,R,BARCLAYS ASSET & SALES FINANCE
2012-OCT,CS -Oth Operating Inc & Expend,Trading A/c Surpluses/Deficits,Transport-Contract Hire                 ,J01374,Transport Related Expenditure ,Contract Hire and Op Leasing  ,CC64,Mini Cab Hire for Education,636,630,9/30/2012,R,AERIAL CAR SERVICES LTD       
2012-OCT,CS -Oth Operating Inc & Expend,Trading A/c Surpluses/Deficits,Transport-Contract Hire                 ,J01374,Transport Related Expenditure ,Contract Hire and Op Leasing  ,CC64,Mini Cab Hire for Education,637,600,9/30/2012,R,AERIAL CAR SERVICES LTD       
2012-OCT,CS -Oth Operating Inc & Expend,Trading A/c Surpluses/Deficits,Transport-Contract Hire                 ,J01374,Transport Related Expenditure ,Contract Hire and Op Leasing  ,CC64,Mini Cab Hire for Education,638,792,9/30/2012,R,AERIAL CAR SERVICES LTD       
2012-OCT,CS -Oth Operating Inc & Expend,Trading A/c Surpluses/Deficits,Transport-Contract Hire                 ,J01374,Transport Related Expenditure ,Contract Hire and Op Leasing  ,CC64,Mini Cab Hire for Education,639,686.94,9/30/2012,R,BARCLAYS ASSET & SALES FINANCE
2012-OCT,CS -Oth Operating Inc & Expend,Trading A/c Surpluses/Deficits,Transport-Contract Hire                 ,J01374,Transport Related Expenditure ,Contract Hire and Op Leasing  ,CC64,Mini Cab Hire for Education,640,"1,218.00",9/30/2012,R,BARCLAYS ASSET & SALES FINANCE
2012-OCT,CS -Oth Operating Inc & Expend,Trading A/c Surpluses/Deficits,Transport-Contract Hire                 ,J01374,Transport Related Expenditure ,Contract Hire and Op Leasing  ,CC64,Mini Cab Hire for Education,641,873.24,9/30/2012,R,BARCLAYS ASSET & SALES FINANCE
2012-OCT,CS -Oth Operating Inc & Expend,Trading A/c Surpluses/Deficits,Transport-Contract Hire                 ,J01374,Transport Related Expenditure ,Contract Hire and Op Leasing  ,CC64,Mini Cab Hire for Education,642,"1,200.00",9/30/2012,R,BARCLAYS ASSET & SALES FINANCE
2012-OCT,CS -Oth Operating Inc & Expend,Trading A/c Surpluses/Deficits,Transport-Contract Hire                 ,J01374,Transport Related Expenditure ,Contract Hire and Op Leasing  ,CC64,Mini Cab Hire for Education,643,"2,380.00",9/30/2012,R,BARCLAYS ASSET & SALES FINANCE
2012-OCT,CS -Oth Operating Inc & Expend,Trading A/c Surpluses/Deficits,Transport-Contract Hire                 ,J01374,Transport Related Expenditure ,Contract Hire and Op Leasing  ,CC64,Mini Cab Hire for Education,644,"3,060.00",9/30/2012,R,BARCLAYS ASSET & SALES FINANCE
2012-OCT,CS -Oth Operating Inc & Expend,Trading A/c Surpluses/Deficits,Transport-Contract Hire                 ,J01374,Transport Related Expenditure ,Contract Hire and Op Leasing  ,CC64,Mini Cab Hire for Education,645,"1,330.00",9/30/2012,R,BARCLAYS ASSET & SALES FINANCE
2012-OCT,CS -Oth Operating Inc & Expend,Trading A/c Surpluses/Deficits,Transport-Contract Hire                 ,J01374,Transport Related Expenditure ,Contract Hire and Op Leasing  ,CC64,Mini Cab Hire for Education,646,"3,040.00",9/30/2012,R,BARCLAYS ASSET & SALES FINANCE
2012-OCT,CS -Oth Operating Inc & Expend,Trading A/c Surpluses/Deficits,Transport-Contract Hire                 ,J01374,Transport Related Expenditure ,Contract Hire and Op Leasing  ,CC64,Mini Cab Hire for Education,647,"1,980.00",9/30/2012,R,BARCLAYS ASSET & SALES FINANCE
2012-OCT,CS -Oth Operating Inc & Expend,Trading A/c Surpluses/Deficits,Transport-Contract Hire                 ,J01374,Transport Related Expenditure ,Contract Hire and Op Leasing  ,CC64,Mini Cab Hire for Education,648,760,9/30/2012,R,CAPITAL CARS                  
2012-OCT,CS -Oth Operating Inc & Expend,Trading A/c Surpluses/Deficits,Transport-Contract Hire                 ,J01374,Transport Related Expenditure ,Contract Hire and Op Leasing  ,CC64,Mini Cab Hire for Education,649,850,9/30/2012,R,CAPITAL CARS                  
2012-OCT,CS -Oth Operating Inc & Expend,Trading A/c Surpluses/Deficits,Transport-Contract Hire                 ,J01374,Transport Related Expenditure ,Contract Hire and Op Leasing  ,CC64,Mini Cab Hire for Education,650,837,9/30/2012,R,CAPITAL CARS                  
2012-OCT,CS -Oth Operating Inc & Expend,Trading A/c Surpluses/Deficits,Transport-Contract Hire                 ,J01374,Transport Related Expenditure ,Contract Hire and Op Leasing  ,CC64,Mini Cab Hire for Education,651,760,9/30/2012,R,CAPITAL CARS                  
2012-OCT,CS -Oth Operating Inc & Expend,Trading A/c Surpluses/Deficits,Transport-Contract Hire                 ,J01374,Transport Related Expenditure ,Contract Hire and Op Leasing  ,CC64,Mini Cab Hire for Education,652,"1,020.00",9/30/2012,R,CAPITAL CARS                  
2012-OCT,CS -Oth Operating Inc & Expend,Trading A/c Surpluses/Deficits,Transport-Contract Hire                 ,J01374,Transport Related Expenditure ,Contract Hire and Op Leasing  ,CC64,Mini Cab Hire for Education,653,"2,520.00",9/30/2012,R,CAPITAL CARS                  
2012-OCT,CS -Oth Operating Inc & Expend,Trading A/c Surpluses/Deficits,Transport-Contract Hire                 ,J01374,Transport Related Expenditure ,Contract Hire and Op Leasing  ,CC64,Mini Cab Hire for Education,654,"1,108.00",9/30/2012,R,CAPITAL CARS                  
2012-OCT,CS -Oth Operating Inc & Expend,Trading A/c Surpluses/Deficits,Transport-Contract Hire                 ,J01374,Transport Related Expenditure ,Contract Hire and Op Leasing  ,CC64,Mini Cab Hire for Education,655,"1,110.00",9/30/2012,R,CAPITAL CARS                  
2012-OCT,CS -Oth Operating Inc & Expend,Trading A/c Surpluses/Deficits,Transport-Contract Hire                 ,J01374,Transport Related Expenditure ,Contract Hire and Op Leasing  ,CC64,Mini Cab Hire for Education,656,880,9/30/2012,R,SHERWOOD TRANSPORT GROUP      
2012-OCT,CS -Oth Operating Inc & Expend,Trading A/c Surpluses/Deficits,Transport-Contract Hire                 ,J01374,Transport Related Expenditure ,Contract Hire and Op Leasing  ,CC64,Mini Cab Hire for Education,657,"1,260.00",9/30/2012,R,SHERWOOD TRANSPORT GROUP      
2012-OCT,CS -Oth Operating Inc & Expend,Trading A/c Surpluses/Deficits,Transport-Contract Hire                 ,J01374,Transport Related Expenditure ,Contract Hire and Op Leasing  ,CC64,Mini Cab Hire for Education,658,580,9/30/2012,R,SHERWOOD TRANSPORT GROUP      
2012-OCT,CS -Oth Operating Inc & Expend,Trading A/c Surpluses/Deficits,Transport-Contract Hire                 ,J01374,Transport Related Expenditure ,Contract Hire and Op Leasing  ,CC64,Mini Cab Hire for Education,659,"1,870.00",9/30/2012,R,SHERWOOD TRANSPORT GROUP      
2012-OCT,CS -Oth Operating Inc & Expend,Trading A/c Surpluses/Deficits,Transport-Contract Hire                 ,J01374,Transport Related Expenditure ,Contract Hire and Op Leasing  ,CC64,Mini Cab Hire for Education,660,916.3,9/30/2012,R,SHERWOOD TRANSPORT GROUP      
2012-OCT,CS -Oth Operating Inc & Expend,Trading A/c Surpluses/Deficits,Transport-Contract Hire                 ,J01374,Transport Related Expenditure ,Contract Hire and Op Leasing  ,CC64,Mini Cab Hire for Education,661,"1,485.00",9/30/2012,R,SHERWOOD TRANSPORT GROUP      
2012-OCT,CS -Oth Operating Inc & Expend,Trading A/c Surpluses/Deficits,Transport-Contract Hire                 ,J01374,Transport Related Expenditure ,Contract Hire and Op Leasing  ,CC64,Mini Cab Hire for Education,662,"1,192.50",9/30/2012,R,SHERWOOD TRANSPORT GROUP      
2012-OCT,CS -Oth Operating Inc & Expend,Trading A/c Surpluses/Deficits,Transport-Contract Hire                 ,J01374,Transport Related Expenditure ,Contract Hire and Op Leasing  ,CC64,Mini Cab Hire for Education,663,"1,190.00",9/30/2012,R,SHERWOOD TRANSPORT GROUP      
2012-OCT,CS -Oth Operating Inc & Expend,Trading A/c Surpluses/Deficits,Transport-Contract Hire                 ,J01374,Transport Related Expenditure ,Contract Hire and Op Leasing  ,CC64,Mini Cab Hire for Education,664,"1,894.20",9/30/2012,R,SHERWOOD TRANSPORT GROUP      
2012-OCT,CS -Oth Operating Inc & Expend,Trading A/c Surpluses/Deficits,Transport-Contract Hire                 ,J01374,Transport Related Expenditure ,Contract Hire and Op Leasing  ,CC64,Mini Cab Hire for Education,665,"1,785.00",9/30/2012,R,SHERWOOD TRANSPORT GROUP      
2012-OCT,CS -Oth Operating Inc & Expend,Trading A/c Surpluses/Deficits,Transport-Contract Hire                 ,J01374,Transport Related Expenditure ,Contract Hire and Op Leasing  ,CC64,Mini Cab Hire for Education,666,"1,224.00",9/30/2012,R,SILVERBURN FINANCE (UK) LTD   
2012-OCT,CS -Oth Operating Inc & Expend,Trading A/c Surpluses/Deficits,Transport-Contract Hire                 ,J01374,Transport Related Expenditure ,Contract Hire and Op Leasing  ,CC64,Mini Cab Hire for Education,667,648,9/30/2012,R,SILVERBURN FINANCE (UK) LTD   
2012-OCT,CS -Oth Operating Inc & Expend,Trading A/c Surpluses/Deficits,Transport-Contract Hire                 ,J01374,Transport Related Expenditure ,Contract Hire and Op Leasing  ,CC64,Mini Cab Hire for Education,668,"3,060.00",9/30/2012,R,SILVERBURN FINANCE (UK) LTD   
2012-OCT,CS -Oth Operating Inc & Expend,Trading A/c Surpluses/Deficits,Transport-Contract Hire                 ,J01374,Transport Related Expenditure ,Contract Hire and Op Leasing  ,CC64,Mini Cab Hire for Education,669,736.2,9/30/2012,R,SILVERBURN FINANCE (UK) LTD   
2012-OCT,CS -Oth Operating Inc & Expend,Trading A/c Surpluses/Deficits,Transport-Contract Hire                 ,J01374,Transport Related Expenditure ,Contract Hire and Op Leasing  ,CC64,Mini Cab Hire for Education,670,600,9/30/2012,R,SILVERBURN FINANCE (UK) LTD   
2012-OCT,CS -Oth Operating Inc & Expend,Trading A/c Surpluses/Deficits,Transport-Contract Hire                 ,J01374,Transport Related Expenditure ,Contract Hire and Op Leasing  ,CC64,Mini Cab Hire for Education,671,"1,188.00",9/30/2012,R,SILVERBURN FINANCE (UK) LTD   
2012-OCT,CS -Oth Operating Inc & Expend,Trading A/c Surpluses/Deficits,Transport-Contract Hire                 ,J01374,Transport Related Expenditure ,Contract Hire and Op Leasing  ,CC64,Mini Cab Hire for Education,672,912,9/30/2012,R,SILVERBURN FINANCE (UK) LTD   
2012-OCT,CS -Oth Operating Inc & Expend,Trading A/c Surpluses/Deficits,Transport-Contract Hire                 ,J01374,Transport Related Expenditure ,Contract Hire and Op Leasing  ,CC64,Mini Cab Hire for Education,673,952,9/30/2012,R,SILVERBURN FINANCE (UK) LTD   
2012-OCT,CS -Oth Operating Inc & Expend,Trading A/c Surpluses/Deficits,Transport-Contract Hire                 ,J01374,Transport Related Expenditure ,Contract Hire and Op Leasing  ,CC64,Mini Cab Hire for Education,674,"1,728.00",9/30/2012,R,SILVERBURN FINANCE (UK) LTD   
2012-OCT,CS -Oth Operating Inc & Expend,Trading A/c Surpluses/Deficits,Transport-Contract Hire                 ,J01374,Transport Related Expenditure ,Contract Hire and Op Leasing  ,CC64,Mini Cab Hire for Education,675,"1,332.00",9/30/2012,R,SILVERBURN FINANCE (UK) LTD   
2012-OCT,CS -Oth Operating Inc & Expend,Trading A/c Surpluses/Deficits,Transport-Contract Hire                 ,J01374,Transport Related Expenditure ,Contract Hire and Op Leasing  ,CC64,Mini Cab Hire for Education,676,612,9/30/2012,R,SILVERBURN FINANCE (UK) LTD   
2012-OCT,CS -Oth Operating Inc & Expend,Trading A/c Surpluses/Deficits,Transport-Contract Hire                 ,J01374,Transport Related Expenditure ,Contract Hire and Op Leasing  ,CC64,Mini Cab Hire for Education,677,"1,287.00",9/30/2012,R,SILVERBURN FINANCE (UK) LTD   
2012-OCT,CS -Oth Operating Inc & Expend,Trading A/c Surpluses/Deficits,Transport-Contract Hire                 ,J01374,Transport Related Expenditure ,Contract Hire and Op Leasing  ,CC64,Mini Cab Hire for Education,678,760,9/30/2012,R,SILVERBURN FINANCE (UK) LTD   
2012-OCT,CS -Oth Operating Inc & Expend,Trading A/c Surpluses/Deficits,Transport-Contract Hire                 ,J01374,Transport Related Expenditure ,Contract Hire and Op Leasing  ,CC64,Mini Cab Hire for Education,679,"1,512.00",9/30/2012,R,SILVERBURN FINANCE (UK) LTD   
2012-OCT,CS -Oth Operating Inc & Expend,Trading A/c Surpluses/Deficits,Transport-Contract Hire                 ,J01374,Transport Related Expenditure ,Contract Hire and Op Leasing  ,CC64,Mini Cab Hire for Education,680,"1,728.00",10/4/2012,R,SILVERBURN FINANCE (UK) LTD   
2012-OCT,CS -Oth Operating Inc & Expend,Trading A/c Surpluses/Deficits,Transport-Contract Hire                 ,J01374,Transport Related Expenditure ,Contract Hire and Op Leasing  ,CC64,Mini Cab Hire for Education,681,608,9/30/2012,R,SILVERBURN FINANCE (UK) LTD   
2012-OCT,CS -Oth Operating Inc & Expend,Trading A/c Surpluses/Deficits,Transport-Contract Hire                 ,J01374,Transport Related Expenditure ,Contract Hire and Op Leasing  ,CC64,Mini Cab Hire for Education,682,"1,080.00",9/30/2012,R,SILVERBURN FINANCE (UK) LTD   
2012-OCT,CS -Oth Operating Inc & Expend,Trading A/c Surpluses/Deficits,Transport-Contract Hire                 ,J01374,Transport Related Expenditure ,Contract Hire and Op Leasing  ,CC64,Mini Cab Hire for Education,683,500,9/30/2012,R,CHEAM STATION CARS            
2012-OCT,CS -Oth Operating Inc & Expend,Trading A/c Surpluses/Deficits,Transport-Contract Hire                 ,J01374,Transport Related Expenditure ,Contract Hire and Op Leasing  ,CC64,Mini Cab Hire for Education,684,"12,495.89",10/14/2012,R,KINGSTON ACCESSIBILITY TRAN LT
2012-OCT,CS -Oth Operating Inc & Expend,Trading A/c Surpluses/Deficits,Transport-Contract Hire                 ,J01374,Transport Related Expenditure ,Contract Hire and Op Leasing  ,CC64,Mini Cab Hire for Education,685,540,6/25/2012,R,CAREFIRST24                   
2012-OCT,CS -Oth Operating Inc & Expend,Trading A/c Surpluses/Deficits,Transport-Contract Hire                 ,J01374,Transport Related Expenditure ,Contract Hire and Op Leasing  ,CC64,Mini Cab Hire for Education,686,"1,168.20",9/30/2012,R,SHERWOOD TRANSPORT GROUP      
2012-OCT,CS -Oth Operating Inc & Expend,Trading A/c Surpluses/Deficits,Transport-Contract Hire                 ,J01374,Transport Related Expenditure ,Contract Hire and Op Leasing  ,CC64,Mini Cab Hire for Education,687,664.5,10/11/2012,R,GALPINS SERVICE               
2012-OCT,CS -Oth Operating Inc & Expend,Trading A/c Surpluses/Deficits,Transport-Contract Hire                 ,J01374,Transport Related Expenditure ,Contract Hire and Op Leasing  ,CC64,Mini Cab Hire for Education,688,672,9/30/2012,R,GALPINS SERVICE               
2012-OCT,CS -Oth Operating Inc & Expend,Trading A/c Surpluses/Deficits,Transport-Contract Hire                 ,J01374,Transport Related Expenditure ,Contract Hire and Op Leasing  ,CC64,Mini Cab Hire for Education,689,634.6,9/30/2012,R,MERTON COMMUNITY TRANSPORT    
2012-OCT,CS -Oth Operating Inc & Expend,Trading A/c Surpluses/Deficits,Transport-Contract Hire                 ,J01374,Transport Related Expenditure ,Contract Hire and Op Leasing  ,CC64,Mini Cab Hire for Education,690,"12,850.00",10/21/2012,R,KINGSTON ACCESSIBILITY TRAN LT
2012-OCT,CS -Oth Operating Inc & Expend,Trading A/c Surpluses/Deficits,Transport-Contract Hire                 ,J01374,Transport Related Expenditure ,Contract Hire and Op Leasing  ,CC64,Mini Cab Hire for Education,691,680,10/5/2012,R,OLYMPIA TRANSPORT LIMITED     
2012-OCT,CS -Oth Operating Inc & Expend,Trading A/c Surpluses/Deficits,Transport-Contract Hire                 ,J01374,Transport Related Expenditure ,Contract Hire and Op Leasing  ,CC66,Mini Cab Hire -Soc Serv -Child,692,"1,917.89",9/30/2012,R,KINGSTON ACCESSIBILITY TRAN LT
2012-OCT,CS -Oth Operating Inc & Expend,Trading A/c Surpluses/Deficits,Transport-Contract Hire                 ,J01374,Transport Related Expenditure ,Contract Hire and Op Leasing  ,CC66,Mini Cab Hire -Soc Serv -Child,693,"1,817.90",10/7/2012,R,KINGSTON ACCESSIBILITY TRAN LT
2012-OCT,CS -Oth Operating Inc & Expend,Trading A/c Surpluses/Deficits,Transport-Contract Hire                 ,J01374,Transport Related Expenditure ,Contract Hire and Op Leasing  ,CC66,Mini Cab Hire -Soc Serv -Child,694,850,9/30/2012,R,CHEAM STATION CARS            
2012-OCT,CS -Oth Operating Inc & Expend,Trading A/c Surpluses/Deficits,Transport-Contract Hire                 ,J01374,Transport Related Expenditure ,Contract Hire and Op Leasing  ,CC66,Mini Cab Hire -Soc Serv -Child,695,832,9/30/2012,R,BARCLAYS ASSET & SALES FINANCE
2012-OCT,CS -Oth Operating Inc & Expend,Trading A/c Surpluses/Deficits,Transport-Contract Hire                 ,J01374,Transport Related Expenditure ,Contract Hire and Op Leasing  ,CC66,Mini Cab Hire -Soc Serv -Child,696,720,9/30/2012,R,CAPITAL CARS                  
2012-OCT,CS -Oth Operating Inc & Expend,Trading A/c Surpluses/Deficits,Transport-Contract Hire                 ,J01374,Transport Related Expenditure ,Contract Hire and Op Leasing  ,CC66,Mini Cab Hire -Soc Serv -Child,697,630,9/30/2012,R,CHEAM STATION CARS            
2012-OCT,CS -Oth Operating Inc & Expend,Trading A/c Surpluses/Deficits,Transport-Contract Hire                 ,J01374,Transport Related Expenditure ,Contract Hire and Op Leasing  ,CC66,Mini Cab Hire -Soc Serv -Child,698,"1,792.89",10/14/2012,R,KINGSTON ACCESSIBILITY TRAN LT
2012-OCT,CS -Oth Operating Inc & Expend,Trading A/c Surpluses/Deficits,Transport-Contract Hire                 ,J01374,Transport Related Expenditure ,Contract Hire and Op Leasing  ,CC66,Mini Cab Hire -Soc Serv -Child,699,"1,767.90",10/21/2012,R,KINGSTON ACCESSIBILITY TRAN LT
2012-OCT,CS -Oth Operating Inc & Expend,Trading A/c Surpluses/Deficits,Transport-Contract Hire                 ,J01374,Transport Related Expenditure ,Contract Hire and Op Leasing  ,CC67,Mini Cab Hire -Soc Serv -Adult,700,"1,882.52",9/30/2012,R,KINGSTON ACCESSIBILITY TRAN LT
2012-OCT,CS -Oth Operating Inc & Expend,Trading A/c Surpluses/Deficits,Transport-Contract Hire                 ,J01374,Transport Related Expenditure ,Contract Hire and Op Leasing  ,CC67,Mini Cab Hire -Soc Serv -Adult,701,"1,722.52",10/7/2012,R,KINGSTON ACCESSIBILITY TRAN LT
2012-OCT,CS -Oth Operating Inc & Expend,Trading A/c Surpluses/Deficits,Transport-Contract Hire                 ,J01374,Transport Related Expenditure ,Contract Hire and Op Leasing  ,CC67,Mini Cab Hire -Soc Serv -Adult,702,"1,208.00",9/30/2012,R,NVCAR HIRE LTD                
2012-OCT,CS -Oth Operating Inc & Expend,Trading A/c Surpluses/Deficits,Transport-Contract Hire                 ,J01374,Transport Related Expenditure ,Contract Hire and Op Leasing  ,CC67,Mini Cab Hire -Soc Serv -Adult,703,576,9/30/2012,R,BARCLAYS ASSET & SALES FINANCE
2012-OCT,CS -Oth Operating Inc & Expend,Trading A/c Surpluses/Deficits,Transport-Contract Hire                 ,J01374,Transport Related Expenditure ,Contract Hire and Op Leasing  ,CC67,Mini Cab Hire -Soc Serv -Adult,704,888,9/30/2012,R,AERIAL CAR SERVICES LTD       
2012-OCT,CS -Oth Operating Inc & Expend,Trading A/c Surpluses/Deficits,Transport-Contract Hire                 ,J01374,Transport Related Expenditure ,Contract Hire and Op Leasing  ,CC67,Mini Cab Hire -Soc Serv -Adult,705,800,9/30/2012,R,AERIAL CAR SERVICES LTD       
2012-OCT,CS -Oth Operating Inc & Expend,Trading A/c Surpluses/Deficits,Transport-Contract Hire                 ,J01374,Transport Related Expenditure ,Contract Hire and Op Leasing  ,CC67,Mini Cab Hire -Soc Serv -Adult,706,560,9/30/2012,R,BARCLAYS ASSET & SALES FINANCE
2012-OCT,CS -Oth Operating Inc & Expend,Trading A/c Surpluses/Deficits,Transport-Contract Hire                 ,J01374,Transport Related Expenditure ,Contract Hire and Op Leasing  ,CC67,Mini Cab Hire -Soc Serv -Adult,707,784,10/3/2012,R,CAPITAL CARS                  
2012-OCT,CS -Oth Operating Inc & Expend,Trading A/c Surpluses/Deficits,Transport-Contract Hire                 ,J01374,Transport Related Expenditure ,Contract Hire and Op Leasing  ,CC67,Mini Cab Hire -Soc Serv -Adult,708,"1,084.00",9/30/2012,R,CAPITAL CARS                  
2012-OCT,CS -Oth Operating Inc & Expend,Trading A/c Surpluses/Deficits,Transport-Contract Hire                 ,J01374,Transport Related Expenditure ,Contract Hire and Op Leasing  ,CC67,Mini Cab Hire -Soc Serv -Adult,709,"1,882.52",10/14/2012,R,KINGSTON ACCESSIBILITY TRAN LT
2012-OCT,CS -Oth Operating Inc & Expend,Trading A/c Surpluses/Deficits,Transport-Contract Hire                 ,J01374,Transport Related Expenditure ,Contract Hire and Op Leasing  ,CC67,Mini Cab Hire -Soc Serv -Adult,710,-561.6,8/31/2012,R,SILVERBURN FINANCE (UK) LTD   
2012-OCT,CS -Oth Operating Inc & Expend,Trading A/c Surpluses/Deficits,Transport-Contract Hire                 ,J01374,Transport Related Expenditure ,Contract Hire and Op Leasing  ,CC67,Mini Cab Hire -Soc Serv -Adult,711,"1,857.49",10/21/2012,R,KINGSTON ACCESSIBILITY TRAN LT
2012-OCT,CS -Oth Operating Inc & Expend,Trading A/c Surpluses/Deficits,Transport-Contract Hire                 ,J01374,Transport Related Expenditure ,Contract Hire and Op Leasing  ,CC68,Vehicle Hire Special Projects,712,"1,260.00",9/30/2012,R,KINGSTON ACCESSIBILITY TRAN LT
2012-OCT,CS -Oth Operating Inc & Expend,Trading A/c Surpluses/Deficits,Transport-Contract Hire                 ,J01374,Transport Related Expenditure ,Contract Hire and Op Leasing  ,CC68,Vehicle Hire Special Projects,713,"1,002.50",9/30/2012,R,BARCLAYS ASSET & SALES FINANCE
2012-OCT,CS -Oth Operating Inc & Expend,Trading A/c Surpluses/Deficits,Transport-Contract Hire                 ,J01374,Transport Related Expenditure ,Contract Hire and Op Leasing  ,CC68,Vehicle Hire Special Projects,714,716.33,9/30/2012,R,GALPINS SERVICE               
2012-OCT,CS -Oth Operating Inc & Expend,Trading A/c Surpluses/Deficits,Transport-Contract Hire                 ,J01374,Transport Related Expenditure ,Contract Hire and Op Leasing  ,CC68,Vehicle Hire Special Projects,715,"1,260.00",10/7/2012,R,KINGSTON ACCESSIBILITY TRAN LT
2012-OCT,CS -Oth Operating Inc & Expend,Trading A/c Surpluses/Deficits,Transport-Contract Hire                 ,J01374,Transport Related Expenditure ,Contract Hire and Op Leasing  ,CC68,Vehicle Hire Special Projects,716,"1,896.00",9/30/2012,R,BARCLAYS ASSET & SALES FINANCE
2012-OCT,CS -Oth Operating Inc & Expend,Trading A/c Surpluses/Deficits,Transport-Contract Hire                 ,J01374,Transport Related Expenditure ,Contract Hire and Op Leasing  ,CC68,Vehicle Hire Special Projects,717,560,9/30/2012,R,BARCLAYS ASSET & SALES FINANCE
2012-OCT,CS -Oth Operating Inc & Expend,Trading A/c Surpluses/Deficits,Transport-Contract Hire                 ,J01374,Transport Related Expenditure ,Contract Hire and Op Leasing  ,CC68,Vehicle Hire Special Projects,718,"1,008.00",9/30/2012,R,BARCLAYS ASSET & SALES FINANCE
2012-OCT,CS -Oth Operating Inc & Expend,Trading A/c Surpluses/Deficits,Transport-Contract Hire                 ,J01374,Transport Related Expenditure ,Contract Hire and Op Leasing  ,CC68,Vehicle Hire Special Projects,719,660,9/30/2012,R,CAPITAL CARS                  
2012-OCT,CS -Oth Operating Inc & Expend,Trading A/c Surpluses/Deficits,Transport-Contract Hire                 ,J01374,Transport Related Expenditure ,Contract Hire and Op Leasing  ,CC68,Vehicle Hire Special Projects,720,"1,224.00",9/30/2012,R,SILVERBURN FINANCE (UK) LTD   
2012-OCT,CS -Oth Operating Inc & Expend,Trading A/c Surpluses/Deficits,Transport-Contract Hire                 ,J01374,Transport Related Expenditure ,Contract Hire and Op Leasing  ,CC68,Vehicle Hire Special Projects,721,"1,260.00",10/14/2012,R,KINGSTON ACCESSIBILITY TRAN LT
2012-OCT,CS -Oth Operating Inc & Expend,Trading A/c Surpluses/Deficits,Transport-Contract Hire                 ,J01374,Transport Related Expenditure ,Contract Hire and Op Leasing  ,CC68,Vehicle Hire Special Projects,722,"1,920.00",9/30/2012,R,SHERWOOD TRANSPORT GROUP      
2012-OCT,CS -Oth Operating Inc & Expend,Trading A/c Surpluses/Deficits,Transport-Contract Hire                 ,J01374,Transport Related Expenditure ,Contract Hire and Op Leasing  ,CC68,Vehicle Hire Special Projects,723,"1,260.00",10/21/2012,R,KINGSTON ACCESSIBILITY TRAN LT
2012-OCT,CS -Oth Operating Inc & Expend,Trading A/c Surpluses/Deficits,Transport-Workshop                      ,J01376,Premises Related Expenditure  ,RepairsAlterations&MtceOfBldgs,BA03,DDM - Mechanical,724,501.37,9/25/2012,R,COFELY LIMITED                
2012-OCT,CS -Oth Operating Inc & Expend,Trading A/c Surpluses/Deficits,Transport-Workshop                      ,J01376,Transport Related Expenditure ,Direct Transport Costs        ,CA02,Tyres,725,"1,605.00",9/21/2012,R,MORDEN TYRE SERVICES LTD      
2012-OCT,CS -Oth Operating Inc & Expend,Trading A/c Surpluses/Deficits,Transport-Workshop                      ,J01376,Transport Related Expenditure ,Direct Transport Costs        ,CA02,Tyres,726,"1,805.00",9/20/2012,R,MORDEN TYRE SERVICES LTD      
2012-OCT,CS -Oth Operating Inc & Expend,Trading A/c Surpluses/Deficits,Transport-Workshop                      ,J01376,Transport Related Expenditure ,Direct Transport Costs        ,CA02,Tyres,727,725,10/2/2012,R,MORDEN TYRE SERVICES LTD      
2012-OCT,CS -Oth Operating Inc & Expend,Trading A/c Surpluses/Deficits,Transport-Workshop                      ,J01376,Transport Related Expenditure ,Direct Transport Costs        ,CA02,Tyres,728,"1,130.00",10/1/2012,R,MORDEN TYRE SERVICES LTD      
2012-OCT,CS -Oth Operating Inc & Expend,Trading A/c Surpluses/Deficits,Transport-Workshop                      ,J01376,Transport Related Expenditure ,Direct Transport Costs        ,CA02,Tyres,729,"1,305.00",10/9/2012,R,MORDEN TYRE SERVICES LTD      
2012-OCT,CS -Oth Operating Inc & Expend,Trading A/c Surpluses/Deficits,Transport-Workshop                      ,J01376,Transport Related Expenditure ,Direct Transport Costs        ,CA02,Tyres,730,660,10/16/2012,R,MORDEN TYRE SERVICES LTD      
2012-OCT,CS -Oth Operating Inc & Expend,Trading A/c Surpluses/Deficits,Transport-Workshop                      ,J01376,Transport Related Expenditure ,Direct Transport Costs        ,CA02,Tyres,731,660,10/12/2012,R,MORDEN TYRE SERVICES LTD      
2012-OCT,CS -Oth Operating Inc & Expend,Trading A/c Surpluses/Deficits,Transport-Workshop                      ,J01376,Transport Related Expenditure ,Direct Transport Costs        ,CA02,Tyres,732,660,10/17/2012,R,MORDEN TYRE SERVICES LTD      
2012-OCT,CS -Oth Operating Inc & Expend,Trading A/c Surpluses/Deficits,Transport-Workshop                      ,J01376,Transport Related Expenditure ,Direct Transport Costs        ,CA55,Specialist Maint. (Off Site),733,835.5,9/3/2012,R,GREEN MACHINES                
2012-OCT,CS -Oth Operating Inc & Expend,Trading A/c Surpluses/Deficits,Transport-Workshop                      ,J01376,Transport Related Expenditure ,Direct Transport Costs        ,CA55,Specialist Maint. (Off Site),734,855.88,9/5/2012,R,GRAYS TRUCK CENTRE LIMITED    
2012-OCT,CS -Oth Operating Inc & Expend,Trading A/c Surpluses/Deficits,Transport-Workshop                      ,J01376,Transport Related Expenditure ,Direct Transport Costs        ,CA55,Specialist Maint. (Off Site),735,600.2,9/26/2012,R,REDACTED
2012-OCT,CS -Oth Operating Inc & Expend,Trading A/c Surpluses/Deficits,Transport-Workshop                      ,J01376,Transport Related Expenditure ,Direct Transport Costs        ,CA55,Specialist Maint. (Off Site),736,731.6,9/28/2012,R,KINGSLEY COMM COMPONENTS LTD  
2012-OCT,CS -Oth Operating Inc & Expend,Trading A/c Surpluses/Deficits,Transport-Workshop                      ,J01376,Transport Related Expenditure ,Direct Transport Costs        ,CA55,Specialist Maint. (Off Site),737,856.5,9/28/2012,R,KINGSLEY COMM COMPONENTS LTD  
2012-OCT,CS -Oth Operating Inc & Expend,Trading A/c Surpluses/Deficits,Transport-Workshop                      ,J01376,Transport Related Expenditure ,Direct Transport Costs        ,CA55,Specialist Maint. (Off Site),738,856.5,9/28/2012,R,KINGSLEY COMM COMPONENTS LTD  
2012-OCT,CS -Oth Operating Inc & Expend,Trading A/c Surpluses/Deficits,Transport-Workshop                      ,J01376,Transport Related Expenditure ,Direct Transport Costs        ,CA55,Specialist Maint. (Off Site),739,835.3,9/28/2012,R,KINGSLEY COMM COMPONENTS LTD  
2012-OCT,CS -Oth Operating Inc & Expend,Trading A/c Surpluses/Deficits,Transport-Workshop                      ,J01376,Transport Related Expenditure ,Direct Transport Costs        ,CA55,Specialist Maint. (Off Site),740,835.3,9/28/2012,R,KINGSLEY COMM COMPONENTS LTD  
2012-OCT,CS -Oth Operating Inc & Expend,Trading A/c Surpluses/Deficits,Transport-Workshop                      ,J01376,Transport Related Expenditure ,Direct Transport Costs        ,CA56,Specialist Maint. (On Site),741,835.5,10/1/2012,R,GREEN MACHINES                
2012-OCT,CS -Oth Operating Inc & Expend,Trading A/c Surpluses/Deficits,Transport-Workshop                      ,J01376,Transport Related Expenditure ,Direct Transport Costs        ,CA56,Specialist Maint. (On Site),742,835.5,10/1/2012,R,GREEN MACHINES                
2012-OCT,CS -Oth Operating Inc & Expend,Trading A/c Surpluses/Deficits,Transport-Workshop                      ,J01376,Transport Related Expenditure ,Direct Transport Costs        ,CA56,Specialist Maint. (On Site),743,625.23,10/9/2012,R,JOHNSTON SWEEPERS LIMITED     
2012-OCT,CS -Oth Operating Inc & Expend,Trading A/c Surpluses/Deficits,Transport-Workshop                      ,J01376,Transport Related Expenditure ,Direct Transport Costs        ,CA56,Specialist Maint. (On Site),744,772.93,10/19/2012,R,JOHNSTON SWEEPERS LIMITED     
2012-OCT,CS -Oth Operating Inc & Expend,Trading A/c Surpluses/Deficits,Transport-Workshop                      ,J01376,Transport Related Expenditure ,Direct Transport Costs        ,CA56,Specialist Maint. (On Site),745,"1,198.06",10/18/2012,R,R.J.H.WELDING                 
2012-OCT,CS -Oth Operating Inc & Expend,Trading A/c Surpluses/Deficits,Transport-Workshop                      ,J01376,Transport Related Expenditure ,Direct Transport Costs        ,CA56,Specialist Maint. (On Site),746,525,10/18/2012,R,R.J.H.WELDING                 
2012-OCT,CS -Oth Operating Inc & Expend,Trading A/c Surpluses/Deficits,Transport-Workshop                      ,J01376,Transport Related Expenditure ,Direct Transport Costs        ,CA56,Specialist Maint. (On Site),747,750,10/17/2012,R,R.J.H.WELDING                 
2012-OCT,CS -Oth Operating Inc & Expend,Trading A/c Surpluses/Deficits,Transport-Workshop                      ,J01376,Transport Related Expenditure ,Direct Transport Costs        ,CA56,Specialist Maint. (On Site),748,750,10/18/2012,R,R.J.H.WELDING                 
2012-OCT,CS -Oth Operating Inc & Expend,Trading A/c Surpluses/Deficits,Transport-Workshop                      ,J01376,Transport Related Expenditure ,Direct Transport Costs        ,CA72,Vehicle Parts,749,549.43,9/18/2012,R,DENNIS EAGLE LIMITED          
2012-OCT,CS -Oth Operating Inc & Expend,Trading A/c Surpluses/Deficits,Transport-Workshop                      ,J01376,Transport Related Expenditure ,Direct Transport Costs        ,CA72,Vehicle Parts,750,561.49,9/11/2012,R,DENNIS EAGLE LIMITED          
2012-OCT,CS -Oth Operating Inc & Expend,Trading A/c Surpluses/Deficits,Transport-Workshop                      ,J01376,Transport Related Expenditure ,Direct Transport Costs        ,CA72,Vehicle Parts,751,-528.4,9/18/2012,R,DENNIS EAGLE LIMITED          
2012-OCT,CS -Oth Operating Inc & Expend,Trading A/c Surpluses/Deficits,Transport-Workshop                      ,J01376,Transport Related Expenditure ,Direct Transport Costs        ,CA72,Vehicle Parts,752,708.93,10/1/2012,R,DENNIS EAGLE LIMITED          
2012-OCT,CS -Oth Operating Inc & Expend,Trading A/c Surpluses/Deficits,Transport-Workshop                      ,J01376,Transport Related Expenditure ,Direct Transport Costs        ,CA72,Vehicle Parts,753,976.15,10/3/2012,R,GEESINK NORBA                 
2012-OCT,CS -Oth Operating Inc & Expend,Trading A/c Surpluses/Deficits,Transport-Workshop                      ,J01376,Transport Related Expenditure ,Direct Transport Costs        ,CA72,Vehicle Parts,754,568.87,10/8/2012,R,COMMERCIAL & PLANT LTD        
2012-OCT,CS -Oth Operating Inc & Expend,Trading A/c Surpluses/Deficits,Transport-Workshop                      ,J01376,Transport Related Expenditure ,Direct Transport Costs        ,CA72,Vehicle Parts,755,575.84,10/15/2012,R,COMMERCIAL & PLANT LTD        
2012-OCT,CS -Oth Operating Inc & Expend,Trading A/c Surpluses/Deficits,Transport-Workshop                      ,J01376,Transport Related Expenditure ,Direct Transport Costs        ,CA72,Vehicle Parts,756,722.94,10/10/2012,R,HTC CROYDON                   
2012-OCT,CS -Oth Operating Inc & Expend,Trading A/c Surpluses/Deficits,Transport-Workshop                      ,J01376,Transport Related Expenditure ,Direct Transport Costs        ,CA72,Vehicle Parts,757,"1,133.55",10/26/2012,R,COMMERCIAL & PLANT LTD        
2012-OCT,CS -Oth Operating Inc & Expend,Trading A/c Surpluses/Deficits,Transport-Workshop                      ,J01376,Transport Related Expenditure ,Direct Transport Costs        ,CA72,Vehicle Parts,758,805,10/13/2012,R,REDACTED
2012-OCT,CS -Oth Operating Inc & Expend,Trading A/c Surpluses/Deficits,Transport-Workshop                      ,J01376,Transport Related Expenditure ,Direct Transport Costs        ,CA72,Vehicle Parts,759,734.56,10/18/2012,R,GEESINK NORBA                 
2012-OCT,CS -Oth Operating Inc & Expend,Trading A/c Surpluses/Deficits,Transport-Workshop                      ,J01376,Transport Related Expenditure ,Direct Transport Costs        ,CA72,Vehicle Parts,760,"1,720.16",10/24/2012,R,OPTIMUM OILS LTD              
2012-OCT,CS -Oth Operating Inc & Expend,Trading A/c Surpluses/Deficits,Transport-Workshop                      ,J01376,Transport Related Expenditure ,Contract Hire and Op Leasing  ,CC53,Plant Hire for MRCS,761,562.5,7/27/2012,R,GVS HIRE LTD                  
2012-OCT,CS -Oth Operating Inc & Expend,Trading A/c Surpluses/Deficits,Transport-Workshop                      ,J01376,Transport Related Expenditure ,Contract Hire and Op Leasing  ,CC60,Vehicle Hire for LB Sutton,762,"2,844.00",9/30/2012,R,BARCLAYS ASSET & SALES FINANCE
2012-OCT,CS -Oth Operating Inc & Expend,Trading A/c Surpluses/Deficits,Transport-Workshop                      ,J01376,Transport Related Expenditure ,Contract Hire and Op Leasing  ,CC60,Vehicle Hire for LB Sutton,763,"1,634.00",9/30/2012,R,BARCLAYS ASSET & SALES FINANCE
2012-OCT,CS -Oth Operating Inc & Expend,Trading A/c Surpluses/Deficits,Transport-Workshop                      ,J01376,Transport Related Expenditure ,Contract Hire and Op Leasing  ,CC60,Vehicle Hire for LB Sutton,764,"1,066.94",9/30/2012,R,BARCLAYS ASSET & SALES FINANCE
2012-OCT,CS -Oth Operating Inc & Expend,Trading A/c Surpluses/Deficits,Transport-Workshop                      ,J01376,Transport Related Expenditure ,Contract Hire and Op Leasing  ,CC60,Vehicle Hire for LB Sutton,765,"1,854.00",9/28/2012,R,BRUNSWICK CARS LTD            
2012-OCT,CS -Oth Operating Inc & Expend,Trading A/c Surpluses/Deficits,Transport-Workshop                      ,J01376,Transport Related Expenditure ,Contract Hire and Op Leasing  ,CC60,Vehicle Hire for LB Sutton,766,"2,660.00",9/28/2012,R,BRUNSWICK CARS LTD            
2012-OCT,CS -Oth Operating Inc & Expend,Trading A/c Surpluses/Deficits,Transport-Workshop                      ,J01376,Transport Related Expenditure ,Contract Hire and Op Leasing  ,CC60,Vehicle Hire for LB Sutton,767,"2,142.00",9/28/2012,R,BRUNSWICK CARS LTD            
2012-OCT,CS -Oth Operating Inc & Expend,Trading A/c Surpluses/Deficits,Transport-Workshop                      ,J01376,Transport Related Expenditure ,Contract Hire and Op Leasing  ,CC60,Vehicle Hire for LB Sutton,768,"1,368.00",9/29/2012,R,CALVERTON FACTORS LTD         
2012-OCT,CS -Oth Operating Inc & Expend,Trading A/c Surpluses/Deficits,Transport-Workshop                      ,J01376,Transport Related Expenditure ,Contract Hire and Op Leasing  ,CC60,Vehicle Hire for LB Sutton,769,"1,860.00",9/29/2012,R,CALVERTON FACTORS LTD         
2012-OCT,CS -Oth Operating Inc & Expend,Trading A/c Surpluses/Deficits,Transport-Workshop                      ,J01376,Transport Related Expenditure ,Contract Hire and Op Leasing  ,CC60,Vehicle Hire for LB Sutton,770,960,9/29/2012,R,CALVERTON FACTORS LTD         
2012-OCT,CS -Oth Operating Inc & Expend,Trading A/c Surpluses/Deficits,Transport-Workshop                      ,J01376,Transport Related Expenditure ,Contract Hire and Op Leasing  ,CC60,Vehicle Hire for LB Sutton,771,"1,620.00",9/29/2012,R,CALVERTON FACTORS LTD         
2012-OCT,CS -Oth Operating Inc & Expend,Trading A/c Surpluses/Deficits,Transport-Workshop                      ,J01376,Transport Related Expenditure ,Contract Hire and Op Leasing  ,CC65,Vehicle Hire for Education,772,666,9/30/2012,R,CAPITAL CARS                  
2012-OCT,CS -Oth Operating Inc & Expend,Trading A/c Surpluses/Deficits,Transport-Workshop                      ,J01376,Transport Related Expenditure ,Contract Hire and Op Leasing  ,CC65,Vehicle Hire for Education,773,666,9/30/2012,R,CAPITAL CARS                  
2012-OCT,CS -Oth Operating Inc & Expend,Trading A/c Surpluses/Deficits,Transport-Workshop                      ,J01376,Supplies & Services           ,Equip Furniture/Materials     ,DA01,Equipment - R & M,774,505.44,10/1/2012,R,SUNLIGHT SERVICE GROUP LTD    
2012-OCT,Cultural Env Reg&Plan Services,SMSS (Env),Estates Mgt                             ,J01420,Supplies & Services           ,Services                      ,DF03,Consultants,775,650,9/6/2012,R,VALUATION OFFICE AGENCY       
2012-OCT,Cultural Env Reg&Plan Services,SMSS (Env),Estates Mgt                             ,J01420,Supplies & Services           ,Grants and Subscriptions      ,DJ04,Subscriptions,776,500,10/11/2012,R,NATIONAL BEST VALUE BENCH MARK
2012-OCT,CS -Oth Operating Inc & Expend,INVESTMENT PROPERTIES,CAPITAL DISPOSAL BUDGET                 ,J01451,Supplies & Services           ,Services                      ,DF03,Consultants,777,"1,500.00",8/3/2012,R,SIMON PURCELL ASSOCIATES LTD  
2012-OCT,CS -Oth Operating Inc & Expend,INVESTMENT PROPERTIES,Housing Shops                           ,J01533,Premises Related Expenditure  ,RepairsAlterations&MtceOfBldgs,BA01,DDM - General Building,778,685,10/8/2012,R,COFELY LIMITED                
2012-OCT,CS -Oth Operating Inc & Expend,INVESTMENT PROPERTIES,Housing Shops                           ,J01533,Premises Related Expenditure  ,RepairsAlterations&MtceOfBldgs,BA79,Security of Premises,779,910,9/30/2012,R,OM METROPOLITAN TOTAL SEC.LTD 
2012-OCT,Central Services,Unused Share - Other Assets,Montgomery Close                        ,J02044,Premises Related Expenditure  ,RepairsAlterations&MtceOfBldgs,BA03,DDM - Mechanical,780,617.24,9/25/2012,R,COFELY LIMITED                
2012-OCT,CS -Oth Operating Inc & Expend,INVESTMENT PROPERTIES,Pollards Hill Comm Cntre                ,J08074,Premises Related Expenditure  ,RepairsAlterations&MtceOfBldgs,BA03,DDM - Mechanical,781,692.01,9/25/2012,R,COFELY LIMITED                
2012-OCT,Childrens & Education Services,Schools Strategic Management,Senior Mngt & Support Services          ,K01005,Supplies & Services           ,Services                      ,DF03,Consultants,782,"1,000.00",10/18/2012,R,MOORE INSIGHT LIMITED         
2012-OCT,Childrens & Education Services,Schools Strategic Management,Senior Mngt & Support Services          ,K01005,Supplies & Services           ,Services                      ,DF11,Counsel's fees,783,700,4/3/2012,R,REDACTED
2012-OCT,Childrens & Education Services,Schools Strategic Management,Senior Mngt & Support Services          ,K01005,Supplies & Services           ,Services                      ,DF11,Counsel's fees,784,520,8/20/2012,R,REDACTED
2012-OCT,Childrens & Education Services,Schools Strategic Management,Senior Mngt & Support Services          ,K01005,Supplies & Services           ,Services                      ,DF11,Counsel's fees,785,930,8/2/2012,R,REDACTED
2012-OCT,Childrens & Education Services,Schools Strategic Management,Senior Mngt & Support Services          ,K01005,Supplies & Services           ,Services                      ,DF11,Counsel's fees,786,"2,545.00",8/2/2012,R,REDACTED
2012-OCT,Childrens & Education Services,Schools Strategic Management,Senior Mngt & Support Services          ,K01005,Supplies & Services           ,Services                      ,DF11,Counsel's fees,787,"1,560.00",8/2/2012,R,REDACTED
2012-OCT,Childrens & Education Services,Schools Strategic Management,Senior Mngt & Support Services          ,K01005,Supplies & Services           ,Services                      ,DF11,Counsel's fees,788,"1,820.00",9/27/2012,R,REDACTED
2012-OCT,Childrens & Education Services,Schools Strategic Management,Senior Mngt & Support Services          ,K01005,Supplies & Services           ,Services                      ,DF11,Counsel's fees,789,"1,200.00",9/17/2012,R,REDACTED
2012-OCT,Childrens & Education Services,Schools Strategic Management,Senior Mngt & Support Services          ,K01005,Supplies & Services           ,Services                      ,DF11,Counsel's fees,790,690,9/14/2012,R,REDACTED
2012-OCT,Childrens & Education Services,Schools Strategic Management,Senior Mngt & Support Services          ,K01005,Supplies & Services           ,Services                      ,DF11,Counsel's fees,791,500,8/22/2012,R,REDACTED
2012-OCT,Childrens & Education Services,Schools Strategic Management,Senior Mngt & Support Services          ,K01005,Supplies & Services           ,Services                      ,DF11,Counsel's fees,792,"3,140.00",8/23/2012,R,REDACTED
2012-OCT,Childrens & Education Services,Schools Strategic Management,Central Administration                  ,K01008,Supplies & Services           ,Comms and Computing           ,DG04,Postage - General,793,535,9/26/2012,R,TRAVELCARE                    
2012-OCT,Childrens & Education Services,Schools Strategic Management,Schools IT Support                      ,K02008,Supplies & Services           ,Comms and Computing           ,DG50,Other IT Expenditure,794,"1,875.00",8/1/2012,R,ATOMWIDE LTD                  
2012-OCT,Childrens & Education Services,Schools Strategic Management,Schools IT Support                      ,K02008,Supplies & Services           ,Comms and Computing           ,DG50,Other IT Expenditure,795,500,10/18/2012,R,ATOMWIDE LTD                  
2012-OCT,Childrens & Education Services,Schools Strategic Management,Research and Statistics                 ,K03016,Supplies & Services           ,Comms and Computing           ,DG07,Computer Software,796,"1,294.43",10/22/2012,R,NCER CIC                      
2012-OCT,Childrens & Education Services,Schools Strategic Management,Research and Statistics                 ,K03016,Supplies & Services           ,Comms and Computing           ,DG55,Data Preparation,797,"1,700.00",9/14/2012,R,CIPFA BUSINESS LIMITED        
2012-OCT,Childrens & Education Services,Assuring Access To Schools,PFI Unitary Charges                     ,K03023,Premises Related Expenditure  ,RepairsAlterations&MtceOfBldgs,BA01,DDM - General Building,798,"2,981.07",4/30/2012,R,FIRST CHOICE FACILITIES PLC   
2012-OCT,Childrens & Education Services,Assuring Access To Schools,PFI Unitary Charges                     ,K03023,Third Party Payments          ,Private Contractors           ,EH02,Miscellaneous Hired Services,799,809.91,4/30/2012,R,NEWSCHOOLS (MERTON) LIMITED   
2012-OCT,Childrens & Education Services,Assuring Access To Schools,PFI Unitary Charges                     ,K03023,Third Party Payments          ,Private Contractors           ,EH02,Miscellaneous Hired Services,800,"1,830.00",9/25/2012,R,ICL SOLUTIONS                 
2012-OCT,Childrens & Education Services,Assuring Access To Schools,PFI Unitary Charges                     ,K03023,Third Party Payments          ,Private Contractors           ,EH02,Miscellaneous Hired Services,801,"5,335.91",7/31/2012,R,NEWSCHOOLS (MERTON) LIMITED   
2012-OCT,Childrens & Education Services,Assuring Access To Schools,PFI Unitary Charges                     ,K03023,Third Party Payments          ,Private Contractors           ,EH02,Miscellaneous Hired Services,802,"2,056.65",7/31/2012,R,NEWSCHOOLS (MERTON) LIMITED   
2012-OCT,Childrens & Education Services,Assuring Access To Schools,PFI Unitary Charges                     ,K03023,Third Party Payments          ,Private Contractors           ,EH02,Miscellaneous Hired Services,803,855.54,8/31/2012,R,NEWSCHOOLS (MERTON) LIMITED   
2012-OCT,Childrens & Education Services,Assuring Access To Schools,PFI Unitary Charges                     ,K03023,Third Party Payments          ,Private Contractors           ,EH02,Miscellaneous Hired Services,804,860.39,7/31/2012,R,NEWSCHOOLS (MERTON) LIMITED   
2012-OCT,Childrens & Education Services,Assuring Access To Schools,PFI Unitary Charges                     ,K03023,Third Party Payments          ,Private Contractors           ,EH02,Miscellaneous Hired Services,805,"2,124.76",9/10/2012,R,NEWSCHOOLS (MERTON) LIMITED   
2012-OCT,Childrens & Education Services,Assuring Access To Schools,PFI Unitary Charges                     ,K03023,Third Party Payments          ,Private Contractors           ,EH02,Miscellaneous Hired Services,806,872.74,9/28/2012,R,NEWSCHOOLS (MERTON) LIMITED   
2012-OCT,Childrens & Education Services,Assuring Access To Schools,PFI Unitary Charges                     ,K03023,Third Party Payments          ,Private Contractors           ,EH02,Miscellaneous Hired Services,807,"1,145.00",9/28/2012,R,NEWSCHOOLS (MERTON) LIMITED   
2012-OCT,Childrens & Education Services,Assuring Access To Schools,PFI Unitary Charges                     ,K03023,Third Party Payments          ,Private Contractors           ,EH02,Miscellaneous Hired Services,808,"1,740.00",9/28/2012,R,NEWSCHOOLS (MERTON) LIMITED   
2012-OCT,Childrens & Education Services,Assuring Access To Schools,PFI Unitary Charges                     ,K03023,Third Party Payments          ,Private Contractors           ,EH02,Miscellaneous Hired Services,809,"10,702.23",9/28/2012,R,NEWSCHOOLS (MERTON) LIMITED   
2012-OCT,Childrens & Education Services,Assuring Access To Schools,PFI Unitary Charges                     ,K03023,Third Party Payments          ,Private Contractors           ,EH10,Contract Payments,810,"1,232.43",8/31/2012,R,SODEXO                        
2012-OCT,Childrens & Education Services,GENERATED ACCOUNT,SEN Transitions Team                    ,K04016,Employees                     ,Direct Employee Expenses      ,AA17,Agency Staff & Casual Paymts,811,"3,200.00",10/6/2012,R,REDACTED
2012-OCT,Childrens & Education Services,Supporting SEN,Education Psychology.                   ,K04018,Employees                     ,Direct Employee Expenses      ,AA17,Agency Staff & Casual Paymts,812,"4,125.00",9/21/2012,R,REDACTED
2012-OCT,Childrens & Education Services,Supporting SEN,Statementing-Transport                  ,K04023,Transport Related Expenditure ,Recharge frm Transport Holding,CB01,Transport,813,"14,385.00",10/1/2012,R,MERTON MENCAP                 
2012-OCT,Childrens & Education Services,Supporting SEN,Statementing-Transport                  ,K04023,Transport Related Expenditure ,Public Transport              ,CD50,Home Sch/Coll Trans(Trav Exps),814,613.8,9/7/2012,R,REDACTED
2012-OCT,Childrens & Education Services,Supporting SEN,Statementing-Transport                  ,K04023,Supplies & Services           ,Services                      ,DF03,Consultants,815,"1,689.00",9/25/2012,R,MERTON MENCAP                 
2012-OCT,Childrens & Education Services,Supporting SEN,Statementing-Transport                  ,K04023,Supplies & Services           ,Services                      ,DF03,Consultants,816,"9,252.00",8/22/2012,R,MERTON MENCAP                 
2012-OCT,Childrens & Education Services,Supporting SEN,Statement Support Team                  ,K04034,Employees                     ,Direct Employee Expenses      ,AA17,Agency Staff & Casual Paymts,817,"3,500.00",9/29/2012,R,REDACTED
2012-OCT,Childrens & Education Services,Pre-School Ed (inc Nursery),Provider Support                        ,K05078,Supplies & Services           ,Comms and Computing           ,DG02,Software Licences,818,"1,032.50",9/26/2012,R,CACI LIMITED                  
2012-OCT,Childrens & Education Services,Supporting SEN,Expanded Pupil Referral Unit            ,K05099,Third Party Payments          ,Private Contractors           ,EH01,Miscellaneous Contrct Services,819,"4,963.83",9/27/2012,R,SW LONDON ST GEORGES NHS TRUST
2012-OCT,Childrens & Education Services,Pre-School Ed (inc Nursery),GSSG Workforce Development              ,K05111,Employees                     ,Indirect Employee Expenses    ,AB56,Internal Training Costs,820,500,10/12/2012,R,REDACTED
2012-OCT,Childrens & Education Services,Pre-School Ed (inc Nursery),GSSG Workforce Development              ,K05111,Employees                     ,Indirect Employee Expenses    ,AB56,Internal Training Costs,821,850,10/16/2012,R,REDACTED
2012-OCT,Childrens & Education Services,Pre-School Ed (inc Nursery),GSSG Workforce Development              ,K05111,Employees                     ,Indirect Employee Expenses    ,AB56,Internal Training Costs,822,960,10/17/2012,R,ACTUAL FIRST AID LTD          
2012-OCT,Childrens & Education Services,Pre-School Ed (inc Nursery),GSSG Workforce Development              ,K05111,Supplies & Services           ,Services                      ,DF03,Consultants,823,"2,400.00",10/1/2012,R,REDACTED
2012-OCT,Childrens & Education Services,Pre-School Ed (inc Nursery),EY Business Support                     ,K05400,Employees                     ,Indirect Employee Expenses    ,AB57,External Training Costs,824,"1,000.00",9/25/2012,R,CARSHALTON COLLEGE            
2012-OCT,Childrens & Education Services,Pre-School Ed (inc Nursery),EY Business Support                     ,K05400,Premises Related Expenditure  ,Rents                         ,BC03,Room/venue rental hire,825,620,9/18/2012,R,MERTON ABBEY PRIMARY SCHOOL   
2012-OCT,Childrens & Education Services,Pre-School Ed (inc Nursery),Nursery Grant payment-2 yr old          ,K05408,Supplies & Services           ,Grants and Subscriptions      ,DJ01,Grants,826,"2,628.00",10/1/2012,R,ARK AT SHERWOOD LTD           
2012-OCT,Childrens & Education Services,Pre-School Ed (inc Nursery),Nursery Grant payment-2 yr old          ,K05408,Supplies & Services           ,Grants and Subscriptions      ,DJ01,Grants,827,"1,314.00",10/1/2012,R,ARK AT SHERWOOD LTD           
2012-OCT,Childrens & Education Services,Pre-School Ed (inc Nursery),Nursery Grant payment-2 yr old          ,K05408,Supplies & Services           ,Grants and Subscriptions      ,DJ01,Grants,828,"13,140.00",10/2/2012,R,MERTON ABBEY PRIMARY SCHOOL   
2012-OCT,Childrens & Education Services,Pre-School Ed (inc Nursery),Nursery Grant payment-2 yr old          ,K05408,Supplies & Services           ,Grants and Subscriptions      ,DJ01,Grants,829,"11,826.00",10/2/2012,R,IVY GARDENS CHILDREN' S CENTRE
2012-OCT,Childrens & Education Services,Pre-School Ed (inc Nursery),Nursery Grant payment-2 yr old          ,K05408,Supplies & Services           ,Grants and Subscriptions      ,DJ01,Grants,830,"13,140.00",10/2/2012,R,HASLEMERE PRIMARY SCHOOL      
2012-OCT,Childrens & Education Services,Pre-School Ed (inc Nursery),Nursery Grant payment-2 yr old          ,K05408,Supplies & Services           ,Grants and Subscriptions      ,DJ01,Grants,831,"11,826.00",10/2/2012,R,ST MARKS PRIMARY SCHOOL       
2012-OCT,Childrens & Education Services,Pre-School Ed (inc Nursery),Nursery Grant payment-2 yr old          ,K05408,Supplies & Services           ,Grants and Subscriptions      ,DJ01,Grants,832,626.34,10/2/2012,R,ST MARKS PRIMARY SCHOOL       
2012-OCT,Childrens & Education Services,Pre-School Ed (inc Nursery),Nursery Grant payment-2 yr old          ,K05408,Supplies & Services           ,Grants and Subscriptions      ,DJ01,Grants,833,"1,051.20",10/8/2012,R,FAIRLAND'S PRESCHOOL          
2012-OCT,Childrens & Education Services,Pre-School Ed (inc Nursery),Nursery Grant payment-2 yr old          ,K05408,Supplies & Services           ,Grants and Subscriptions      ,DJ01,Grants,834,"1,170.00",10/9/2012,R,MMI PRE SCHOOL                
2012-OCT,Childrens & Education Services,Pre-School Ed (inc Nursery),Nursery Grant payment-2 yr old          ,K05408,Supplies & Services           ,Grants and Subscriptions      ,DJ01,Grants,835,"1,170.00",10/9/2012,R,MMI PRE SCHOOL                
2012-OCT,Childrens & Education Services,Pre-School Ed (inc Nursery),Nursery Grant payment-2 yr old          ,K05408,Supplies & Services           ,Grants and Subscriptions      ,DJ01,Grants,836,876,10/9/2012,R,HOLY CROSS PLAYGROUP          
2012-OCT,Childrens & Education Services,Pre-School Ed (inc Nursery),Nursery Grant payment-2 yr old          ,K05408,Supplies & Services           ,Grants and Subscriptions      ,DJ01,Grants,837,504,10/11/2012,R,REDACTED
2012-OCT,Childrens & Education Services,Pre-School Ed (inc Nursery),Nursery Grant payment-2 yr old          ,K05408,Supplies & Services           ,Grants and Subscriptions      ,DJ01,Grants,838,"1,314.00",10/11/2012,R,HASLEMERE HOUSE DAY NURSERY   
2012-OCT,Childrens & Education Services,Pre-School Ed (inc Nursery),Nursery Grant payment-2 yr old          ,K05408,Supplies & Services           ,Grants and Subscriptions      ,DJ01,Grants,839,626.34,10/11/2012,R,JOLLYTIME PLAYGROUP           
2012-OCT,Childrens & Education Services,Pre-School Ed (inc Nursery),Nursery Grant payment-2 yr old          ,K05408,Supplies & Services           ,Grants and Subscriptions      ,DJ01,Grants,840,"1,260.00",10/11/2012,R,REDACTED
2012-OCT,Childrens & Education Services,Pre-School Ed (inc Nursery),Nursery Grant payment-2 yr old          ,K05408,Supplies & Services           ,Grants and Subscriptions      ,DJ01,Grants,841,"1,260.00",10/11/2012,R,CHERUBS CHILDCARE LTD         
2012-OCT,Childrens & Education Services,Pre-School Ed (inc Nursery),Nursery Grant payment-2 yr old          ,K05408,Supplies & Services           ,Grants and Subscriptions      ,DJ01,Grants,842,"1,260.00",10/11/2012,R,CHERUBS CHILDCARE LTD         
2012-OCT,Childrens & Education Services,Pre-School Ed (inc Nursery),Nursery Grant payment-2 yr old          ,K05408,Supplies & Services           ,Grants and Subscriptions      ,DJ01,Grants,843,"1,008.00",10/11/2012,R,REDACTED
